Workbook

Sheet Introduction
A1: Crop Nutrient Response Tool (CNRT)
B3: This evaluation tool was designed to assist in interpretation and record-keeping for on-farm field crop trials involving multiple rates of any added nutrient.
B4: Its main goal is to provide the best possible estimate of "optimum rate" for a single-year response - the maximum rate at which it is profitable to apply a purchased nutrient - from limited data.
B5: The optimum rate is calculated without regard to residual effects on subsequent crops. The analysis is therefore more useful for mobile nutrients like nitrogen and less applicable to soil-retained nutrients like phosphate and potash.
B6: It can also function as a record-keeping tool. The summary worksheet provides a single-row storage for a thousand or more site-years.
B7: For best results, trials should have at least four rates, and one of them should be zero or less than 25% of the highest rate applied.
B8: MERNs are calculated from fitted curves without assessment of statistical significance. The probability that they do not differ from zero is not calculated.
B9: Interpretation should NOT be based on calculated MERN alone. It SHOULD include visual inspection of the relation of the fitted curve to the original data, and knowledge of data reliability.
B10: For computers without the Solver add-in, or if the "Fit" macro will not run, the response curves can be fit manually by tweaking the ABC coefficients for a good visual fit and maximum R-square.
B11: Note that cells with formulas are locked for protection. Password to unprotect is "ipni".
B12: Version 4.5 - May 2013 - assigns a weight of zero to the curve of lowest R-square, 1 to the curve with the highest, and intermediate weights to those in between
B14: Equation Form: | D14: R = price ratio (bushels of grain per pound of fertilizer nutrient); Y = Yield (bu/A); X = Rate of nutrient applied (lb/A)
C15: Quadratic (Q): | D15: Y = A + BX + CXX | K15: MERN = (R-B)/(2C) | O15: A = intercept; B = initial slope; C = curvature
C16: Quadratic Plateau (QP): | D16: Y = A + BX + CXX when X<B/-2C; otherwise Y=A + BB/-2C + BB/4C | K16: MERN = (R-B)/(2C) | O16: A = intercept; B = initial slope; C = curvature
C17: Mitscherlich (M): | D17: Y = A + Bexp(CX) | K17: MERN = (1/C)*ln(R/(B*C)) | O17: A = maximum yield; B = intercept minus maximum; C = curvature
C18: Linear-Plateau (LP): | D18: Y = A + BX when X < (C - A)/B; otherwise Y = C | K18: MERN = (C-A)/B if B>R; else MERN = 0 | O18: A = intercept; B = slope; C = maximum yield
C19: Spherical-plateau (S): | D19: Y = A + B(3X/(2C) - 0.5(X/C)^3) where X < C; otherwise Y = A + B | K19: MERN = SQRT(C^2 - 2*BR*C^3/(3*B)) | O19: A = intercept; B = maximum minus intercept; C = minimum rate for maximum yield
C20: When responses are near linear, the quadratic and linear-plateau models will become close to linear models.
B22: Moisture and Quality of Harvested Crop:
C23: To account for the value of differences in moisture or quality that result among applied rate treatments, convert their cash cost or value into units of yield and make appropriate adjustments to the yield data entered.
B25: Credits: | C25: This spreadsheet was developed by Dr. TW Bruulsema, in consultation with Dr. TS Murrell, IPNI Northcentral Director.
B27: Contact: | C27: Tom Bruulsema, PhD, CCA
C28: Director, Northeast Region, North America Program
C29: International Plant Nutrition Institute
C30: 18 Maplewood Drive
C31: Guelph, Ontario, Canada N1G 1L8
C32: cell: (519) 835-2499
C33: email: Tom.Bruulsema@ipni.net
C34: http://www.ipni.net/cnrt
B38: Lists: these are used for drop-down menus in some of the site information fields.
B40: Previous Crop | F40: Soil Texture | I40: Tillage | L40: Application Timing
B42: Barley | F42: Clay | I42: no-till | L42: preplant surface
B43: Edible Beans | F43: Clay loam | I43: conservation-till | L43: preplant incorporated
B44: Forage <33% legume | F44: Heavy Clay | I44: spring chisel | L44: broadcast preemerge
B45: Forage 30-50% leg | F45: Loam | I45: spring moldboard | L45: sidedress surface
B46: Forage >50% legume | F46: Loamy Sand | I46: fall chisel | L46: sidedress injected
B47: Grain Corn | F47: Sand | I47: fall moldboard | L47: NA
B48: Oats | F48: Sandy Clay | I48: conventional
B49: Silage Corn | F49: Sandy Clay loam | I49: NA
B50: Soybeans | F50: Sandy loam
B51: Wheat | F51: Silt loam
B52: Wheat-clover | F52: Silty Clay
B53: Cereal-clover | F53: Silty Clay loam
B54: NA | F54: NA
B58: References:
B59: Bruulsema, TW, PE Fixen, and CS Snyder. 2004. Fertilizer Nutrient Recovery in Sustainable Cropping Systems.
B60: Snyder, CS, and TW Bruulsema. 2007. Nutrient Use Efficiency and Effectiveness in North America: Indices of Agronomic and Environmental Benefit

Sheet A
B1: Crop Nutrient Response Tool (CNRT) v4.5 | F1: R2-weighted Mean | G1: Quadratic (Q) | H1: Quadratic- Plateau (QP) | I1: Mitscherlich (M) | J1: Linear-Plateau (LP) | K1: Spherical (SP)
A2: Step 1: Enter rate and yield data. | C2: Fertilizer rate, lb/A | D2: Crop Yield, bu/A | E2: A: | G2: 91.97095387 | H2: 91.12704407 | I2: 188.8797358 | J2: 94.16647887 | K2: 91.67034005
A3: Step 2: Click the Fit button. | E3: B: | G3: 1.023188214 | H3: 1.084257635 | I3: -98.90534255 | J3: 0.7500024781 | K3: 87.80187084
A4: Step 3: Adjust crop and fertilizer prices. | E4: C: | G4: -0.002885918594 | H4: -0.003291517086 | I4: -0.01414477821 | J4: 179.9999493 | K4: 143.3534097
A5: Step 4: Click to append information to summary. | C5: 0 | D5: 90 | E5: R2: | G5: =IF(ISERROR(1-((SUM('C'!G5:G44)/COUNT('C'!G5:G44))/VAR($D5:$D44))),"no data",1-((SUM('C'!G5:G44)/COUNT('C'!G5:G44))/VAR($D5:$D44))) -> 0.9949170928 | H5: =IF(ISERROR(1-((SUM('C'!H5:H44)/COUNT('C'!H5:H44))/VAR($D5:$D44))),"no data",1-((SUM('C'!H5:H44)/COUNT('C'!H5:H44))/VAR($D5:$D44))) -> 0.9963348469 | I5: =IF(ISERROR(1-((SUM('C'!I5:I44)/COUNT('C'!I5:I44))/VAR($D5:$D44))),"no data",1-((SUM('C'!I5:I44)/COUNT('C'!I5:I44))/VAR($D5:$D44))) -> 0.9999940854 | J5: =IF(ISERROR(1-((SUM('C'!J5:J44)/COUNT('C'!J5:J44))/VAR($D5:$D44))),"no data",1-((SUM('C'!J5:J44)/COUNT('C'!J5:J44))/VAR($D5:$D44))) -> 0.9829673521 | K5: =IF(ISERROR(1-((SUM('C'!K5:K44)/COUNT('C'!K5:K44))/VAR($D5:$D44))),"no data",1-((SUM('C'!K5:K44)/COUNT('C'!K5:K44))/VAR($D5:$D44))) -> 0.9926500361
A6: Site Details | C6: 50 | D6: 140 | E6: MERN (lb/A): | F6: =IF('C'!M53,MAX('C'!J48:J298),"NA") -> 146.7911477 | G6: =IF(AND(ISNUMBER(G5),ISNUMBER(B29),'C'!M53),MIN((1+0.1*G5)*MAX($C5:$C44),IF(G4<0,MAX((G3-B29)/(-2*G4),0),IF(G3>B29,MAX($C5:$C44),0))),"NA$") -> 155.5307243 | H6: =IF(AND(ISNUMBER(H5),ISNUMBER(B29),'C'!M53),MIN((1+0.1*H5)*MAX($C5:$C44),IF(H4<0,MAX((H3-B29)/(-2*H4),0),IF(H3>B29,MAX($C5:$C44),0))),"NA$") -> 145.6421787 | I6: =IF(AND(ISNUMBER(I5),ISNUMBER(B29),'C'!M53),MIN((1+0.1*I5)*MAX($C5:$C44),MAX((1/I4)*LN(B29/(I3*I4)),0)),"NA$") -> 170.4714708 | J6: =IF(AND(ISNUMBER(J5),ISNUMBER(B29),'C'!M53),MIN((1+0.1*J5)*MAX($C5:$C44),IF(J3>B29,(J4-J2)/J3,0)),"NA$") -> 114.4442491 | K6: =IF(AND(ISNUMBER(K5),ISNUMBER(B29),'C'!M53),IF(ISNUMBER(SQRT(K4^2-2*B29*K4^3/(3*K3))),MIN((1+0.1*K5)*MAX($C5:$C44),SQRT(K4^2-2*B29*K4^3/(3*K3))),0),"NA$") -> 133.2036902
A7: Site | C7: 100 | D7: 165 | E7: Yield @ MERN (bu/A) | F7: =IF(ISNUMBER(F6),VLOOKUP(F6,'C'!B48:H298,7),"NA") -> 178.4831489 | G7: =IF(ISNUMBER(G6),G2+G3*G6+G4*G6^2,"NA") -> 181.2983464 | H7: =IF(ISNUMBER(H6),H2+H3*H6+H4*H6^2,"NA") -> 179.2221989 | I7: =IF(ISNUMBER(I6),I2+I3*EXP(I6*I4),"NA") -> 180.0078967 | J7: =IF(ISNUMBER(J6),IF(J3>'C'!O22,MIN(J4,J2+J3*J6),J2),"NA") -> 179.9999493 | K7: =IF(AND(ISNUMBER(K6),K6>0),IF(K6<A!K$4,A!K$2+A!K$3*(3*K6/(2*A!K$4)-0.5*(K6/A!K$4)^3),A!K$3+A!K$2),"NA") -> 178.8275749
A8: Year | C8: 150 | D8: 177 | E8: Partial Factor Productivity (PFP), bu/lb | F8: =IF(ISNUMBER(F7/F6),F7/F6,"NA") -> 1.215898586 | G8: 1.165675446 | H8: 1.230565215 | I8: 1.055941478 | J8: 1.572817775 | K8: 1.342512168
A9: Town | C9: 200 | D9: 183 | E9: Agronomic Efficiency (AE), bu/lb | F9: =IF(ISNUMBER(F12/F6),F12/F6,"NA") -> 0.5956174542 | G9: =IF(ISNUMBER((G7-G2)/G6),(G7-G2)/G6,"NA") -> 0.5743392052 | H9: =IF(ISNUMBER((H7-H2)/H6),(H7-H2)/H6,"NA") -> 0.6048739155 | I9: =IF(ISNUMBER((I7-(I2+I3))/I6),(I7-(I2+I3))/I6,"NA") -> 0.5281441116 | J9: =IF(ISNUMBER((J7-J2)/J6),(J7-J2)/J6,"NA") -> 0.7500024781 | K9: =IF(ISNUMBER((K7-K2)/K6),(K7-K2)/K6,"NA") -> 0.6543154679
A10: County | E10: Estimated Partial N Balance (PNB), % | F10: =IF(AND(F6>0,ISNUMBER(F6)),F7*B$30/(F6+B$24),"NA") -> 0.7903340808 | G10: =IF(AND(G6>0,ISNUMBER(G6)),G7*$B30/(G6+$B24),"NA") -> 0.7576890401 | H10: =IF(AND(H6>0,ISNUMBER(H6)),H7*$B30/(H6+$B24),"NA") -> 0.7998673899 | I10: =IF(AND(I6>0,ISNUMBER(I6)),I7*$B30/(I6+$B25),"NA") -> 0.6863619606 | J10: =IF(AND(J6>0,ISNUMBER(J6)),J7*B30/(J6+B25),"NA") -> 1.022331554 | K10: =IF(AND(K6>0,ISNUMBER(K6)),K7*$B30/(K6+$B24),"NA") -> 0.8726329092
A11: State or province | E11: Estimated Recovery Efficiency (RE), % | F11: =IF(AND(F6>0,ISNUMBER(F6)),(F12/F6)*B$30*(1/B$31),"NA") -> 0.5813083262 | G11: =IF(AND(G6>0,ISNUMBER(G6)),((G7-G2)*$B30*(1/$B31))/G6,"NA") -> 0.5605412664 | H11: =IF(AND(H6>0,ISNUMBER(H6)),((H7-H2)*$B30*(1/$B31))/H6,"NA") -> 0.59034241 | I11: =IF(AND(I6>0,ISNUMBER(I6)),((I7-(I2+I3))*B30*(1/B31))/I6,"NA") -> 0.5154559648 | J11: =IF(AND(J6>0,ISNUMBER(J6)),J3*B30*(1/B31),"NA") -> 0.7319844006 | K11: =IF(AND(K6>0,ISNUMBER(K6)),((K7-K2)*$B30*(1/$B31))/K6,"NA") -> 0.6385961774
A12: Latitude | E12: Delta Yield (bu/A) | F12: =IF(ISNUMBER(F7),F7-VLOOKUP(0,'C'!B48:H298,7),"NA") -> 87.43136968 | G12: =IF(ISNUMBER(G7),G7-G2,"NA") -> 89.32739256 | H12: =IF(ISNUMBER(H7),H7-H2,"NA") -> 88.09515487 | I12: =IF(ISNUMBER(I7),I7-(I2+I3),"NA") -> 90.03350347 | J12: =IF(ISNUMBER(J7),J7-J2,"NA") -> 85.83347045 | K12: =IF(ISNUMBER(K7),K7-K2,"NA") -> 87.1572349
A13: Longitude | E13: Relative Yield (%) | F13: =IF(ISNUMBER(F7),(F7-F12)/F7,"NA") -> 0.5101421606 | G13: =IF(ISNUMBER(G7),G2/G7,"NA") -> 0.5072906382 | H13: =IF(ISNUMBER(H7),H2/H7,"NA") -> 0.5084584644 | I13: =IF(ISNUMBER(I7),(I2+I3)/I7,"NA") -> 0.4998358122 | J13: =IF(ISNUMBER(J7),J2/J7,"NA") -> 0.5231472521 | K13: =IF(ISNUMBER(K7),K2/K7,"NA") -> 0.5126185941
A14: Altitude
A15: Soil texture class | E15: My rate | F15: 154
A16: Preceding crop | E16: Yield at my rate | F16: =IF(ISNUMBER(F15),VLOOKUP(F15,'C'!B43:H293,7),"NA") -> 179.4080964
A17: Expected Yield (bu/A) | E17: PFP | F17: =IF(ISNUMBER(F16/F15),F16/F15,"NA") -> 1.164987639
A18: Tillage | E18: AE | F18: =IF(ISNUMBER(F21/F15),F21/F15,"NA") -> 0.5737423193
A19: Nutrient Source | E19: PNB | F19: =IF(AND(F15>0,ISNUMBER(F15)),F16*B$30/(F15+B$24),"NA") -> 0.7572419652
A20: Nutrient Timing | E20: RE | F20: =IF(AND(F15>0,ISNUMBER(F15)),(F21/F15)*B$30*(1/B$31),"NA") -> 0.55995872
A21: Nutrient Placement | E21: Delta Yield (bu/A) | F21: =IF(ISNUMBER(F16),F16-VLOOKUP(0,'C'!B48:H298,7),"NA") -> 88.35631717
A22: Planting date | E22: Relative Yield (%) | F22: =IF(ISNUMBER(F16),(F16-F21)/F16,"NA") -> 0.5075120969
A23: PSNT (ppm)
A24: Manure N (lb/A)
A25: Harvest date
A26: ESSENTIAL INFORMATION
A27: Crop ($/bu) | B27: 5.1
A28: Fertilizer ($/lb) | B28: 0.64
A29: Price ratio (f/c) | B29: =B28/B27 -> 0.1254901961
A30: Crop nutrient content (lb/bu) | B30: 0.65
A31: Nutrient harvest index | B31: 0.666

Sheet C
A1: Calculations worksheet - do not enter data here
B3: Predicted Curve Values | G3: Squared differences predicted less observed
A4: Obs | B4: Q | C4: QP | D4: M | E4: LP | F4: S | G4: Q | H4: QP | I4: M | J4: LP | K4: S | M4: Technical
A5: 1 | B5: =IF(ISNUMBER(A!C5),A!G$2+A!G$3*A!C5+A!G$4*A!C5^2,"") -> 91.97095387 | C5: =IF(ISNUMBER(A!C5),IF(A!C5<(A!H$3/(-2*A!H$4)),A!H$2+A!H$3*A!C5+A!H$4*A!C5^2,A!H$2+A!H$3*(A!H$3/(-2*A!H$4))+A!H$4*(A!H$3/(-2*A!H$4))^2),"") -> 91.12704407 | D5: =IF(ISNUMBER(A!C5),A!I$2+A!I$3*EXP(A!I$4*A!C5),"") -> 89.97439328 | E5: =IF(ISNUMBER(A!C5),IF((A!J$2+A!J$3*A!C5)<A!J$4,A!J$2+A!J$3*A!C5,A!J$4),"") -> 94.16647887 | F5: =IF(ISNUMBER(A!C5),IF(A!C5<A!K$4,A!K$2+A!K$3*(3*A!C5/(2*A!K$4)-0.5*(A!C5/A!K$4)^3),A!K$3+A!K$2),"") -> 91.67034005 | G5: =IF(ISNUMBER(A!$C5),(B5-A!$D5)^2,"") -> 3.88465915 | H5: =IF(ISNUMBER(A!$C5),(C5-A!$D5)^2,"") -> 1.270228328 | I5: =IF(ISNUMBER(A!$C5),(D5-A!$D5)^2,"") -> 0.0006557042078 | J5: =IF(ISNUMBER(A!$C5),(E5-A!$D5)^2,"") -> 17.35954617 | K5: =IF(ISNUMBER(A!$C5),(F5-A!$D5)^2,"") -> 2.790035876 | N5: Constraints:
A6: =A5+1 -> 2 | B6: =IF(ISNUMBER(A!C6),A!G$2+A!G$3*A!C6+A!G$4*A!C6^2,"") -> 135.9155681 | C6: =IF(ISNUMBER(A!C6),IF(A!C6<(A!H$3/(-2*A!H$4)),A!H$2+A!H$3*A!C6+A!H$4*A!C6^2,A!H$2+A!H$3*(A!H$3/(-2*A!H$4))+A!H$4*(A!H$3/(-2*A!H$4))^2),"") -> 137.1111331 | D6: =IF(ISNUMBER(A!C6),A!I$2+A!I$3*EXP(A!I$4*A!C6),"") -> 140.1190511 | E6: =IF(ISNUMBER(A!C6),IF((A!J$2+A!J$3*A!C6)<A!J$4,A!J$2+A!J$3*A!C6,A!J$4),"") -> 131.6666028 | F6: =IF(ISNUMBER(A!C6),IF(A!C6<A!K$4,A!K$2+A!K$3*(3*A!C6/(2*A!K$4)-0.5*(A!C6/A!K$4)^3),A!K$3+A!K$2),"") -> 135.7439732 | G6: =IF(ISNUMBER(A!$C6),(B6-A!$D6)^2,"") -> 16.68258395 | H6: =IF(ISNUMBER(A!$C6),(C6-A!$D6)^2,"") -> 8.345551964 | I6: =IF(ISNUMBER(A!$C6),(D6-A!$D6)^2,"") -> 0.01417317627 | J6: =IF(ISNUMBER(A!$C6),(E6-A!$D6)^2,"") -> 69.4455093 | K6: =IF(ISNUMBER(A!$C6),(F6-A!$D6)^2,"") -> 18.11376395 | N6: Maximum | S6: Minimum | X6: Fitting
A7: =A6+1 -> 3 | B7: =IF(ISNUMBER(A!C7),A!G$2+A!G$3*A!C7+A!G$4*A!C7^2,"") -> 165.4305894 | C7: =IF(ISNUMBER(A!C7),IF(A!C7<(A!H$3/(-2*A!H$4)),A!H$2+A!H$3*A!C7+A!H$4*A!C7^2,A!H$2+A!H$3*(A!H$3/(-2*A!H$4))+A!H$4*(A!H$3/(-2*A!H$4))^2),"") -> 166.6376367 | D7: =IF(ISNUMBER(A!C7),A!I$2+A!I$3*EXP(A!I$4*A!C7),"") -> 164.8405453 | E7: =IF(ISNUMBER(A!C7),IF((A!J$2+A!J$3*A!C7)<A!J$4,A!J$2+A!J$3*A!C7,A!J$4),"") -> 169.1667267 | F7: =IF(ISNUMBER(A!C7),IF(A!C7<A!K$4,A!K$2+A!K$3*(3*A!C7/(2*A!K$4)-0.5*(A!C7/A!K$4)^3),A!K$3+A!K$2),"") -> 168.6409743 | G7: =IF(ISNUMBER(A!$C7),(B7-A!$D7)^2,"") -> 0.1854071968 | H7: =IF(ISNUMBER(A!$C7),(C7-A!$D7)^2,"") -> 2.681853982 | I7: =IF(ISNUMBER(A!$C7),(D7-A!$D7)^2,"") -> 0.02542579011 | J7: =IF(ISNUMBER(A!$C7),(E7-A!$D7)^2,"") -> 17.36161124 | K7: =IF(ISNUMBER(A!$C7),(F7-A!$D7)^2,"") -> 13.25669372 | N7: Q | O7: QP | P7: M | Q7: LP | R7: S | S7: Q | T7: QP | U7: M | V7: LP | W7: S | X7: Tolerance
A8: 4 | B8: =IF(ISNUMBER(A!C8),A!G$2+A!G$3*A!C8+A!G$4*A!C8^2,"") -> 180.5160176 | C8: =IF(ISNUMBER(A!C8),IF(A!C8<(A!H$3/(-2*A!H$4)),A!H$2+A!H$3*A!C8+A!H$4*A!C8^2,A!H$2+A!H$3*(A!H$3/(-2*A!H$4))+A!H$4*(A!H$3/(-2*A!H$4))^2),"") -> 179.7065549 | D8: =IF(ISNUMBER(A!C8),A!I$2+A!I$3*EXP(A!I$4*A!C8),"") -> 177.0283297 | E8: =IF(ISNUMBER(A!C8),IF((A!J$2+A!J$3*A!C8)<A!J$4,A!J$2+A!J$3*A!C8,A!J$4),"") -> 179.9999493 | F8: =IF(ISNUMBER(A!C8),IF(A!C8<A!K$4,A!K$2+A!K$3*(3*A!C8/(2*A!K$4)-0.5*(A!C8/A!K$4)^3),A!K$3+A!K$2),"") -> 179.4722109 | G8: =IF(ISNUMBER(A!$C8),(B8-A!$D8)^2,"") -> 12.3623801 | H8: =IF(ISNUMBER(A!$C8),(C8-A!$D8)^2,"") -> 7.325439342 | I8: =IF(ISNUMBER(A!$C8),(D8-A!$D8)^2,"") -> 0.0008025691616 | J8: =IF(ISNUMBER(A!$C8),(E8-A!$D8)^2,"") -> 8.999695895 | K8: =IF(ISNUMBER(A!$C8),(F8-A!$D8)^2,"") -> 6.111826658 | M8: A | N8: =(1+X8)*MIN(A!D5:D44) -> 135 | O8: =N8 -> 135 | P8: =(1+X8)*MAX(A!D5:D44) -> 274.5 | Q8: =N8 -> 135 | R8: =N8 -> 135 | S8: =MAX((1-X8)*MIN(A!D5:D44)-(1+X8)*MIN(A!C5:C44)*(1/O20),0.5*MIN(A!D5:D44)) -> 45 | T8: =S8 -> 45 | U8: =(1-X8)*MAX(A!D5:D44) -> 91.5 | V8: =S8 -> 45 | W8: =S8 -> 45 | X8: 0.5
A9: 5 | B9: =IF(ISNUMBER(A!C9),A!G$2+A!G$3*A!C9+A!G$4*A!C9^2,"") -> 181.171853 | C9: =IF(ISNUMBER(A!C9),IF(A!C9<(A!H$3/(-2*A!H$4)),A!H$2+A!H$3*A!C9+A!H$4*A!C9^2,A!H$2+A!H$3*(A!H$3/(-2*A!H$4))+A!H$4*(A!H$3/(-2*A!H$4))^2),"") -> 180.4182879 | D9: =IF(ISNUMBER(A!C9),A!I$2+A!I$3*EXP(A!I$4*A!C9),"") -> 183.0369505 | E9: =IF(ISNUMBER(A!C9),IF((A!J$2+A!J$3*A!C9)<A!J$4,A!J$2+A!J$3*A!C9,A!J$4),"") -> 179.9999493 | F9: =IF(ISNUMBER(A!C9),IF(A!C9<A!K$4,A!K$2+A!K$3*(3*A!C9/(2*A!K$4)-0.5*(A!C9/A!K$4)^3),A!K$3+A!K$2),"") -> 179.4722109 | G9: =IF(ISNUMBER(A!$C9),(B9-A!$D9)^2,"") -> 3.342121588 | H9: =IF(ISNUMBER(A!$C9),(C9-A!$D9)^2,"") -> 6.665237259 | I9: =IF(ISNUMBER(A!$C9),(D9-A!$D9)^2,"") -> 0.00136534297 | J9: =IF(ISNUMBER(A!$C9),(E9-A!$D9)^2,"") -> 9.00030411 | K9: =IF(ISNUMBER(A!$C9),(F9-A!$D9)^2,"") -> 12.44529604 | M9: B | N9: =O21*(1+X9)/O20 -> 1.536923077 | O9: =N9 -> 1.536923077 | P9: =MIN(-0.0000001,N8-U8) -> -1e-07 | Q9: =O21*(1+0.5*X9)/O20 -> 1.280769231 | R9: =-1*U9 -> 138 | S9: 0 | T9: 0 | U9: =S8-Q10 -> -138 | V9: =S9 -> 0 | W9: =-1*P9 -> 1e-07 | X9: 0.5
A10: 6 | B10: =IF(ISNUMBER(A!C10),A!G$2+A!G$3*A!C10+A!G$4*A!C10^2,"") ->  | C10: =IF(ISNUMBER(A!C10),IF(A!C10<(A!H$3/(-2*A!H$4)),A!H$2+A!H$3*A!C10+A!H$4*A!C10^2,A!H$2+A!H$3*(A!H$3/(-2*A!H$4))+A!H$4*(A!H$3/(-2*A!H$4))^2),"") ->  | D10: =IF(ISNUMBER(A!C10),A!I$2+A!I$3*EXP(A!I$4*A!C10),"") ->  | E10: =IF(ISNUMBER(A!C10),IF((A!J$2+A!J$3*A!C10)<A!J$4,A!J$2+A!J$3*A!C10,A!J$4),"") ->  | F10: =IF(ISNUMBER(A!C10),IF(A!C10<A!K$4,A!K$2+A!K$3*(3*A!C10/(2*A!K$4)-0.5*(A!C10/A!K$4)^3),A!K$3+A!K$2),"") ->  | G10: =IF(ISNUMBER(A!$C10),(B10-A!$D10)^2,"") ->  | H10: =IF(ISNUMBER(A!$C10),(C10-A!$D10)^2,"") ->  | I10: =IF(ISNUMBER(A!$C10),(D10-A!$D10)^2,"") ->  | J10: =IF(ISNUMBER(A!$C10),(E10-A!$D10)^2,"") ->  | K10: =IF(ISNUMBER(A!$C10),(F10-A!$D10)^2,"") ->  | M10: C | N10: -1e-07 | O10: -1e-07 | P10: -1e-07 | Q10: =MAX(A!D5:D44) -> 183 | R10: =M51 -> 1255 | S10: -1 | T10: -1 | U10: =(O21*(1+X10)/O20)/AVERAGE(P9,U9) -> -0.01930434781 | V10: =(1-X8)*MAX(A!D5:D44) -> 91.5 | W10: 0 | X10: 0.3
A11: 7 | B11: =IF(ISNUMBER(A!C11),A!G$2+A!G$3*A!C11+A!G$4*A!C11^2,"") ->  | C11: =IF(ISNUMBER(A!C11),IF(A!C11<(A!H$3/(-2*A!H$4)),A!H$2+A!H$3*A!C11+A!H$4*A!C11^2,A!H$2+A!H$3*(A!H$3/(-2*A!H$4))+A!H$4*(A!H$3/(-2*A!H$4))^2),"") ->  | D11: =IF(ISNUMBER(A!C11),A!I$2+A!I$3*EXP(A!I$4*A!C11),"") ->  | E11: =IF(ISNUMBER(A!C11),IF((A!J$2+A!J$3*A!C11)<A!J$4,A!J$2+A!J$3*A!C11,A!J$4),"") ->  | F11: =IF(ISNUMBER(A!C11),IF(A!C11<A!K$4,A!K$2+A!K$3*(3*A!C11/(2*A!K$4)-0.5*(A!C11/A!K$4)^3),A!K$3+A!K$2),"") ->  | G11: =IF(ISNUMBER(A!$C11),(B11-A!$D11)^2,"") ->  | H11: =IF(ISNUMBER(A!$C11),(C11-A!$D11)^2,"") ->  | I11: =IF(ISNUMBER(A!$C11),(D11-A!$D11)^2,"") ->  | J11: =IF(ISNUMBER(A!$C11),(E11-A!$D11)^2,"") ->  | K11: =IF(ISNUMBER(A!$C11),(F11-A!$D11)^2,"") -> 
A12: 8 | B12: =IF(ISNUMBER(A!C12),A!G$2+A!G$3*A!C12+A!G$4*A!C12^2,"") ->  | C12: =IF(ISNUMBER(A!C12),IF(A!C12<(A!H$3/(-2*A!H$4)),A!H$2+A!H$3*A!C12+A!H$4*A!C12^2,A!H$2+A!H$3*(A!H$3/(-2*A!H$4))+A!H$4*(A!H$3/(-2*A!H$4))^2),"") ->  | D12: =IF(ISNUMBER(A!C12),A!I$2+A!I$3*EXP(A!I$4*A!C12),"") ->  | E12: =IF(ISNUMBER(A!C12),IF((A!J$2+A!J$3*A!C12)<A!J$4,A!J$2+A!J$3*A!C12,A!J$4),"") ->  | F12: =IF(ISNUMBER(A!C12),IF(A!C12<A!K$4,A!K$2+A!K$3*(3*A!C12/(2*A!K$4)-0.5*(A!C12/A!K$4)^3),A!K$3+A!K$2),"") ->  | G12: =IF(ISNUMBER(A!$C12),(B12-A!$D12)^2,"") ->  | H12: =IF(ISNUMBER(A!$C12),(C12-A!$D12)^2,"") ->  | I12: =IF(ISNUMBER(A!$C12),(D12-A!$D12)^2,"") ->  | J12: =IF(ISNUMBER(A!$C12),(E12-A!$D12)^2,"") ->  | K12: =IF(ISNUMBER(A!$C12),(F12-A!$D12)^2,"") -> 
A13: 9 | B13: =IF(ISNUMBER(A!C13),A!G$2+A!G$3*A!C13+A!G$4*A!C13^2,"") ->  | C13: =IF(ISNUMBER(A!C13),IF(A!C13<(A!H$3/(-2*A!H$4)),A!H$2+A!H$3*A!C13+A!H$4*A!C13^2,A!H$2+A!H$3*(A!H$3/(-2*A!H$4))+A!H$4*(A!H$3/(-2*A!H$4))^2),"") ->  | D13: =IF(ISNUMBER(A!C13),A!I$2+A!I$3*EXP(A!I$4*A!C13),"") ->  | E13: =IF(ISNUMBER(A!C13),IF((A!J$2+A!J$3*A!C13)<A!J$4,A!J$2+A!J$3*A!C13,A!J$4),"") ->  | F13: =IF(ISNUMBER(A!C13),IF(A!C13<A!K$4,A!K$2+A!K$3*(3*A!C13/(2*A!K$4)-0.5*(A!C13/A!K$4)^3),A!K$3+A!K$2),"") ->  | G13: =IF(ISNUMBER(A!$C13),(B13-A!$D13)^2,"") ->  | H13: =IF(ISNUMBER(A!$C13),(C13-A!$D13)^2,"") ->  | I13: =IF(ISNUMBER(A!$C13),(D13-A!$D13)^2,"") ->  | J13: =IF(ISNUMBER(A!$C13),(E13-A!$D13)^2,"") ->  | K13: =IF(ISNUMBER(A!$C13),(F13-A!$D13)^2,"") ->  | N13: Data for Graph:
A14: 10 | B14: =IF(ISNUMBER(A!C14),A!G$2+A!G$3*A!C14+A!G$4*A!C14^2,"") ->  | C14: =IF(ISNUMBER(A!C14),IF(A!C14<(A!H$3/(-2*A!H$4)),A!H$2+A!H$3*A!C14+A!H$4*A!C14^2,A!H$2+A!H$3*(A!H$3/(-2*A!H$4))+A!H$4*(A!H$3/(-2*A!H$4))^2),"") ->  | D14: =IF(ISNUMBER(A!C14),A!I$2+A!I$3*EXP(A!I$4*A!C14),"") ->  | E14: =IF(ISNUMBER(A!C14),IF((A!J$2+A!J$3*A!C14)<A!J$4,A!J$2+A!J$3*A!C14,A!J$4),"") ->  | F14: =IF(ISNUMBER(A!C14),IF(A!C14<A!K$4,A!K$2+A!K$3*(3*A!C14/(2*A!K$4)-0.5*(A!C14/A!K$4)^3),A!K$3+A!K$2),"") ->  | G14: =IF(ISNUMBER(A!$C14),(B14-A!$D14)^2,"") ->  | H14: =IF(ISNUMBER(A!$C14),(C14-A!$D14)^2,"") ->  | I14: =IF(ISNUMBER(A!$C14),(D14-A!$D14)^2,"") ->  | J14: =IF(ISNUMBER(A!$C14),(E14-A!$D14)^2,"") ->  | K14: =IF(ISNUMBER(A!$C14),(F14-A!$D14)^2,"") ->  | N14: Most Economic Rate | S14: Yield at Most Economic Rate | X14: Mean | Y14: Mean
A15: 11 | B15: =IF(ISNUMBER(A!C15),A!G$2+A!G$3*A!C15+A!G$4*A!C15^2,"") ->  | C15: =IF(ISNUMBER(A!C15),IF(A!C15<(A!H$3/(-2*A!H$4)),A!H$2+A!H$3*A!C15+A!H$4*A!C15^2,A!H$2+A!H$3*(A!H$3/(-2*A!H$4))+A!H$4*(A!H$3/(-2*A!H$4))^2),"") ->  | D15: =IF(ISNUMBER(A!C15),A!I$2+A!I$3*EXP(A!I$4*A!C15),"") ->  | E15: =IF(ISNUMBER(A!C15),IF((A!J$2+A!J$3*A!C15)<A!J$4,A!J$2+A!J$3*A!C15,A!J$4),"") ->  | F15: =IF(ISNUMBER(A!C15),IF(A!C15<A!K$4,A!K$2+A!K$3*(3*A!C15/(2*A!K$4)-0.5*(A!C15/A!K$4)^3),A!K$3+A!K$2),"") ->  | G15: =IF(ISNUMBER(A!$C15),(B15-A!$D15)^2,"") ->  | H15: =IF(ISNUMBER(A!$C15),(C15-A!$D15)^2,"") ->  | I15: =IF(ISNUMBER(A!$C15),(D15-A!$D15)^2,"") ->  | J15: =IF(ISNUMBER(A!$C15),(E15-A!$D15)^2,"") ->  | K15: =IF(ISNUMBER(A!$C15),(F15-A!$D15)^2,"") ->  | N15: Q | O15: QP | P15: M | Q15: LP | R15: S | S15: Q | T15: QP | U15: M | V15: LP | W15: S | X15: MERN | Y15: Y@mern
A16: 12 | B16: =IF(ISNUMBER(A!C16),A!G$2+A!G$3*A!C16+A!G$4*A!C16^2,"") ->  | C16: =IF(ISNUMBER(A!C16),IF(A!C16<(A!H$3/(-2*A!H$4)),A!H$2+A!H$3*A!C16+A!H$4*A!C16^2,A!H$2+A!H$3*(A!H$3/(-2*A!H$4))+A!H$4*(A!H$3/(-2*A!H$4))^2),"") ->  | D16: =IF(ISNUMBER(A!C16),A!I$2+A!I$3*EXP(A!I$4*A!C16),"") ->  | E16: =IF(ISNUMBER(A!C16),IF((A!J$2+A!J$3*A!C16)<A!J$4,A!J$2+A!J$3*A!C16,A!J$4),"") ->  | F16: =IF(ISNUMBER(A!C16),IF(A!C16<A!K$4,A!K$2+A!K$3*(3*A!C16/(2*A!K$4)-0.5*(A!C16/A!K$4)^3),A!K$3+A!K$2),"") ->  | G16: =IF(ISNUMBER(A!$C16),(B16-A!$D16)^2,"") ->  | H16: =IF(ISNUMBER(A!$C16),(C16-A!$D16)^2,"") ->  | I16: =IF(ISNUMBER(A!$C16),(D16-A!$D16)^2,"") ->  | J16: =IF(ISNUMBER(A!$C16),(E16-A!$D16)^2,"") ->  | K16: =IF(ISNUMBER(A!$C16),(F16-A!$D16)^2,"") ->  | N16: =A!G6 -> 155.5307243 | O16: =A!H6 -> 145.6421787 | P16: =A!I6 -> 170.4714708 | Q16: =A!J6 -> 114.4442491 | R16: =A!K6 -> 133.2036902 | S16: 0 | T16: 0 | U16: 0 | V16: 0 | W16: 0 | X16: =A!$F$6 -> 146.7911477 | Y16: 0
A17: 13 | B17: =IF(ISNUMBER(A!C17),A!G$2+A!G$3*A!C17+A!G$4*A!C17^2,"") ->  | C17: =IF(ISNUMBER(A!C17),IF(A!C17<(A!H$3/(-2*A!H$4)),A!H$2+A!H$3*A!C17+A!H$4*A!C17^2,A!H$2+A!H$3*(A!H$3/(-2*A!H$4))+A!H$4*(A!H$3/(-2*A!H$4))^2),"") ->  | D17: =IF(ISNUMBER(A!C17),A!I$2+A!I$3*EXP(A!I$4*A!C17),"") ->  | E17: =IF(ISNUMBER(A!C17),IF((A!J$2+A!J$3*A!C17)<A!J$4,A!J$2+A!J$3*A!C17,A!J$4),"") ->  | F17: =IF(ISNUMBER(A!C17),IF(A!C17<A!K$4,A!K$2+A!K$3*(3*A!C17/(2*A!K$4)-0.5*(A!C17/A!K$4)^3),A!K$3+A!K$2),"") ->  | G17: =IF(ISNUMBER(A!$C17),(B17-A!$D17)^2,"") ->  | H17: =IF(ISNUMBER(A!$C17),(C17-A!$D17)^2,"") ->  | I17: =IF(ISNUMBER(A!$C17),(D17-A!$D17)^2,"") ->  | J17: =IF(ISNUMBER(A!$C17),(E17-A!$D17)^2,"") ->  | K17: =IF(ISNUMBER(A!$C17),(F17-A!$D17)^2,"") ->  | N17: =N16 -> 155.5307243 | O17: =A!H6 -> 145.6421787 | P17: =A!I6 -> 170.4714708 | Q17: =A!J6 -> 114.4442491 | R17: =A!K6 -> 133.2036902 | S17: =A!G7 -> 181.2983464 | T17: =A!H7 -> 179.2221989 | U17: =A!I7 -> 180.0078967 | V17: =A!J7 -> 179.9999493 | W17: =A!K7 -> 178.8275749 | X17: =X16 -> 146.7911477 | Y17: =A!$F$7 -> 178.4831489
A18: 14 | B18: =IF(ISNUMBER(A!C18),A!G$2+A!G$3*A!C18+A!G$4*A!C18^2,"") ->  | C18: =IF(ISNUMBER(A!C18),IF(A!C18<(A!H$3/(-2*A!H$4)),A!H$2+A!H$3*A!C18+A!H$4*A!C18^2,A!H$2+A!H$3*(A!H$3/(-2*A!H$4))+A!H$4*(A!H$3/(-2*A!H$4))^2),"") ->  | D18: =IF(ISNUMBER(A!C18),A!I$2+A!I$3*EXP(A!I$4*A!C18),"") ->  | E18: =IF(ISNUMBER(A!C18),IF((A!J$2+A!J$3*A!C18)<A!J$4,A!J$2+A!J$3*A!C18,A!J$4),"") ->  | F18: =IF(ISNUMBER(A!C18),IF(A!C18<A!K$4,A!K$2+A!K$3*(3*A!C18/(2*A!K$4)-0.5*(A!C18/A!K$4)^3),A!K$3+A!K$2),"") ->  | G18: =IF(ISNUMBER(A!$C18),(B18-A!$D18)^2,"") ->  | H18: =IF(ISNUMBER(A!$C18),(C18-A!$D18)^2,"") ->  | I18: =IF(ISNUMBER(A!$C18),(D18-A!$D18)^2,"") ->  | J18: =IF(ISNUMBER(A!$C18),(E18-A!$D18)^2,"") ->  | K18: =IF(ISNUMBER(A!$C18),(F18-A!$D18)^2,"") -> 
A19: 15 | B19: =IF(ISNUMBER(A!C19),A!G$2+A!G$3*A!C19+A!G$4*A!C19^2,"") ->  | C19: =IF(ISNUMBER(A!C19),IF(A!C19<(A!H$3/(-2*A!H$4)),A!H$2+A!H$3*A!C19+A!H$4*A!C19^2,A!H$2+A!H$3*(A!H$3/(-2*A!H$4))+A!H$4*(A!H$3/(-2*A!H$4))^2),"") ->  | D19: =IF(ISNUMBER(A!C19),A!I$2+A!I$3*EXP(A!I$4*A!C19),"") ->  | E19: =IF(ISNUMBER(A!C19),IF((A!J$2+A!J$3*A!C19)<A!J$4,A!J$2+A!J$3*A!C19,A!J$4),"") ->  | F19: =IF(ISNUMBER(A!C19),IF(A!C19<A!K$4,A!K$2+A!K$3*(3*A!C19/(2*A!K$4)-0.5*(A!C19/A!K$4)^3),A!K$3+A!K$2),"") ->  | G19: =IF(ISNUMBER(A!$C19),(B19-A!$D19)^2,"") ->  | H19: =IF(ISNUMBER(A!$C19),(C19-A!$D19)^2,"") ->  | I19: =IF(ISNUMBER(A!$C19),(D19-A!$D19)^2,"") ->  | J19: =IF(ISNUMBER(A!$C19),(E19-A!$D19)^2,"") ->  | K19: =IF(ISNUMBER(A!$C19),(F19-A!$D19)^2,"") -> 
A20: 16 | B20: =IF(ISNUMBER(A!C20),A!G$2+A!G$3*A!C20+A!G$4*A!C20^2,"") ->  | C20: =IF(ISNUMBER(A!C20),IF(A!C20<(A!H$3/(-2*A!H$4)),A!H$2+A!H$3*A!C20+A!H$4*A!C20^2,A!H$2+A!H$3*(A!H$3/(-2*A!H$4))+A!H$4*(A!H$3/(-2*A!H$4))^2),"") ->  | D20: =IF(ISNUMBER(A!C20),A!I$2+A!I$3*EXP(A!I$4*A!C20),"") ->  | E20: =IF(ISNUMBER(A!C20),IF((A!J$2+A!J$3*A!C20)<A!J$4,A!J$2+A!J$3*A!C20,A!J$4),"") ->  | F20: =IF(ISNUMBER(A!C20),IF(A!C20<A!K$4,A!K$2+A!K$3*(3*A!C20/(2*A!K$4)-0.5*(A!C20/A!K$4)^3),A!K$3+A!K$2),"") ->  | G20: =IF(ISNUMBER(A!$C20),(B20-A!$D20)^2,"") ->  | H20: =IF(ISNUMBER(A!$C20),(C20-A!$D20)^2,"") ->  | I20: =IF(ISNUMBER(A!$C20),(D20-A!$D20)^2,"") ->  | J20: =IF(ISNUMBER(A!$C20),(E20-A!$D20)^2,"") ->  | K20: =IF(ISNUMBER(A!$C20),(F20-A!$D20)^2,"") ->  | N20: Nutrient content (lb/bu): | O20: =A!B30 -> 0.65 | P20: These two cells, carried from page A, set constraints on initial slope
A21: 17 | B21: =IF(ISNUMBER(A!C21),A!G$2+A!G$3*A!C21+A!G$4*A!C21^2,"") ->  | C21: =IF(ISNUMBER(A!C21),IF(A!C21<(A!H$3/(-2*A!H$4)),A!H$2+A!H$3*A!C21+A!H$4*A!C21^2,A!H$2+A!H$3*(A!H$3/(-2*A!H$4))+A!H$4*(A!H$3/(-2*A!H$4))^2),"") ->  | D21: =IF(ISNUMBER(A!C21),A!I$2+A!I$3*EXP(A!I$4*A!C21),"") ->  | E21: =IF(ISNUMBER(A!C21),IF((A!J$2+A!J$3*A!C21)<A!J$4,A!J$2+A!J$3*A!C21,A!J$4),"") ->  | F21: =IF(ISNUMBER(A!C21),IF(A!C21<A!K$4,A!K$2+A!K$3*(3*A!C21/(2*A!K$4)-0.5*(A!C21/A!K$4)^3),A!K$3+A!K$2),"") ->  | G21: =IF(ISNUMBER(A!$C21),(B21-A!$D21)^2,"") ->  | H21: =IF(ISNUMBER(A!$C21),(C21-A!$D21)^2,"") ->  | I21: =IF(ISNUMBER(A!$C21),(D21-A!$D21)^2,"") ->  | J21: =IF(ISNUMBER(A!$C21),(E21-A!$D21)^2,"") ->  | K21: =IF(ISNUMBER(A!$C21),(F21-A!$D21)^2,"") ->  | N21: NHI: | O21: =A!B31 -> 0.666 | P21: assuming maximum efficiency (REN) is 100% + fitting tolerance.
A22: 18 | B22: =IF(ISNUMBER(A!C22),A!G$2+A!G$3*A!C22+A!G$4*A!C22^2,"") ->  | C22: =IF(ISNUMBER(A!C22),IF(A!C22<(A!H$3/(-2*A!H$4)),A!H$2+A!H$3*A!C22+A!H$4*A!C22^2,A!H$2+A!H$3*(A!H$3/(-2*A!H$4))+A!H$4*(A!H$3/(-2*A!H$4))^2),"") ->  | D22: =IF(ISNUMBER(A!C22),A!I$2+A!I$3*EXP(A!I$4*A!C22),"") ->  | E22: =IF(ISNUMBER(A!C22),IF((A!J$2+A!J$3*A!C22)<A!J$4,A!J$2+A!J$3*A!C22,A!J$4),"") ->  | F22: =IF(ISNUMBER(A!C22),IF(A!C22<A!K$4,A!K$2+A!K$3*(3*A!C22/(2*A!K$4)-0.5*(A!C22/A!K$4)^3),A!K$3+A!K$2),"") ->  | G22: =IF(ISNUMBER(A!$C22),(B22-A!$D22)^2,"") ->  | H22: =IF(ISNUMBER(A!$C22),(C22-A!$D22)^2,"") ->  | I22: =IF(ISNUMBER(A!$C22),(D22-A!$D22)^2,"") ->  | J22: =IF(ISNUMBER(A!$C22),(E22-A!$D22)^2,"") ->  | K22: =IF(ISNUMBER(A!$C22),(F22-A!$D22)^2,"") -> 
A23: 19 | B23: =IF(ISNUMBER(A!C23),A!G$2+A!G$3*A!C23+A!G$4*A!C23^2,"") ->  | C23: =IF(ISNUMBER(A!C23),IF(A!C23<(A!H$3/(-2*A!H$4)),A!H$2+A!H$3*A!C23+A!H$4*A!C23^2,A!H$2+A!H$3*(A!H$3/(-2*A!H$4))+A!H$4*(A!H$3/(-2*A!H$4))^2),"") ->  | D23: =IF(ISNUMBER(A!C23),A!I$2+A!I$3*EXP(A!I$4*A!C23),"") ->  | E23: =IF(ISNUMBER(A!C23),IF((A!J$2+A!J$3*A!C23)<A!J$4,A!J$2+A!J$3*A!C23,A!J$4),"") ->  | F23: =IF(ISNUMBER(A!C23),IF(A!C23<A!K$4,A!K$2+A!K$3*(3*A!C23/(2*A!K$4)-0.5*(A!C23/A!K$4)^3),A!K$3+A!K$2),"") ->  | G23: =IF(ISNUMBER(A!$C23),(B23-A!$D23)^2,"") ->  | H23: =IF(ISNUMBER(A!$C23),(C23-A!$D23)^2,"") ->  | I23: =IF(ISNUMBER(A!$C23),(D23-A!$D23)^2,"") ->  | J23: =IF(ISNUMBER(A!$C23),(E23-A!$D23)^2,"") ->  | K23: =IF(ISNUMBER(A!$C23),(F23-A!$D23)^2,"") -> 
A24: 20 | B24: =IF(ISNUMBER(A!C24),A!G$2+A!G$3*A!C24+A!G$4*A!C24^2,"") ->  | C24: =IF(ISNUMBER(A!C24),IF(A!C24<(A!H$3/(-2*A!H$4)),A!H$2+A!H$3*A!C24+A!H$4*A!C24^2,A!H$2+A!H$3*(A!H$3/(-2*A!H$4))+A!H$4*(A!H$3/(-2*A!H$4))^2),"") ->  | D24: =IF(ISNUMBER(A!C24),A!I$2+A!I$3*EXP(A!I$4*A!C24),"") ->  | E24: =IF(ISNUMBER(A!C24),IF((A!J$2+A!J$3*A!C24)<A!J$4,A!J$2+A!J$3*A!C24,A!J$4),"") ->  | F24: =IF(ISNUMBER(A!C24),IF(A!C24<A!K$4,A!K$2+A!K$3*(3*A!C24/(2*A!K$4)-0.5*(A!C24/A!K$4)^3),A!K$3+A!K$2),"") ->  | G24: =IF(ISNUMBER(A!$C24),(B24-A!$D24)^2,"") ->  | H24: =IF(ISNUMBER(A!$C24),(C24-A!$D24)^2,"") ->  | I24: =IF(ISNUMBER(A!$C24),(D24-A!$D24)^2,"") ->  | J24: =IF(ISNUMBER(A!$C24),(E24-A!$D24)^2,"") ->  | K24: =IF(ISNUMBER(A!$C24),(F24-A!$D24)^2,"") -> 
A25: 21 | B25: =IF(ISNUMBER(A!C25),A!G$2+A!G$3*A!C25+A!G$4*A!C25^2,"") ->  | C25: =IF(ISNUMBER(A!C25),IF(A!C25<(A!H$3/(-2*A!H$4)),A!H$2+A!H$3*A!C25+A!H$4*A!C25^2,A!H$2+A!H$3*(A!H$3/(-2*A!H$4))+A!H$4*(A!H$3/(-2*A!H$4))^2),"") ->  | D25: =IF(ISNUMBER(A!C25),A!I$2+A!I$3*EXP(A!I$4*A!C25),"") ->  | E25: =IF(ISNUMBER(A!C25),IF((A!J$2+A!J$3*A!C25)<A!J$4,A!J$2+A!J$3*A!C25,A!J$4),"") ->  | F25: =IF(ISNUMBER(A!C25),IF(A!C25<A!K$4,A!K$2+A!K$3*(3*A!C25/(2*A!K$4)-0.5*(A!C25/A!K$4)^3),A!K$3+A!K$2),"") ->  | G25: =IF(ISNUMBER(A!$C25),(B25-A!$D25)^2,"") ->  | H25: =IF(ISNUMBER(A!$C25),(C25-A!$D25)^2,"") ->  | I25: =IF(ISNUMBER(A!$C25),(D25-A!$D25)^2,"") ->  | J25: =IF(ISNUMBER(A!$C25),(E25-A!$D25)^2,"") ->  | K25: =IF(ISNUMBER(A!$C25),(F25-A!$D25)^2,"") ->  | N25: Initialization
A26: 22 | B26: =IF(ISNUMBER(A!C26),A!G$2+A!G$3*A!C26+A!G$4*A!C26^2,"") ->  | C26: =IF(ISNUMBER(A!C26),IF(A!C26<(A!H$3/(-2*A!H$4)),A!H$2+A!H$3*A!C26+A!H$4*A!C26^2,A!H$2+A!H$3*(A!H$3/(-2*A!H$4))+A!H$4*(A!H$3/(-2*A!H$4))^2),"") ->  | D26: =IF(ISNUMBER(A!C26),A!I$2+A!I$3*EXP(A!I$4*A!C26),"") ->  | E26: =IF(ISNUMBER(A!C26),IF((A!J$2+A!J$3*A!C26)<A!J$4,A!J$2+A!J$3*A!C26,A!J$4),"") ->  | F26: =IF(ISNUMBER(A!C26),IF(A!C26<A!K$4,A!K$2+A!K$3*(3*A!C26/(2*A!K$4)-0.5*(A!C26/A!K$4)^3),A!K$3+A!K$2),"") ->  | G26: =IF(ISNUMBER(A!$C26),(B26-A!$D26)^2,"") ->  | H26: =IF(ISNUMBER(A!$C26),(C26-A!$D26)^2,"") ->  | I26: =IF(ISNUMBER(A!$C26),(D26-A!$D26)^2,"") ->  | J26: =IF(ISNUMBER(A!$C26),(E26-A!$D26)^2,"") ->  | K26: =IF(ISNUMBER(A!$C26),(F26-A!$D26)^2,"") ->  | N26: Mean
A27: 23 | B27: =IF(ISNUMBER(A!C27),A!G$2+A!G$3*A!C27+A!G$4*A!C27^2,"") ->  | C27: =IF(ISNUMBER(A!C27),IF(A!C27<(A!H$3/(-2*A!H$4)),A!H$2+A!H$3*A!C27+A!H$4*A!C27^2,A!H$2+A!H$3*(A!H$3/(-2*A!H$4))+A!H$4*(A!H$3/(-2*A!H$4))^2),"") ->  | D27: =IF(ISNUMBER(A!C27),A!I$2+A!I$3*EXP(A!I$4*A!C27),"") ->  | E27: =IF(ISNUMBER(A!C27),IF((A!J$2+A!J$3*A!C27)<A!J$4,A!J$2+A!J$3*A!C27,A!J$4),"") ->  | F27: =IF(ISNUMBER(A!C27),IF(A!C27<A!K$4,A!K$2+A!K$3*(3*A!C27/(2*A!K$4)-0.5*(A!C27/A!K$4)^3),A!K$3+A!K$2),"") ->  | G27: =IF(ISNUMBER(A!$C27),(B27-A!$D27)^2,"") ->  | H27: =IF(ISNUMBER(A!$C27),(C27-A!$D27)^2,"") ->  | I27: =IF(ISNUMBER(A!$C27),(D27-A!$D27)^2,"") ->  | J27: =IF(ISNUMBER(A!$C27),(E27-A!$D27)^2,"") ->  | K27: =IF(ISNUMBER(A!$C27),(F27-A!$D27)^2,"") ->  | N27: Q | O27: QP | P27: M | Q27: LP | R27: S
A28: 24 | B28: =IF(ISNUMBER(A!C28),A!G$2+A!G$3*A!C28+A!G$4*A!C28^2,"") ->  | C28: =IF(ISNUMBER(A!C28),IF(A!C28<(A!H$3/(-2*A!H$4)),A!H$2+A!H$3*A!C28+A!H$4*A!C28^2,A!H$2+A!H$3*(A!H$3/(-2*A!H$4))+A!H$4*(A!H$3/(-2*A!H$4))^2),"") ->  | D28: =IF(ISNUMBER(A!C28),A!I$2+A!I$3*EXP(A!I$4*A!C28),"") ->  | E28: =IF(ISNUMBER(A!C28),IF((A!J$2+A!J$3*A!C28)<A!J$4,A!J$2+A!J$3*A!C28,A!J$4),"") ->  | F28: =IF(ISNUMBER(A!C28),IF(A!C28<A!K$4,A!K$2+A!K$3*(3*A!C28/(2*A!K$4)-0.5*(A!C28/A!K$4)^3),A!K$3+A!K$2),"") ->  | G28: =IF(ISNUMBER(A!$C28),(B28-A!$D28)^2,"") ->  | H28: =IF(ISNUMBER(A!$C28),(C28-A!$D28)^2,"") ->  | I28: =IF(ISNUMBER(A!$C28),(D28-A!$D28)^2,"") ->  | J28: =IF(ISNUMBER(A!$C28),(E28-A!$D28)^2,"") ->  | K28: =IF(ISNUMBER(A!$C28),(F28-A!$D28)^2,"") ->  | M28: A | N28: =AVERAGE(N8,S8) -> 90 | O28: =N28 -> 90 | P28: =AVERAGE(P8,U8) -> 183 | Q28: 90 | R28: 90
A29: 25 | B29: =IF(ISNUMBER(A!C29),A!G$2+A!G$3*A!C29+A!G$4*A!C29^2,"") ->  | C29: =IF(ISNUMBER(A!C29),IF(A!C29<(A!H$3/(-2*A!H$4)),A!H$2+A!H$3*A!C29+A!H$4*A!C29^2,A!H$2+A!H$3*(A!H$3/(-2*A!H$4))+A!H$4*(A!H$3/(-2*A!H$4))^2),"") ->  | D29: =IF(ISNUMBER(A!C29),A!I$2+A!I$3*EXP(A!I$4*A!C29),"") ->  | E29: =IF(ISNUMBER(A!C29),IF((A!J$2+A!J$3*A!C29)<A!J$4,A!J$2+A!J$3*A!C29,A!J$4),"") ->  | F29: =IF(ISNUMBER(A!C29),IF(A!C29<A!K$4,A!K$2+A!K$3*(3*A!C29/(2*A!K$4)-0.5*(A!C29/A!K$4)^3),A!K$3+A!K$2),"") ->  | G29: =IF(ISNUMBER(A!$C29),(B29-A!$D29)^2,"") ->  | H29: =IF(ISNUMBER(A!$C29),(C29-A!$D29)^2,"") ->  | I29: =IF(ISNUMBER(A!$C29),(D29-A!$D29)^2,"") ->  | J29: =IF(ISNUMBER(A!$C29),(E29-A!$D29)^2,"") ->  | K29: =IF(ISNUMBER(A!$C29),(F29-A!$D29)^2,"") ->  | M29: B | N29: =AVERAGE(N9,S9) -> 0.7684615385 | O29: =N29 -> 0.7684615385 | P29: -69.00000005 | Q29: 0.6403846154 | R29: 69.00000005
A30: 26 | B30: =IF(ISNUMBER(A!C30),A!G$2+A!G$3*A!C30+A!G$4*A!C30^2,"") ->  | C30: =IF(ISNUMBER(A!C30),IF(A!C30<(A!H$3/(-2*A!H$4)),A!H$2+A!H$3*A!C30+A!H$4*A!C30^2,A!H$2+A!H$3*(A!H$3/(-2*A!H$4))+A!H$4*(A!H$3/(-2*A!H$4))^2),"") ->  | D30: =IF(ISNUMBER(A!C30),A!I$2+A!I$3*EXP(A!I$4*A!C30),"") ->  | E30: =IF(ISNUMBER(A!C30),IF((A!J$2+A!J$3*A!C30)<A!J$4,A!J$2+A!J$3*A!C30,A!J$4),"") ->  | F30: =IF(ISNUMBER(A!C30),IF(A!C30<A!K$4,A!K$2+A!K$3*(3*A!C30/(2*A!K$4)-0.5*(A!C30/A!K$4)^3),A!K$3+A!K$2),"") ->  | G30: =IF(ISNUMBER(A!$C30),(B30-A!$D30)^2,"") ->  | H30: =IF(ISNUMBER(A!$C30),(C30-A!$D30)^2,"") ->  | I30: =IF(ISNUMBER(A!$C30),(D30-A!$D30)^2,"") ->  | J30: =IF(ISNUMBER(A!$C30),(E30-A!$D30)^2,"") ->  | K30: =IF(ISNUMBER(A!$C30),(F30-A!$D30)^2,"") ->  | M30: C | N30: =AVERAGE(N10,S10)/10 -> -0.050000005 | O30: =N30 -> -0.050000005 | P30: =AVERAGE(P10,U10) -> -0.009652223906 | Q30: =AVERAGE(Q10,V10) -> 137.25 | R30: =M48 -> 200
A31: 27 | B31: =IF(ISNUMBER(A!C31),A!G$2+A!G$3*A!C31+A!G$4*A!C31^2,"") ->  | C31: =IF(ISNUMBER(A!C31),IF(A!C31<(A!H$3/(-2*A!H$4)),A!H$2+A!H$3*A!C31+A!H$4*A!C31^2,A!H$2+A!H$3*(A!H$3/(-2*A!H$4))+A!H$4*(A!H$3/(-2*A!H$4))^2),"") ->  | D31: =IF(ISNUMBER(A!C31),A!I$2+A!I$3*EXP(A!I$4*A!C31),"") ->  | E31: =IF(ISNUMBER(A!C31),IF((A!J$2+A!J$3*A!C31)<A!J$4,A!J$2+A!J$3*A!C31,A!J$4),"") ->  | F31: =IF(ISNUMBER(A!C31),IF(A!C31<A!K$4,A!K$2+A!K$3*(3*A!C31/(2*A!K$4)-0.5*(A!C31/A!K$4)^3),A!K$3+A!K$2),"") ->  | G31: =IF(ISNUMBER(A!$C31),(B31-A!$D31)^2,"") ->  | H31: =IF(ISNUMBER(A!$C31),(C31-A!$D31)^2,"") ->  | I31: =IF(ISNUMBER(A!$C31),(D31-A!$D31)^2,"") ->  | J31: =IF(ISNUMBER(A!$C31),(E31-A!$D31)^2,"") ->  | K31: =IF(ISNUMBER(A!$C31),(F31-A!$D31)^2,"") -> 
A32: 28 | B32: =IF(ISNUMBER(A!C32),A!G$2+A!G$3*A!C32+A!G$4*A!C32^2,"") ->  | C32: =IF(ISNUMBER(A!C32),IF(A!C32<(A!H$3/(-2*A!H$4)),A!H$2+A!H$3*A!C32+A!H$4*A!C32^2,A!H$2+A!H$3*(A!H$3/(-2*A!H$4))+A!H$4*(A!H$3/(-2*A!H$4))^2),"") ->  | D32: =IF(ISNUMBER(A!C32),A!I$2+A!I$3*EXP(A!I$4*A!C32),"") ->  | E32: =IF(ISNUMBER(A!C32),IF((A!J$2+A!J$3*A!C32)<A!J$4,A!J$2+A!J$3*A!C32,A!J$4),"") ->  | F32: =IF(ISNUMBER(A!C32),IF(A!C32<A!K$4,A!K$2+A!K$3*(3*A!C32/(2*A!K$4)-0.5*(A!C32/A!K$4)^3),A!K$3+A!K$2),"") ->  | G32: =IF(ISNUMBER(A!$C32),(B32-A!$D32)^2,"") ->  | H32: =IF(ISNUMBER(A!$C32),(C32-A!$D32)^2,"") ->  | I32: =IF(ISNUMBER(A!$C32),(D32-A!$D32)^2,"") ->  | J32: =IF(ISNUMBER(A!$C32),(E32-A!$D32)^2,"") ->  | K32: =IF(ISNUMBER(A!$C32),(F32-A!$D32)^2,"") -> 
A33: 29 | B33: =IF(ISNUMBER(A!C33),A!G$2+A!G$3*A!C33+A!G$4*A!C33^2,"") ->  | C33: =IF(ISNUMBER(A!C33),IF(A!C33<(A!H$3/(-2*A!H$4)),A!H$2+A!H$3*A!C33+A!H$4*A!C33^2,A!H$2+A!H$3*(A!H$3/(-2*A!H$4))+A!H$4*(A!H$3/(-2*A!H$4))^2),"") ->  | D33: =IF(ISNUMBER(A!C33),A!I$2+A!I$3*EXP(A!I$4*A!C33),"") ->  | E33: =IF(ISNUMBER(A!C33),IF((A!J$2+A!J$3*A!C33)<A!J$4,A!J$2+A!J$3*A!C33,A!J$4),"") ->  | F33: =IF(ISNUMBER(A!C33),IF(A!C33<A!K$4,A!K$2+A!K$3*(3*A!C33/(2*A!K$4)-0.5*(A!C33/A!K$4)^3),A!K$3+A!K$2),"") ->  | G33: =IF(ISNUMBER(A!$C33),(B33-A!$D33)^2,"") ->  | H33: =IF(ISNUMBER(A!$C33),(C33-A!$D33)^2,"") ->  | I33: =IF(ISNUMBER(A!$C33),(D33-A!$D33)^2,"") ->  | J33: =IF(ISNUMBER(A!$C33),(E33-A!$D33)^2,"") ->  | K33: =IF(ISNUMBER(A!$C33),(F33-A!$D33)^2,"") -> 
A34: 30 | B34: =IF(ISNUMBER(A!C34),A!G$2+A!G$3*A!C34+A!G$4*A!C34^2,"") ->  | C34: =IF(ISNUMBER(A!C34),IF(A!C34<(A!H$3/(-2*A!H$4)),A!H$2+A!H$3*A!C34+A!H$4*A!C34^2,A!H$2+A!H$3*(A!H$3/(-2*A!H$4))+A!H$4*(A!H$3/(-2*A!H$4))^2),"") ->  | D34: =IF(ISNUMBER(A!C34),A!I$2+A!I$3*EXP(A!I$4*A!C34),"") ->  | E34: =IF(ISNUMBER(A!C34),IF((A!J$2+A!J$3*A!C34)<A!J$4,A!J$2+A!J$3*A!C34,A!J$4),"") ->  | F34: =IF(ISNUMBER(A!C34),IF(A!C34<A!K$4,A!K$2+A!K$3*(3*A!C34/(2*A!K$4)-0.5*(A!C34/A!K$4)^3),A!K$3+A!K$2),"") ->  | G34: =IF(ISNUMBER(A!$C34),(B34-A!$D34)^2,"") ->  | H34: =IF(ISNUMBER(A!$C34),(C34-A!$D34)^2,"") ->  | I34: =IF(ISNUMBER(A!$C34),(D34-A!$D34)^2,"") ->  | J34: =IF(ISNUMBER(A!$C34),(E34-A!$D34)^2,"") ->  | K34: =IF(ISNUMBER(A!$C34),(F34-A!$D34)^2,"") -> 
A35: 31 | B35: =IF(ISNUMBER(A!C35),A!G$2+A!G$3*A!C35+A!G$4*A!C35^2,"") ->  | C35: =IF(ISNUMBER(A!C35),IF(A!C35<(A!H$3/(-2*A!H$4)),A!H$2+A!H$3*A!C35+A!H$4*A!C35^2,A!H$2+A!H$3*(A!H$3/(-2*A!H$4))+A!H$4*(A!H$3/(-2*A!H$4))^2),"") ->  | D35: =IF(ISNUMBER(A!C35),A!I$2+A!I$3*EXP(A!I$4*A!C35),"") ->  | E35: =IF(ISNUMBER(A!C35),IF((A!J$2+A!J$3*A!C35)<A!J$4,A!J$2+A!J$3*A!C35,A!J$4),"") ->  | F35: =IF(ISNUMBER(A!C35),IF(A!C35<A!K$4,A!K$2+A!K$3*(3*A!C35/(2*A!K$4)-0.5*(A!C35/A!K$4)^3),A!K$3+A!K$2),"") ->  | G35: =IF(ISNUMBER(A!$C35),(B35-A!$D35)^2,"") ->  | H35: =IF(ISNUMBER(A!$C35),(C35-A!$D35)^2,"") ->  | I35: =IF(ISNUMBER(A!$C35),(D35-A!$D35)^2,"") ->  | J35: =IF(ISNUMBER(A!$C35),(E35-A!$D35)^2,"") ->  | K35: =IF(ISNUMBER(A!$C35),(F35-A!$D35)^2,"") -> 
A36: 32 | B36: =IF(ISNUMBER(A!C36),A!G$2+A!G$3*A!C36+A!G$4*A!C36^2,"") ->  | C36: =IF(ISNUMBER(A!C36),IF(A!C36<(A!H$3/(-2*A!H$4)),A!H$2+A!H$3*A!C36+A!H$4*A!C36^2,A!H$2+A!H$3*(A!H$3/(-2*A!H$4))+A!H$4*(A!H$3/(-2*A!H$4))^2),"") ->  | D36: =IF(ISNUMBER(A!C36),A!I$2+A!I$3*EXP(A!I$4*A!C36),"") ->  | E36: =IF(ISNUMBER(A!C36),IF((A!J$2+A!J$3*A!C36)<A!J$4,A!J$2+A!J$3*A!C36,A!J$4),"") ->  | F36: =IF(ISNUMBER(A!C36),IF(A!C36<A!K$4,A!K$2+A!K$3*(3*A!C36/(2*A!K$4)-0.5*(A!C36/A!K$4)^3),A!K$3+A!K$2),"") ->  | G36: =IF(ISNUMBER(A!$C36),(B36-A!$D36)^2,"") ->  | H36: =IF(ISNUMBER(A!$C36),(C36-A!$D36)^2,"") ->  | I36: =IF(ISNUMBER(A!$C36),(D36-A!$D36)^2,"") ->  | J36: =IF(ISNUMBER(A!$C36),(E36-A!$D36)^2,"") ->  | K36: =IF(ISNUMBER(A!$C36),(F36-A!$D36)^2,"") -> 
A37: 33 | B37: =IF(ISNUMBER(A!C37),A!G$2+A!G$3*A!C37+A!G$4*A!C37^2,"") ->  | C37: =IF(ISNUMBER(A!C37),IF(A!C37<(A!H$3/(-2*A!H$4)),A!H$2+A!H$3*A!C37+A!H$4*A!C37^2,A!H$2+A!H$3*(A!H$3/(-2*A!H$4))+A!H$4*(A!H$3/(-2*A!H$4))^2),"") ->  | D37: =IF(ISNUMBER(A!C37),A!I$2+A!I$3*EXP(A!I$4*A!C37),"") ->  | E37: =IF(ISNUMBER(A!C37),IF((A!J$2+A!J$3*A!C37)<A!J$4,A!J$2+A!J$3*A!C37,A!J$4),"") ->  | F37: =IF(ISNUMBER(A!C37),IF(A!C37<A!K$4,A!K$2+A!K$3*(3*A!C37/(2*A!K$4)-0.5*(A!C37/A!K$4)^3),A!K$3+A!K$2),"") ->  | G37: =IF(ISNUMBER(A!$C37),(B37-A!$D37)^2,"") ->  | H37: =IF(ISNUMBER(A!$C37),(C37-A!$D37)^2,"") ->  | I37: =IF(ISNUMBER(A!$C37),(D37-A!$D37)^2,"") ->  | J37: =IF(ISNUMBER(A!$C37),(E37-A!$D37)^2,"") ->  | K37: =IF(ISNUMBER(A!$C37),(F37-A!$D37)^2,"") -> 
A38: 34 | B38: =IF(ISNUMBER(A!C38),A!G$2+A!G$3*A!C38+A!G$4*A!C38^2,"") ->  | C38: =IF(ISNUMBER(A!C38),IF(A!C38<(A!H$3/(-2*A!H$4)),A!H$2+A!H$3*A!C38+A!H$4*A!C38^2,A!H$2+A!H$3*(A!H$3/(-2*A!H$4))+A!H$4*(A!H$3/(-2*A!H$4))^2),"") ->  | D38: =IF(ISNUMBER(A!C38),A!I$2+A!I$3*EXP(A!I$4*A!C38),"") ->  | E38: =IF(ISNUMBER(A!C38),IF((A!J$2+A!J$3*A!C38)<A!J$4,A!J$2+A!J$3*A!C38,A!J$4),"") ->  | F38: =IF(ISNUMBER(A!C38),IF(A!C38<A!K$4,A!K$2+A!K$3*(3*A!C38/(2*A!K$4)-0.5*(A!C38/A!K$4)^3),A!K$3+A!K$2),"") ->  | G38: =IF(ISNUMBER(A!$C38),(B38-A!$D38)^2,"") ->  | H38: =IF(ISNUMBER(A!$C38),(C38-A!$D38)^2,"") ->  | I38: =IF(ISNUMBER(A!$C38),(D38-A!$D38)^2,"") ->  | J38: =IF(ISNUMBER(A!$C38),(E38-A!$D38)^2,"") ->  | K38: =IF(ISNUMBER(A!$C38),(F38-A!$D38)^2,"") -> 
A39: 35 | B39: =IF(ISNUMBER(A!C39),A!G$2+A!G$3*A!C39+A!G$4*A!C39^2,"") ->  | C39: =IF(ISNUMBER(A!C39),IF(A!C39<(A!H$3/(-2*A!H$4)),A!H$2+A!H$3*A!C39+A!H$4*A!C39^2,A!H$2+A!H$3*(A!H$3/(-2*A!H$4))+A!H$4*(A!H$3/(-2*A!H$4))^2),"") ->  | D39: =IF(ISNUMBER(A!C39),A!I$2+A!I$3*EXP(A!I$4*A!C39),"") ->  | E39: =IF(ISNUMBER(A!C39),IF((A!J$2+A!J$3*A!C39)<A!J$4,A!J$2+A!J$3*A!C39,A!J$4),"") ->  | F39: =IF(ISNUMBER(A!C39),IF(A!C39<A!K$4,A!K$2+A!K$3*(3*A!C39/(2*A!K$4)-0.5*(A!C39/A!K$4)^3),A!K$3+A!K$2),"") ->  | G39: =IF(ISNUMBER(A!$C39),(B39-A!$D39)^2,"") ->  | H39: =IF(ISNUMBER(A!$C39),(C39-A!$D39)^2,"") ->  | I39: =IF(ISNUMBER(A!$C39),(D39-A!$D39)^2,"") ->  | J39: =IF(ISNUMBER(A!$C39),(E39-A!$D39)^2,"") ->  | K39: =IF(ISNUMBER(A!$C39),(F39-A!$D39)^2,"") -> 
A40: 36 | B40: =IF(ISNUMBER(A!C40),A!G$2+A!G$3*A!C40+A!G$4*A!C40^2,"") ->  | C40: =IF(ISNUMBER(A!C40),IF(A!C40<(A!H$3/(-2*A!H$4)),A!H$2+A!H$3*A!C40+A!H$4*A!C40^2,A!H$2+A!H$3*(A!H$3/(-2*A!H$4))+A!H$4*(A!H$3/(-2*A!H$4))^2),"") ->  | D40: =IF(ISNUMBER(A!C40),A!I$2+A!I$3*EXP(A!I$4*A!C40),"") ->  | E40: =IF(ISNUMBER(A!C40),IF((A!J$2+A!J$3*A!C40)<A!J$4,A!J$2+A!J$3*A!C40,A!J$4),"") ->  | F40: =IF(ISNUMBER(A!C40),IF(A!C40<A!K$4,A!K$2+A!K$3*(3*A!C40/(2*A!K$4)-0.5*(A!C40/A!K$4)^3),A!K$3+A!K$2),"") ->  | G40: =IF(ISNUMBER(A!$C40),(B40-A!$D40)^2,"") ->  | H40: =IF(ISNUMBER(A!$C40),(C40-A!$D40)^2,"") ->  | I40: =IF(ISNUMBER(A!$C40),(D40-A!$D40)^2,"") ->  | J40: =IF(ISNUMBER(A!$C40),(E40-A!$D40)^2,"") ->  | K40: =IF(ISNUMBER(A!$C40),(F40-A!$D40)^2,"") -> 
A41: 37 | B41: =IF(ISNUMBER(A!C41),A!G$2+A!G$3*A!C41+A!G$4*A!C41^2,"") ->  | C41: =IF(ISNUMBER(A!C41),IF(A!C41<(A!H$3/(-2*A!H$4)),A!H$2+A!H$3*A!C41+A!H$4*A!C41^2,A!H$2+A!H$3*(A!H$3/(-2*A!H$4))+A!H$4*(A!H$3/(-2*A!H$4))^2),"") ->  | D41: =IF(ISNUMBER(A!C41),A!I$2+A!I$3*EXP(A!I$4*A!C41),"") ->  | E41: =IF(ISNUMBER(A!C41),IF((A!J$2+A!J$3*A!C41)<A!J$4,A!J$2+A!J$3*A!C41,A!J$4),"") ->  | F41: =IF(ISNUMBER(A!C41),IF(A!C41<A!K$4,A!K$2+A!K$3*(3*A!C41/(2*A!K$4)-0.5*(A!C41/A!K$4)^3),A!K$3+A!K$2),"") ->  | G41: =IF(ISNUMBER(A!$C41),(B41-A!$D41)^2,"") ->  | H41: =IF(ISNUMBER(A!$C41),(C41-A!$D41)^2,"") ->  | I41: =IF(ISNUMBER(A!$C41),(D41-A!$D41)^2,"") ->  | J41: =IF(ISNUMBER(A!$C41),(E41-A!$D41)^2,"") ->  | K41: =IF(ISNUMBER(A!$C41),(F41-A!$D41)^2,"") -> 
A42: 38 | B42: =IF(ISNUMBER(A!C42),A!G$2+A!G$3*A!C42+A!G$4*A!C42^2,"") ->  | C42: =IF(ISNUMBER(A!C42),IF(A!C42<(A!H$3/(-2*A!H$4)),A!H$2+A!H$3*A!C42+A!H$4*A!C42^2,A!H$2+A!H$3*(A!H$3/(-2*A!H$4))+A!H$4*(A!H$3/(-2*A!H$4))^2),"") ->  | D42: =IF(ISNUMBER(A!C42),A!I$2+A!I$3*EXP(A!I$4*A!C42),"") ->  | E42: =IF(ISNUMBER(A!C42),IF((A!J$2+A!J$3*A!C42)<A!J$4,A!J$2+A!J$3*A!C42,A!J$4),"") ->  | F42: =IF(ISNUMBER(A!C42),IF(A!C42<A!K$4,A!K$2+A!K$3*(3*A!C42/(2*A!K$4)-0.5*(A!C42/A!K$4)^3),A!K$3+A!K$2),"") ->  | G42: =IF(ISNUMBER(A!$C42),(B42-A!$D42)^2,"") ->  | H42: =IF(ISNUMBER(A!$C42),(C42-A!$D42)^2,"") ->  | I42: =IF(ISNUMBER(A!$C42),(D42-A!$D42)^2,"") ->  | J42: =IF(ISNUMBER(A!$C42),(E42-A!$D42)^2,"") ->  | K42: =IF(ISNUMBER(A!$C42),(F42-A!$D42)^2,"") -> 
A43: 39 | B43: =IF(ISNUMBER(A!C43),A!G$2+A!G$3*A!C43+A!G$4*A!C43^2,"") ->  | C43: =IF(ISNUMBER(A!C43),IF(A!C43<(A!H$3/(-2*A!H$4)),A!H$2+A!H$3*A!C43+A!H$4*A!C43^2,A!H$2+A!H$3*(A!H$3/(-2*A!H$4))+A!H$4*(A!H$3/(-2*A!H$4))^2),"") ->  | D43: =IF(ISNUMBER(A!C43),A!I$2+A!I$3*EXP(A!I$4*A!C43),"") ->  | E43: =IF(ISNUMBER(A!C43),IF((A!J$2+A!J$3*A!C43)<A!J$4,A!J$2+A!J$3*A!C43,A!J$4),"") ->  | F43: =IF(ISNUMBER(A!C43),IF(A!C43<A!K$4,A!K$2+A!K$3*(3*A!C43/(2*A!K$4)-0.5*(A!C43/A!K$4)^3),A!K$3+A!K$2),"") ->  | G43: =IF(ISNUMBER(A!$C43),(B43-A!$D43)^2,"") ->  | H43: =IF(ISNUMBER(A!$C43),(C43-A!$D43)^2,"") ->  | I43: =IF(ISNUMBER(A!$C43),(D43-A!$D43)^2,"") ->  | J43: =IF(ISNUMBER(A!$C43),(E43-A!$D43)^2,"") ->  | K43: =IF(ISNUMBER(A!$C43),(F43-A!$D43)^2,"") -> 
A44: 40 | B44: =IF(ISNUMBER(A!C44),A!G$2+A!G$3*A!C44+A!G$4*A!C44^2,"") ->  | C44: =IF(ISNUMBER(A!C44),IF(A!C44<(A!H$3/(-2*A!H$4)),A!H$2+A!H$3*A!C44+A!H$4*A!C44^2,A!H$2+A!H$3*(A!H$3/(-2*A!H$4))+A!H$4*(A!H$3/(-2*A!H$4))^2),"") ->  | D44: =IF(ISNUMBER(A!C44),A!I$2+A!I$3*EXP(A!I$4*A!C44),"") ->  | E44: =IF(ISNUMBER(A!C44),IF((A!J$2+A!J$3*A!C44)<A!J$4,A!J$2+A!J$3*A!C44,A!J$4),"") ->  | F44: =IF(ISNUMBER(A!C44),IF(A!C44<A!K$4,A!K$2+A!K$3*(3*A!C44/(2*A!K$4)-0.5*(A!C44/A!K$4)^3),A!K$3+A!K$2),"") ->  | G44: =IF(ISNUMBER(A!$C44),(B44-A!$D44)^2,"") ->  | H44: =IF(ISNUMBER(A!$C44),(C44-A!$D44)^2,"") ->  | I44: =IF(ISNUMBER(A!$C44),(D44-A!$D44)^2,"") ->  | J44: =IF(ISNUMBER(A!$C44),(E44-A!$D44)^2,"") ->  | K44: =IF(ISNUMBER(A!$C44),(F44-A!$D44)^2,"") -> 
A45: WEIGHTS | B45: =(0.0001+(A!G5-MIN(A!$G5:$K5)))/(0.0001+(MAX(A!$G5:$K5)-MIN(A!$G5:$K5))) -> 0.7035632817 | C45: =(0.0001+(A!H5-MIN(A!$G5:$K5)))/(0.0001+(MAX(A!$G5:$K5)-MIN(A!$G5:$K5))) -> 0.7863434626 | D45: =(0.0001+(A!I5-MIN(A!$G5:$K5)))/(0.0001+(MAX(A!$G5:$K5)-MIN(A!$G5:$K5))) -> 1 | E45: =(0.0001+(A!J5-MIN(A!$G5:$K5)))/(0.0001+(MAX(A!$G5:$K5)-MIN(A!$G5:$K5))) -> 0.005838825106 | F45: =(0.0001+(A!K5-MIN(A!$G5:$K5)))/(0.0001+(MAX(A!$G5:$K5)-MIN(A!$G5:$K5))) -> 0.5711938051
B47: Nrate | C47: Q yield | D47: QP yield | E47: M yield | F47: LP yield | G47: S yield | H47: mean yield | I47: increment | J47: <PR? | M47: Maximum rate for curves
A48: 0 | B48: =IF(A48<$M$48,A48,$M$48) -> 0 | C48: =IF(M$53,A!G$2+A!G$3*B48+A!G$4*B48^2,"NA") -> 91.97095387 | D48: =IF(M$53,IF(B48<(A!H$3/(-2*A!H$4)),A!H$2+A!H$3*B48+A!H$4*B48^2,A!H$2+A!H$3*(A!H$3/(-2*A!H$4))+A!H$3*A!H$3/(4*A!H$4)),"NA") -> 91.12704407 | E48: =IF(M$53,A!I$2+A!I$3*EXP(A!I$4*B48),"NA") -> 89.97439328 | F48: =IF(M$53,IF((A!J$2+A!J$3*B48)<A!J$4,A!J$2+A!J$3*B48,A!J$4),"NA") -> 94.16647887 | G48: =IF(M$53,IF(B48<A!K$4,A!K$2+A!K$3*(3*B48/(2*A!K$4)-0.5*(B48/A!K$4)^3),A!K$3+A!K$2),"NA") -> 91.67034005 | H48: =IF(M$53,(C48*B$45+'C'!D48*C$45+'C'!E48*D$45+'C'!F48*E$45+'C'!G48*F$45)/SUM(B$45:F$45),"NA") -> 91.05177919 | I48: =IF(M$53,(H49-H48)/2,"NA") -> 1.131990759 | J48: 0 | M48: =MAX(A!C5:C44,A!G6:K6) -> 200
A49: 2 | B49: =IF(A49<$M$48,A49,$M$48) -> 2 | C49: =IF(M$53,A!G$2+A!G$3*B49+A!G$4*B49^2,"NA") -> 94.00578662 | D49: =IF(M$53,IF(B49<(A!H$3/(-2*A!H$4)),A!H$2+A!H$3*B49+A!H$4*B49^2,A!H$2+A!H$3*(A!H$3/(-2*A!H$4))+A!H$3*A!H$3/(4*A!H$4)),"NA") -> 93.28239327 | E49: =IF(M$53,A!I$2+A!I$3*EXP(A!I$4*B49),"NA") -> 92.7331752 | F49: =IF(M$53,IF((A!J$2+A!J$3*B49)<A!J$4,A!J$2+A!J$3*B49,A!J$4),"NA") -> 95.66648383 | G49: =IF(M$53,IF(B49<A!K$4,A!K$2+A!K$3*(3*B49/(2*A!K$4)-0.5*(B49/A!K$4)^3),A!K$3+A!K$2),"NA") -> 93.50767704 | H49: =IF(M$53,(C49*B$45+'C'!D49*C$45+'C'!E49*D$45+'C'!F49*E$45+'C'!G49*F$45)/SUM(B$45:F$45),"NA") -> 93.31576071 | I49: =IF(M$53,(H50-H49)/2,"NA") -> 1.113355044 | J49: =IF(M$53,IF(AND(I49<A!B$29,I48>+A!B$29),((I48-A!B$29)/('C'!I48-'C'!I49))*4+'C'!B48,"NO"),"NA") -> NO
A50: 4 | B50: 4 | C50: =IF(M$53,A!G$2+A!G$3*B50+A!G$4*B50^2,"NA") -> 96.01753203 | D50: =IF(M$53,IF(B50<(A!H$3/(-2*A!H$4)),A!H$2+A!H$3*B50+A!H$4*B50^2,A!H$2+A!H$3*(A!H$3/(-2*A!H$4))+A!H$3*A!H$3/(4*A!H$4)),"NA") -> 95.41141033 | E50: =IF(M$53,A!I$2+A!I$3*EXP(A!I$4*B50),"NA") -> 95.415006 | F50: =IF(M$53,IF((A!J$2+A!J$3*B50)<A!J$4,A!J$2+A!J$3*B50,A!J$4),"NA") -> 97.16648878 | G50: =IF(M$53,IF(B50<A!K$4,A!K$2+A!K$3*(3*B50/(2*A!K$4)-0.5*(B50/A!K$4)^3),A!K$3+A!K$2),"NA") -> 95.34429872 | H50: =IF(M$53,(C50*B$45+'C'!D50*C$45+'C'!E50*D$45+'C'!F50*E$45+'C'!G50*F$45)/SUM(B$45:F$45),"NA") -> 95.5424708 | I50: 1.095002645 | J50: =IF(M$53,IF(AND(I50<A!B$29,I49>+A!B$29),((I49-A!B$29)/('C'!I49-'C'!I50))*4+'C'!B49,"NO"),"NA") -> NO
A51: 6 | B51: 6 | C51: =IF(M$53,A!G$2+A!G$3*B51+A!G$4*B51^2,"NA") -> 98.00619008 | D51: =IF(M$53,IF(B51<(A!H$3/(-2*A!H$4)),A!H$2+A!H$3*B51+A!H$4*B51^2,A!H$2+A!H$3*(A!H$3/(-2*A!H$4))+A!H$3*A!H$3/(4*A!H$4)),"NA") -> 97.51409526 | E51: =IF(M$53,A!I$2+A!I$3*EXP(A!I$4*B51),"NA") -> 98.02203208 | F51: =IF(M$53,IF((A!J$2+A!J$3*B51)<A!J$4,A!J$2+A!J$3*B51,A!J$4),"NA") -> 98.66649374 | G51: =IF(M$53,IF(B51<A!K$4,A!K$2+A!K$3*(3*B51/(2*A!K$4)-0.5*(B51/A!K$4)^3),A!K$3+A!K$2),"NA") -> 97.1794898 | H51: =IF(M$53,(C51*B$45+'C'!D51*C$45+'C'!E51*D$45+'C'!F51*E$45+'C'!G51*F$45)/SUM(B$45:F$45),"NA") -> 97.73247609 | I51: 1.076923803 | J51: =IF(M$53,IF(AND(I51<A!B$29,I50>+A!B$29),((I50-A!B$29)/('C'!I50-'C'!I51))*4+'C'!B50,"NO"),"NA") -> NO | M51: =ROUND(SUM(A!C5:D44),0) -> 1255 | N51: sum of yields and rates entered (to detect new data entry)
A52: 8 | B52: 8 | C52: =IF(M$53,A!G$2+A!G$3*B52+A!G$4*B52^2,"NA") -> 99.97176079 | D52: =IF(M$53,IF(B52<(A!H$3/(-2*A!H$4)),A!H$2+A!H$3*B52+A!H$4*B52^2,A!H$2+A!H$3*(A!H$3/(-2*A!H$4))+A!H$3*A!H$3/(4*A!H$4)),"NA") -> 99.59044805 | E52: =IF(M$53,A!I$2+A!I$3*EXP(A!I$4*B52),"NA") -> 100.55634 | F52: =IF(M$53,IF((A!J$2+A!J$3*B52)<A!J$4,A!J$2+A!J$3*B52,A!J$4),"NA") -> 100.1664987 | G52: =IF(M$53,IF(B52<A!K$4,A!K$2+A!K$3*(3*B52/(2*A!K$4)-0.5*(B52/A!K$4)^3),A!K$3+A!K$2),"NA") -> 99.01253496 | H52: =IF(M$53,(C52*B$45+'C'!D52*C$45+'C'!E52*D$45+'C'!F52*E$45+'C'!G52*F$45)/SUM(B$45:F$45),"NA") -> 99.88632369 | I52: 1.059109029 | J52: =IF(M$53,IF(AND(I52<A!B$29,I51>+A!B$29),((I51-A!B$29)/('C'!I51-'C'!I52))*4+'C'!B51,"NO"),"NA") -> NO | M52: 1255 | N52: set by the FIT macro when finished
A53: 10 | B53: 10 | C53: =IF(M$53,A!G$2+A!G$3*B53+A!G$4*B53^2,"NA") -> 101.9142442 | D53: =IF(M$53,IF(B53<(A!H$3/(-2*A!H$4)),A!H$2+A!H$3*B53+A!H$4*B53^2,A!H$2+A!H$3*(A!H$3/(-2*A!H$4))+A!H$3*A!H$3/(4*A!H$4)),"NA") -> 101.6404687 | E53: =IF(M$53,A!I$2+A!I$3*EXP(A!I$4*B53),"NA") -> 103.019958 | F53: =IF(M$53,IF((A!J$2+A!J$3*B53)<A!J$4,A!J$2+A!J$3*B53,A!J$4),"NA") -> 101.6665037 | G53: =IF(M$53,IF(B53<A!K$4,A!K$2+A!K$3*(3*B53/(2*A!K$4)-0.5*(B53/A!K$4)^3),A!K$3+A!K$2),"NA") -> 100.8427189 | H53: =IF(M$53,(C53*B$45+'C'!D53*C$45+'C'!E53*D$45+'C'!F53*E$45+'C'!G53*F$45)/SUM(B$45:F$45),"NA") -> 102.0045418 | I53: 1.041549099 | J53: =IF(M$53,IF(AND(I53<A!B$29,I52>+A!B$29),((I52-A!B$29)/('C'!I52-'C'!I53))*4+'C'!B52,"NO"),"NA") -> NO | M53: =M51=M52 -> TRUE | N53: detects whether the FIT macro has been run on the latest data entered.
A54: 12 | B54: 12 | C54: =IF(M$53,A!G$2+A!G$3*B54+A!G$4*B54^2,"NA") -> 103.8336402 | D54: =IF(M$53,IF(B54<(A!H$3/(-2*A!H$4)),A!H$2+A!H$3*B54+A!H$4*B54^2,A!H$2+A!H$3*(A!H$3/(-2*A!H$4))+A!H$3*A!H$3/(4*A!H$4)),"NA") -> 103.6641572 | E54: =IF(M$53,A!I$2+A!I$3*EXP(A!I$4*B54),"NA") -> 105.414858 | F54: =IF(M$53,IF((A!J$2+A!J$3*B54)<A!J$4,A!J$2+A!J$3*B54,A!J$4),"NA") -> 103.1665086 | G54: =IF(M$53,IF(B54<A!K$4,A!K$2+A!K$3*(3*B54/(2*A!K$4)-0.5*(B54/A!K$4)^3),A!K$3+A!K$2),"NA") -> 102.6693263 | H54: =IF(M$53,(C54*B$45+'C'!D54*C$45+'C'!E54*D$45+'C'!F54*E$45+'C'!G54*F$45)/SUM(B$45:F$45),"NA") -> 104.0876399 | I54: 1.024235048 | J54: =IF(M$53,IF(AND(I54<A!B$29,I53>+A!B$29),((I53-A!B$29)/('C'!I53-'C'!I54))*4+'C'!B53,"NO"),"NA") -> NO
A55: 14 | B55: 14 | C55: =IF(M$53,A!G$2+A!G$3*B55+A!G$4*B55^2,"NA") -> 105.7299488 | D55: =IF(M$53,IF(B55<(A!H$3/(-2*A!H$4)),A!H$2+A!H$3*B55+A!H$4*B55^2,A!H$2+A!H$3*(A!H$3/(-2*A!H$4))+A!H$3*A!H$3/(4*A!H$4)),"NA") -> 105.6615136 | E55: =IF(M$53,A!I$2+A!I$3*EXP(A!I$4*B55),"NA") -> 107.7429567 | F55: =IF(M$53,IF((A!J$2+A!J$3*B55)<A!J$4,A!J$2+A!J$3*B55,A!J$4),"NA") -> 104.6665136 | G55: =IF(M$53,IF(B55<A!K$4,A!K$2+A!K$3*(3*B55/(2*A!K$4)-0.5*(B55/A!K$4)^3),A!K$3+A!K$2),"NA") -> 104.4916419 | H55: =IF(M$53,(C55*B$45+'C'!D55*C$45+'C'!E55*D$45+'C'!F55*E$45+'C'!G55*F$45)/SUM(B$45:F$45),"NA") -> 106.13611 | I55: 1.007158158 | J55: =IF(M$53,IF(AND(I55<A!B$29,I54>+A!B$29),((I54-A!B$29)/('C'!I54-'C'!I55))*4+'C'!B54,"NO"),"NA") -> NO
A56: 16 | B56: 16 | C56: =IF(M$53,A!G$2+A!G$3*B56+A!G$4*B56^2,"NA") -> 107.6031701 | D56: =IF(M$53,IF(B56<(A!H$3/(-2*A!H$4)),A!H$2+A!H$3*B56+A!H$4*B56^2,A!H$2+A!H$3*(A!H$3/(-2*A!H$4))+A!H$3*A!H$3/(4*A!H$4)),"NA") -> 107.6325379 | E56: =IF(M$53,A!I$2+A!I$3*EXP(A!I$4*B56),"NA") -> 110.0061173 | F56: =IF(M$53,IF((A!J$2+A!J$3*B56)<A!J$4,A!J$2+A!J$3*B56,A!J$4),"NA") -> 106.1665185 | G56: =IF(M$53,IF(B56<A!K$4,A!K$2+A!K$3*(3*B56/(2*A!K$4)-0.5*(B56/A!K$4)^3),A!K$3+A!K$2),"NA") -> 106.3089504 | H56: =IF(M$53,(C56*B$45+'C'!D56*C$45+'C'!E56*D$45+'C'!F56*E$45+'C'!G56*F$45)/SUM(B$45:F$45),"NA") -> 108.1504264 | I56: 0.990309957 | J56: =IF(M$53,IF(AND(I56<A!B$29,I55>+A!B$29),((I55-A!B$29)/('C'!I55-'C'!I56))*4+'C'!B55,"NO"),"NA") -> NO
A57: 18 | B57: 18 | C57: =IF(M$53,A!G$2+A!G$3*B57+A!G$4*B57^2,"NA") -> 109.4533041 | D57: =IF(M$53,IF(B57<(A!H$3/(-2*A!H$4)),A!H$2+A!H$3*B57+A!H$4*B57^2,A!H$2+A!H$3*(A!H$3/(-2*A!H$4))+A!H$3*A!H$3/(4*A!H$4)),"NA") -> 109.57723 | E57: =IF(M$53,A!I$2+A!I$3*EXP(A!I$4*B57),"NA") -> 112.2061513 | F57: =IF(M$53,IF((A!J$2+A!J$3*B57)<A!J$4,A!J$2+A!J$3*B57,A!J$4),"NA") -> 107.6665235 | G57: =IF(M$53,IF(B57<A!K$4,A!K$2+A!K$3*(3*B57/(2*A!K$4)-0.5*(B57/A!K$4)^3),A!K$3+A!K$2),"NA") -> 108.1205364 | H57: =IF(M$53,(C57*B$45+'C'!D57*C$45+'C'!E57*D$45+'C'!F57*E$45+'C'!G57*F$45)/SUM(B$45:F$45),"NA") -> 110.1310463 | I57: 0.9736822078 | J57: =IF(M$53,IF(AND(I57<A!B$29,I56>+A!B$29),((I56-A!B$29)/('C'!I56-'C'!I57))*4+'C'!B56,"NO"),"NA") -> NO
A58: 20 | B58: 20 | C58: =IF(M$53,A!G$2+A!G$3*B58+A!G$4*B58^2,"NA") -> 111.2803507 | D58: =IF(M$53,IF(B58<(A!H$3/(-2*A!H$4)),A!H$2+A!H$3*B58+A!H$4*B58^2,A!H$2+A!H$3*(A!H$3/(-2*A!H$4))+A!H$3*A!H$3/(4*A!H$4)),"NA") -> 111.4955899 | E58: =IF(M$53,A!I$2+A!I$3*EXP(A!I$4*B58),"NA") -> 114.3448194 | F58: =IF(M$53,IF((A!J$2+A!J$3*B58)<A!J$4,A!J$2+A!J$3*B58,A!J$4),"NA") -> 109.1665284 | G58: =IF(M$53,IF(B58<A!K$4,A!K$2+A!K$3*(3*B58/(2*A!K$4)-0.5*(B58/A!K$4)^3),A!K$3+A!K$2),"NA") -> 109.9256847 | H58: =IF(M$53,(C58*B$45+'C'!D58*C$45+'C'!E58*D$45+'C'!F58*E$45+'C'!G58*F$45)/SUM(B$45:F$45),"NA") -> 112.0784107 | I58: 0.9572669034 | J58: =IF(M$53,IF(AND(I58<A!B$29,I57>+A!B$29),((I57-A!B$29)/('C'!I57-'C'!I58))*4+'C'!B57,"NO"),"NA") -> NO
A59: 22 | B59: 22 | C59: =IF(M$53,A!G$2+A!G$3*B59+A!G$4*B59^2,"NA") -> 113.08431 | D59: =IF(M$53,IF(B59<(A!H$3/(-2*A!H$4)),A!H$2+A!H$3*B59+A!H$4*B59^2,A!H$2+A!H$3*(A!H$3/(-2*A!H$4))+A!H$3*A!H$3/(4*A!H$4)),"NA") -> 113.3876178 | E59: =IF(M$53,A!I$2+A!I$3*EXP(A!I$4*B59),"NA") -> 116.4238333 | F59: =IF(M$53,IF((A!J$2+A!J$3*B59)<A!J$4,A!J$2+A!J$3*B59,A!J$4),"NA") -> 110.6665334 | G59: =IF(M$53,IF(B59<A!K$4,A!K$2+A!K$3*(3*B59/(2*A!K$4)-0.5*(B59/A!K$4)^3),A!K$3+A!K$2),"NA") -> 111.72368 | H59: =IF(M$53,(C59*B$45+'C'!D59*C$45+'C'!E59*D$45+'C'!F59*E$45+'C'!G59*F$45)/SUM(B$45:F$45),"NA") -> 113.9929445 | I59: 0.9410562601 | J59: =IF(M$53,IF(AND(I59<A!B$29,I58>+A!B$29),((I58-A!B$29)/('C'!I58-'C'!I59))*4+'C'!B58,"NO"),"NA") -> NO
A60: 24 | B60: 24 | C60: =IF(M$53,A!G$2+A!G$3*B60+A!G$4*B60^2,"NA") -> 114.8651819 | D60: =IF(M$53,IF(B60<(A!H$3/(-2*A!H$4)),A!H$2+A!H$3*B60+A!H$4*B60^2,A!H$2+A!H$3*(A!H$3/(-2*A!H$4))+A!H$3*A!H$3/(4*A!H$4)),"NA") -> 115.2533135 | E60: =IF(M$53,A!I$2+A!I$3*EXP(A!I$4*B60),"NA") -> 118.4448569 | F60: =IF(M$53,IF((A!J$2+A!J$3*B60)<A!J$4,A!J$2+A!J$3*B60,A!J$4),"NA") -> 112.1665383 | G60: =IF(M$53,IF(B60<A!K$4,A!K$2+A!K$3*(3*B60/(2*A!K$4)-0.5*(B60/A!K$4)^3),A!K$3+A!K$2),"NA") -> 113.5138069 | H60: =IF(M$53,(C60*B$45+'C'!D60*C$45+'C'!E60*D$45+'C'!F60*E$45+'C'!G60*F$45)/SUM(B$45:F$45),"NA") -> 115.875057 | I60: 0.9250427113 | J60: =IF(M$53,IF(AND(I60<A!B$29,I59>+A!B$29),((I59-A!B$29)/('C'!I59-'C'!I60))*4+'C'!B59,"NO"),"NA") -> NO
A61: 26 | B61: 26 | C61: =IF(M$53,A!G$2+A!G$3*B61+A!G$4*B61^2,"NA") -> 116.6229665 | D61: =IF(M$53,IF(B61<(A!H$3/(-2*A!H$4)),A!H$2+A!H$3*B61+A!H$4*B61^2,A!H$2+A!H$3*(A!H$3/(-2*A!H$4))+A!H$3*A!H$3/(4*A!H$4)),"NA") -> 117.092677 | E61: =IF(M$53,A!I$2+A!I$3*EXP(A!I$4*B61),"NA") -> 120.4095078 | F61: =IF(M$53,IF((A!J$2+A!J$3*B61)<A!J$4,A!J$2+A!J$3*B61,A!J$4),"NA") -> 113.6665433 | G61: =IF(M$53,IF(B61<A!K$4,A!K$2+A!K$3*(3*B61/(2*A!K$4)-0.5*(B61/A!K$4)^3),A!K$3+A!K$2),"NA") -> 115.2953501 | H61: =IF(M$53,(C61*B$45+'C'!D61*C$45+'C'!E61*D$45+'C'!F61*E$45+'C'!G61*F$45)/SUM(B$45:F$45),"NA") -> 117.7251424 | I61: 0.9092189014 | J61: =IF(M$53,IF(AND(I61<A!B$29,I60>+A!B$29),((I60-A!B$29)/('C'!I60-'C'!I61))*4+'C'!B60,"NO"),"NA") -> NO
A62: 28 | B62: 28 | C62: =IF(M$53,A!G$2+A!G$3*B62+A!G$4*B62^2,"NA") -> 118.3576637 | D62: =IF(M$53,IF(B62<(A!H$3/(-2*A!H$4)),A!H$2+A!H$3*B62+A!H$4*B62^2,A!H$2+A!H$3*(A!H$3/(-2*A!H$4))+A!H$3*A!H$3/(4*A!H$4)),"NA") -> 118.9057085 | E62: =IF(M$53,A!I$2+A!I$3*EXP(A!I$4*B62),"NA") -> 122.3193584 | F62: =IF(M$53,IF((A!J$2+A!J$3*B62)<A!J$4,A!J$2+A!J$3*B62,A!J$4),"NA") -> 115.1665483 | G62: =IF(M$53,IF(B62<A!K$4,A!K$2+A!K$3*(3*B62/(2*A!K$4)-0.5*(B62/A!K$4)^3),A!K$3+A!K$2),"NA") -> 117.0675944 | H62: =IF(M$53,(C62*B$45+'C'!D62*C$45+'C'!E62*D$45+'C'!F62*E$45+'C'!G62*F$45)/SUM(B$45:F$45),"NA") -> 119.5435802 | I62: 0.89357768 | J62: =IF(M$53,IF(AND(I62<A!B$29,I61>+A!B$29),((I61-A!B$29)/('C'!I61-'C'!I62))*4+'C'!B61,"NO"),"NA") -> NO
A63: 30 | B63: 30 | C63: =IF(M$53,A!G$2+A!G$3*B63+A!G$4*B63^2,"NA") -> 120.0692736 | D63: =IF(M$53,IF(B63<(A!H$3/(-2*A!H$4)),A!H$2+A!H$3*B63+A!H$4*B63^2,A!H$2+A!H$3*(A!H$3/(-2*A!H$4))+A!H$3*A!H$3/(4*A!H$4)),"NA") -> 120.6924077 | E63: =IF(M$53,A!I$2+A!I$3*EXP(A!I$4*B63),"NA") -> 124.1759372 | F63: =IF(M$53,IF((A!J$2+A!J$3*B63)<A!J$4,A!J$2+A!J$3*B63,A!J$4),"NA") -> 116.6665532 | G63: =IF(M$53,IF(B63<A!K$4,A!K$2+A!K$3*(3*B63/(2*A!K$4)-0.5*(B63/A!K$4)^3),A!K$3+A!K$2),"NA") -> 118.8298244 | H63: =IF(M$53,(C63*B$45+'C'!D63*C$45+'C'!E63*D$45+'C'!F63*E$45+'C'!G63*F$45)/SUM(B$45:F$45),"NA") -> 121.3307356 | I63: 0.8781120963 | J63: =IF(M$53,IF(AND(I63<A!B$29,I62>+A!B$29),((I62-A!B$29)/('C'!I62-'C'!I63))*4+'C'!B62,"NO"),"NA") -> NO
A64: 32 | B64: 32 | C64: =IF(M$53,A!G$2+A!G$3*B64+A!G$4*B64^2,"NA") -> 121.7577961 | D64: =IF(M$53,IF(B64<(A!H$3/(-2*A!H$4)),A!H$2+A!H$3*B64+A!H$4*B64^2,A!H$2+A!H$3*(A!H$3/(-2*A!H$4))+A!H$3*A!H$3/(4*A!H$4)),"NA") -> 122.4527749 | E64: =IF(M$53,A!I$2+A!I$3*EXP(A!I$4*B64),"NA") -> 125.9807302 | F64: =IF(M$53,IF((A!J$2+A!J$3*B64)<A!J$4,A!J$2+A!J$3*B64,A!J$4),"NA") -> 118.1665582 | G64: =IF(M$53,IF(B64<A!K$4,A!K$2+A!K$3*(3*B64/(2*A!K$4)-0.5*(B64/A!K$4)^3),A!K$3+A!K$2),"NA") -> 120.5813249 | H64: =IF(M$53,(C64*B$45+'C'!D64*C$45+'C'!E64*D$45+'C'!F64*E$45+'C'!G64*F$45)/SUM(B$45:F$45),"NA") -> 123.0869598 | I64: 0.8628153931 | J64: =IF(M$53,IF(AND(I64<A!B$29,I63>+A!B$29),((I63-A!B$29)/('C'!I63-'C'!I64))*4+'C'!B63,"NO"),"NA") -> NO
A65: 34 | B65: 34 | C65: =IF(M$53,A!G$2+A!G$3*B65+A!G$4*B65^2,"NA") -> 123.4232313 | D65: =IF(M$53,IF(B65<(A!H$3/(-2*A!H$4)),A!H$2+A!H$3*B65+A!H$4*B65^2,A!H$2+A!H$3*(A!H$3/(-2*A!H$4))+A!H$3*A!H$3/(4*A!H$4)),"NA") -> 124.1868099 | E65: =IF(M$53,A!I$2+A!I$3*EXP(A!I$4*B65),"NA") -> 127.7351819 | F65: =IF(M$53,IF((A!J$2+A!J$3*B65)<A!J$4,A!J$2+A!J$3*B65,A!J$4),"NA") -> 119.6665631 | G65: =IF(M$53,IF(B65<A!K$4,A!K$2+A!K$3*(3*B65/(2*A!K$4)-0.5*(B65/A!K$4)^3),A!K$3+A!K$2),"NA") -> 122.3213804 | H65: =IF(M$53,(C65*B$45+'C'!D65*C$45+'C'!E65*D$45+'C'!F65*E$45+'C'!G65*F$45)/SUM(B$45:F$45),"NA") -> 124.8125906 | I65: 0.8476810019 | J65: =IF(M$53,IF(AND(I65<A!B$29,I64>+A!B$29),((I64-A!B$29)/('C'!I64-'C'!I65))*4+'C'!B64,"NO"),"NA") -> NO
A66: 36 | B66: 36 | C66: =IF(M$53,A!G$2+A!G$3*B66+A!G$4*B66^2,"NA") -> 125.0655791 | D66: =IF(M$53,IF(B66<(A!H$3/(-2*A!H$4)),A!H$2+A!H$3*B66+A!H$4*B66^2,A!H$2+A!H$3*(A!H$3/(-2*A!H$4))+A!H$3*A!H$3/(4*A!H$4)),"NA") -> 125.8945128 | E66: =IF(M$53,A!I$2+A!I$3*EXP(A!I$4*B66),"NA") -> 129.4406963 | F66: =IF(M$53,IF((A!J$2+A!J$3*B66)<A!J$4,A!J$2+A!J$3*B66,A!J$4),"NA") -> 121.1665681 | G66: =IF(M$53,IF(B66<A!K$4,A!K$2+A!K$3*(3*B66/(2*A!K$4)-0.5*(B66/A!K$4)^3),A!K$3+A!K$2),"NA") -> 124.0492759 | H66: =IF(M$53,(C66*B$45+'C'!D66*C$45+'C'!E66*D$45+'C'!F66*E$45+'C'!G66*F$45)/SUM(B$45:F$45),"NA") -> 126.5079526 | I66: 0.8327025373 | J66: =IF(M$53,IF(AND(I66<A!B$29,I65>+A!B$29),((I65-A!B$29)/('C'!I65-'C'!I66))*4+'C'!B65,"NO"),"NA") -> NO
A67: 38 | B67: 38 | C67: =IF(M$53,A!G$2+A!G$3*B67+A!G$4*B67^2,"NA") -> 126.6848396 | D67: =IF(M$53,IF(B67<(A!H$3/(-2*A!H$4)),A!H$2+A!H$3*B67+A!H$4*B67^2,A!H$2+A!H$3*(A!H$3/(-2*A!H$4))+A!H$3*A!H$3/(4*A!H$4)),"NA") -> 127.5758835 | E67: =IF(M$53,A!I$2+A!I$3*EXP(A!I$4*B67),"NA") -> 131.0986386 | F67: =IF(M$53,IF((A!J$2+A!J$3*B67)<A!J$4,A!J$2+A!J$3*B67,A!J$4),"NA") -> 122.666573 | G67: =IF(M$53,IF(B67<A!K$4,A!K$2+A!K$3*(3*B67/(2*A!K$4)-0.5*(B67/A!K$4)^3),A!K$3+A!K$2),"NA") -> 125.7642958 | H67: =IF(M$53,(C67*B$45+'C'!D67*C$45+'C'!E67*D$45+'C'!F67*E$45+'C'!G67*F$45)/SUM(B$45:F$45),"NA") -> 128.1733577 | I67: 0.8178737921 | J67: =IF(M$53,IF(AND(I67<A!B$29,I66>+A!B$29),((I66-A!B$29)/('C'!I66-'C'!I67))*4+'C'!B66,"NO"),"NA") -> NO
A68: 40 | B68: 40 | C68: =IF(M$53,A!G$2+A!G$3*B68+A!G$4*B68^2,"NA") -> 128.2810127 | D68: =IF(M$53,IF(B68<(A!H$3/(-2*A!H$4)),A!H$2+A!H$3*B68+A!H$4*B68^2,A!H$2+A!H$3*(A!H$3/(-2*A!H$4))+A!H$3*A!H$3/(4*A!H$4)),"NA") -> 129.2309221 | E68: =IF(M$53,A!I$2+A!I$3*EXP(A!I$4*B68),"NA") -> 132.7103356 | F68: =IF(M$53,IF((A!J$2+A!J$3*B68)<A!J$4,A!J$2+A!J$3*B68,A!J$4),"NA") -> 124.166578 | G68: =IF(M$53,IF(B68<A!K$4,A!K$2+A!K$3*(3*B68/(2*A!K$4)-0.5*(B68/A!K$4)^3),A!K$3+A!K$2),"NA") -> 127.4657249 | H68: =IF(M$53,(C68*B$45+'C'!D68*C$45+'C'!E68*D$45+'C'!F68*E$45+'C'!G68*F$45)/SUM(B$45:F$45),"NA") -> 129.8091052 | I68: 0.8031887322 | J68: =IF(M$53,IF(AND(I68<A!B$29,I67>+A!B$29),((I67-A!B$29)/('C'!I67-'C'!I68))*4+'C'!B67,"NO"),"NA") -> NO
A69: 42 | B69: 42 | C69: =IF(M$53,A!G$2+A!G$3*B69+A!G$4*B69^2,"NA") -> 129.8540985 | D69: =IF(M$53,IF(B69<(A!H$3/(-2*A!H$4)),A!H$2+A!H$3*B69+A!H$4*B69^2,A!H$2+A!H$3*(A!H$3/(-2*A!H$4))+A!H$3*A!H$3/(4*A!H$4)),"NA") -> 130.8596286 | E69: =IF(M$53,A!I$2+A!I$3*EXP(A!I$4*B69),"NA") -> 134.2770773 | F69: =IF(M$53,IF((A!J$2+A!J$3*B69)<A!J$4,A!J$2+A!J$3*B69,A!J$4),"NA") -> 125.666583 | G69: =IF(M$53,IF(B69<A!K$4,A!K$2+A!K$3*(3*B69/(2*A!K$4)-0.5*(B69/A!K$4)^3),A!K$3+A!K$2),"NA") -> 129.152848 | H69: =IF(M$53,(C69*B$45+'C'!D69*C$45+'C'!E69*D$45+'C'!F69*E$45+'C'!G69*F$45)/SUM(B$45:F$45),"NA") -> 131.4154827 | I69: 0.7886414918 | J69: =IF(M$53,IF(AND(I69<A!B$29,I68>+A!B$29),((I68-A!B$29)/('C'!I68-'C'!I69))*4+'C'!B68,"NO"),"NA") -> NO
A70: 44 | B70: 44 | C70: =IF(M$53,A!G$2+A!G$3*B70+A!G$4*B70^2,"NA") -> 131.4040969 | D70: =IF(M$53,IF(B70<(A!H$3/(-2*A!H$4)),A!H$2+A!H$3*B70+A!H$4*B70^2,A!H$2+A!H$3*(A!H$3/(-2*A!H$4))+A!H$3*A!H$3/(4*A!H$4)),"NA") -> 132.4620029 | E70: =IF(M$53,A!I$2+A!I$3*EXP(A!I$4*B70),"NA") -> 135.8001177 | F70: =IF(M$53,IF((A!J$2+A!J$3*B70)<A!J$4,A!J$2+A!J$3*B70,A!J$4),"NA") -> 127.1665879 | G70: =IF(M$53,IF(B70<A!K$4,A!K$2+A!K$3*(3*B70/(2*A!K$4)-0.5*(B70/A!K$4)^3),A!K$3+A!K$2),"NA") -> 130.8249496 | H70: =IF(M$53,(C70*B$45+'C'!D70*C$45+'C'!E70*D$45+'C'!F70*E$45+'C'!G70*F$45)/SUM(B$45:F$45),"NA") -> 132.9927657 | I70: 0.7742263687 | J70: =IF(M$53,IF(AND(I70<A!B$29,I69>+A!B$29),((I69-A!B$29)/('C'!I69-'C'!I70))*4+'C'!B69,"NO"),"NA") -> NO
A71: 46 | B71: 46 | C71: =IF(M$53,A!G$2+A!G$3*B71+A!G$4*B71^2,"NA") -> 132.931008 | D71: =IF(M$53,IF(B71<(A!H$3/(-2*A!H$4)),A!H$2+A!H$3*B71+A!H$4*B71^2,A!H$2+A!H$3*(A!H$3/(-2*A!H$4))+A!H$3*A!H$3/(4*A!H$4)),"NA") -> 134.0380451 | E71: =IF(M$53,A!I$2+A!I$3*EXP(A!I$4*B71),"NA") -> 137.2806756 | F71: =IF(M$53,IF((A!J$2+A!J$3*B71)<A!J$4,A!J$2+A!J$3*B71,A!J$4),"NA") -> 128.6665929 | G71: =IF(M$53,IF(B71<A!K$4,A!K$2+A!K$3*(3*B71/(2*A!K$4)-0.5*(B71/A!K$4)^3),A!K$3+A!K$2),"NA") -> 132.4813146 | H71: =IF(M$53,(C71*B$45+'C'!D71*C$45+'C'!E71*D$45+'C'!F71*E$45+'C'!G71*F$45)/SUM(B$45:F$45),"NA") -> 134.5412184 | I71: 0.7599378197 | J71: =IF(M$53,IF(AND(I71<A!B$29,I70>+A!B$29),((I70-A!B$29)/('C'!I70-'C'!I71))*4+'C'!B70,"NO"),"NA") -> NO
A72: 48 | B72: 48 | C72: =IF(M$53,A!G$2+A!G$3*B72+A!G$4*B72^2,"NA") -> 134.4348317 | D72: =IF(M$53,IF(B72<(A!H$3/(-2*A!H$4)),A!H$2+A!H$3*B72+A!H$4*B72^2,A!H$2+A!H$3*(A!H$3/(-2*A!H$4))+A!H$3*A!H$3/(4*A!H$4)),"NA") -> 135.5877552 | E72: =IF(M$53,A!I$2+A!I$3*EXP(A!I$4*B72),"NA") -> 138.7199361 | F72: =IF(M$53,IF((A!J$2+A!J$3*B72)<A!J$4,A!J$2+A!J$3*B72,A!J$4),"NA") -> 130.1665978 | G72: =IF(M$53,IF(B72<A!K$4,A!K$2+A!K$3*(3*B72/(2*A!K$4)-0.5*(B72/A!K$4)^3),A!K$3+A!K$2),"NA") -> 134.1212276 | H72: =IF(M$53,(C72*B$45+'C'!D72*C$45+'C'!E72*D$45+'C'!F72*E$45+'C'!G72*F$45)/SUM(B$45:F$45),"NA") -> 136.0610941 | I72: 0.7457704564 | J72: =IF(M$53,IF(AND(I72<A!B$29,I71>+A!B$29),((I71-A!B$29)/('C'!I71-'C'!I72))*4+'C'!B71,"NO"),"NA") -> NO
A73: 50 | B73: 50 | C73: =IF(M$53,A!G$2+A!G$3*B73+A!G$4*B73^2,"NA") -> 135.9155681 | D73: =IF(M$53,IF(B73<(A!H$3/(-2*A!H$4)),A!H$2+A!H$3*B73+A!H$4*B73^2,A!H$2+A!H$3*(A!H$3/(-2*A!H$4))+A!H$3*A!H$3/(4*A!H$4)),"NA") -> 137.1111331 | E73: =IF(M$53,A!I$2+A!I$3*EXP(A!I$4*B73),"NA") -> 140.1190511 | F73: =IF(M$53,IF((A!J$2+A!J$3*B73)<A!J$4,A!J$2+A!J$3*B73,A!J$4),"NA") -> 131.6666028 | G73: =IF(M$53,IF(B73<A!K$4,A!K$2+A!K$3*(3*B73/(2*A!K$4)-0.5*(B73/A!K$4)^3),A!K$3+A!K$2),"NA") -> 135.7439732 | H73: =IF(M$53,(C73*B$45+'C'!D73*C$45+'C'!E73*D$45+'C'!F73*E$45+'C'!G73*F$45)/SUM(B$45:F$45),"NA") -> 137.552635 | I73: 0.7317190406 | J73: =IF(M$53,IF(AND(I73<A!B$29,I72>+A!B$29),((I72-A!B$29)/('C'!I72-'C'!I73))*4+'C'!B72,"NO"),"NA") -> NO
A74: 52 | B74: 52 | C74: =IF(M$53,A!G$2+A!G$3*B74+A!G$4*B74^2,"NA") -> 137.3732171 | D74: =IF(M$53,IF(B74<(A!H$3/(-2*A!H$4)),A!H$2+A!H$3*B74+A!H$4*B74^2,A!H$2+A!H$3*(A!H$3/(-2*A!H$4))+A!H$3*A!H$3/(4*A!H$4)),"NA") -> 138.6081789 | E74: =IF(M$53,A!I$2+A!I$3*EXP(A!I$4*B74),"NA") -> 141.4791404 | F74: =IF(M$53,IF((A!J$2+A!J$3*B74)<A!J$4,A!J$2+A!J$3*B74,A!J$4),"NA") -> 133.1666077 | G74: =IF(M$53,IF(B74<A!K$4,A!K$2+A!K$3*(3*B74/(2*A!K$4)-0.5*(B74/A!K$4)^3),A!K$3+A!K$2),"NA") -> 137.3488363 | H74: =IF(M$53,(C74*B$45+'C'!D74*C$45+'C'!E74*D$45+'C'!F74*E$45+'C'!G74*F$45)/SUM(B$45:F$45),"NA") -> 139.0160731 | I74: 0.71777848 | J74: =IF(M$53,IF(AND(I74<A!B$29,I73>+A!B$29),((I73-A!B$29)/('C'!I73-'C'!I74))*4+'C'!B73,"NO"),"NA") -> NO
A75: 54 | B75: 54 | C75: =IF(M$53,A!G$2+A!G$3*B75+A!G$4*B75^2,"NA") -> 138.8077788 | D75: =IF(M$53,IF(B75<(A!H$3/(-2*A!H$4)),A!H$2+A!H$3*B75+A!H$4*B75^2,A!H$2+A!H$3*(A!H$3/(-2*A!H$4))+A!H$3*A!H$3/(4*A!H$4)),"NA") -> 140.0788925 | E75: =IF(M$53,A!I$2+A!I$3*EXP(A!I$4*B75),"NA") -> 142.8012925 | F75: =IF(M$53,IF((A!J$2+A!J$3*B75)<A!J$4,A!J$2+A!J$3*B75,A!J$4),"NA") -> 134.6666127 | G75: =IF(M$53,IF(B75<A!K$4,A!K$2+A!K$3*(3*B75/(2*A!K$4)-0.5*(B75/A!K$4)^3),A!K$3+A!K$2),"NA") -> 138.9351014 | H75: =IF(M$53,(C75*B$45+'C'!D75*C$45+'C'!E75*D$45+'C'!F75*E$45+'C'!G75*F$45)/SUM(B$45:F$45),"NA") -> 140.45163 | I75: 0.7039438248 | J75: =IF(M$53,IF(AND(I75<A!B$29,I74>+A!B$29),((I74-A!B$29)/('C'!I74-'C'!I75))*4+'C'!B74,"NO"),"NA") -> NO
A76: 56 | B76: 56 | C76: =IF(M$53,A!G$2+A!G$3*B76+A!G$4*B76^2,"NA") -> 140.2192532 | D76: =IF(M$53,IF(B76<(A!H$3/(-2*A!H$4)),A!H$2+A!H$3*B76+A!H$4*B76^2,A!H$2+A!H$3*(A!H$3/(-2*A!H$4))+A!H$3*A!H$3/(4*A!H$4)),"NA") -> 141.523274 | E76: =IF(M$53,A!I$2+A!I$3*EXP(A!I$4*B76),"NA") -> 144.0865656 | F76: =IF(M$53,IF((A!J$2+A!J$3*B76)<A!J$4,A!J$2+A!J$3*B76,A!J$4),"NA") -> 136.1666176 | G76: =IF(M$53,IF(B76<A!K$4,A!K$2+A!K$3*(3*B76/(2*A!K$4)-0.5*(B76/A!K$4)^3),A!K$3+A!K$2),"NA") -> 140.5020533 | H76: =IF(M$53,(C76*B$45+'C'!D76*C$45+'C'!E76*D$45+'C'!F76*E$45+'C'!G76*F$45)/SUM(B$45:F$45),"NA") -> 141.8595177 | I76: 0.6902102628 | J76: =IF(M$53,IF(AND(I76<A!B$29,I75>+A!B$29),((I75-A!B$29)/('C'!I75-'C'!I76))*4+'C'!B75,"NO"),"NA") -> NO
A77: 58 | B77: 58 | C77: =IF(M$53,A!G$2+A!G$3*B77+A!G$4*B77^2,"NA") -> 141.6076401 | D77: =IF(M$53,IF(B77<(A!H$3/(-2*A!H$4)),A!H$2+A!H$3*B77+A!H$4*B77^2,A!H$2+A!H$3*(A!H$3/(-2*A!H$4))+A!H$3*A!H$3/(4*A!H$4)),"NA") -> 142.9413234 | E77: =IF(M$53,A!I$2+A!I$3*EXP(A!I$4*B77),"NA") -> 145.3359884 | F77: =IF(M$53,IF((A!J$2+A!J$3*B77)<A!J$4,A!J$2+A!J$3*B77,A!J$4),"NA") -> 137.6666226 | G77: =IF(M$53,IF(B77<A!K$4,A!K$2+A!K$3*(3*B77/(2*A!K$4)-0.5*(B77/A!K$4)^3),A!K$3+A!K$2),"NA") -> 142.0489767 | H77: =IF(M$53,(C77*B$45+'C'!D77*C$45+'C'!E77*D$45+'C'!F77*E$45+'C'!G77*F$45)/SUM(B$45:F$45),"NA") -> 143.2399382 | I77: 0.6765731164 | J77: =IF(M$53,IF(AND(I77<A!B$29,I76>+A!B$29),((I76-A!B$29)/('C'!I76-'C'!I77))*4+'C'!B76,"NO"),"NA") -> NO
A78: 60 | B78: 60 | C78: =IF(M$53,A!G$2+A!G$3*B78+A!G$4*B78^2,"NA") -> 142.9729398 | D78: =IF(M$53,IF(B78<(A!H$3/(-2*A!H$4)),A!H$2+A!H$3*B78+A!H$4*B78^2,A!H$2+A!H$3*(A!H$3/(-2*A!H$4))+A!H$3*A!H$3/(4*A!H$4)),"NA") -> 144.3330407 | E78: =IF(M$53,A!I$2+A!I$3*EXP(A!I$4*B78),"NA") -> 146.5505608 | F78: =IF(M$53,IF((A!J$2+A!J$3*B78)<A!J$4,A!J$2+A!J$3*B78,A!J$4),"NA") -> 139.1666276 | G78: =IF(M$53,IF(B78<A!K$4,A!K$2+A!K$3*(3*B78/(2*A!K$4)-0.5*(B78/A!K$4)^3),A!K$3+A!K$2),"NA") -> 143.5751562 | H78: =IF(M$53,(C78*B$45+'C'!D78*C$45+'C'!E78*D$45+'C'!F78*E$45+'C'!G78*F$45)/SUM(B$45:F$45),"NA") -> 144.5930844 | I78: 0.6630278381 | J78: =IF(M$53,IF(AND(I78<A!B$29,I77>+A!B$29),((I77-A!B$29)/('C'!I77-'C'!I78))*4+'C'!B77,"NO"),"NA") -> NO
A79: 62 | B79: 62 | C79: =IF(M$53,A!G$2+A!G$3*B79+A!G$4*B79^2,"NA") -> 144.3151521 | D79: =IF(M$53,IF(B79<(A!H$3/(-2*A!H$4)),A!H$2+A!H$3*B79+A!H$4*B79^2,A!H$2+A!H$3*(A!H$3/(-2*A!H$4))+A!H$3*A!H$3/(4*A!H$4)),"NA") -> 145.6984258 | E79: =IF(M$53,A!I$2+A!I$3*EXP(A!I$4*B79),"NA") -> 147.731255 | F79: =IF(M$53,IF((A!J$2+A!J$3*B79)<A!J$4,A!J$2+A!J$3*B79,A!J$4),"NA") -> 140.6666325 | G79: =IF(M$53,IF(B79<A!K$4,A!K$2+A!K$3*(3*B79/(2*A!K$4)-0.5*(B79/A!K$4)^3),A!K$3+A!K$2),"NA") -> 145.0798766 | H79: =IF(M$53,(C79*B$45+'C'!D79*C$45+'C'!E79*D$45+'C'!F79*E$45+'C'!G79*F$45)/SUM(B$45:F$45),"NA") -> 145.9191401 | I79: 0.6495700076 | J79: =IF(M$53,IF(AND(I79<A!B$29,I78>+A!B$29),((I78-A!B$29)/('C'!I78-'C'!I79))*4+'C'!B78,"NO"),"NA") -> NO
A80: 64 | B80: 64 | C80: =IF(M$53,A!G$2+A!G$3*B80+A!G$4*B80^2,"NA") -> 145.634277 | D80: =IF(M$53,IF(B80<(A!H$3/(-2*A!H$4)),A!H$2+A!H$3*B80+A!H$4*B80^2,A!H$2+A!H$3*(A!H$3/(-2*A!H$4))+A!H$3*A!H$3/(4*A!H$4)),"NA") -> 147.0374787 | E80: =IF(M$53,A!I$2+A!I$3*EXP(A!I$4*B80),"NA") -> 148.8790159 | F80: =IF(M$53,IF((A!J$2+A!J$3*B80)<A!J$4,A!J$2+A!J$3*B80,A!J$4),"NA") -> 142.1666375 | G80: =IF(M$53,IF(B80<A!K$4,A!K$2+A!K$3*(3*B80/(2*A!K$4)-0.5*(B80/A!K$4)^3),A!K$3+A!K$2),"NA") -> 146.5624226 | H80: =IF(M$53,(C80*B$45+'C'!D80*C$45+'C'!E80*D$45+'C'!F80*E$45+'C'!G80*F$45)/SUM(B$45:F$45),"NA") -> 147.2182801 | I80: 0.6361953277 | J80: =IF(M$53,IF(AND(I80<A!B$29,I79>+A!B$29),((I79-A!B$29)/('C'!I79-'C'!I80))*4+'C'!B79,"NO"),"NA") -> NO
A81: 66 | B81: 66 | C81: =IF(M$53,A!G$2+A!G$3*B81+A!G$4*B81^2,"NA") -> 146.9303146 | D81: =IF(M$53,IF(B81<(A!H$3/(-2*A!H$4)),A!H$2+A!H$3*B81+A!H$4*B81^2,A!H$2+A!H$3*(A!H$3/(-2*A!H$4))+A!H$3*A!H$3/(4*A!H$4)),"NA") -> 148.3501995 | E81: =IF(M$53,A!I$2+A!I$3*EXP(A!I$4*B81),"NA") -> 149.9947622 | F81: =IF(M$53,IF((A!J$2+A!J$3*B81)<A!J$4,A!J$2+A!J$3*B81,A!J$4),"NA") -> 143.6666424 | G81: =IF(M$53,IF(B81<A!K$4,A!K$2+A!K$3*(3*B81/(2*A!K$4)-0.5*(B81/A!K$4)^3),A!K$3+A!K$2),"NA") -> 148.0220789 | H81: =IF(M$53,(C81*B$45+'C'!D81*C$45+'C'!E81*D$45+'C'!F81*E$45+'C'!G81*F$45)/SUM(B$45:F$45),"NA") -> 148.4906708 | I81: 0.6228996211 | J81: =IF(M$53,IF(AND(I81<A!B$29,I80>+A!B$29),((I80-A!B$29)/('C'!I80-'C'!I81))*4+'C'!B80,"NO"),"NA") -> NO
A82: 68 | B82: 68 | C82: =IF(M$53,A!G$2+A!G$3*B82+A!G$4*B82^2,"NA") -> 148.2032649 | D82: =IF(M$53,IF(B82<(A!H$3/(-2*A!H$4)),A!H$2+A!H$3*B82+A!H$4*B82^2,A!H$2+A!H$3*(A!H$3/(-2*A!H$4))+A!H$3*A!H$3/(4*A!H$4)),"NA") -> 149.6365882 | E82: =IF(M$53,A!I$2+A!I$3*EXP(A!I$4*B82),"NA") -> 151.0793867 | F82: =IF(M$53,IF((A!J$2+A!J$3*B82)<A!J$4,A!J$2+A!J$3*B82,A!J$4),"NA") -> 145.1666474 | G82: =IF(M$53,IF(B82<A!K$4,A!K$2+A!K$3*(3*B82/(2*A!K$4)-0.5*(B82/A!K$4)^3),A!K$3+A!K$2),"NA") -> 149.4581301 | H82: =IF(M$53,(C82*B$45+'C'!D82*C$45+'C'!E82*D$45+'C'!F82*E$45+'C'!G82*F$45)/SUM(B$45:F$45),"NA") -> 149.73647 | I82: 0.6096788271 | J82: =IF(M$53,IF(AND(I82<A!B$29,I81>+A!B$29),((I81-A!B$29)/('C'!I81-'C'!I82))*4+'C'!B81,"NO"),"NA") -> NO
A83: 70 | B83: 70 | C83: =IF(M$53,A!G$2+A!G$3*B83+A!G$4*B83^2,"NA") -> 149.4531278 | D83: =IF(M$53,IF(B83<(A!H$3/(-2*A!H$4)),A!H$2+A!H$3*B83+A!H$4*B83^2,A!H$2+A!H$3*(A!H$3/(-2*A!H$4))+A!H$3*A!H$3/(4*A!H$4)),"NA") -> 150.8966448 | E83: =IF(M$53,A!I$2+A!I$3*EXP(A!I$4*B83),"NA") -> 152.1337577 | F83: =IF(M$53,IF((A!J$2+A!J$3*B83)<A!J$4,A!J$2+A!J$3*B83,A!J$4),"NA") -> 146.6666523 | G83: =IF(M$53,IF(B83<A!K$4,A!K$2+A!K$3*(3*B83/(2*A!K$4)-0.5*(B83/A!K$4)^3),A!K$3+A!K$2),"NA") -> 150.8698609 | H83: =IF(M$53,(C83*B$45+'C'!D83*C$45+'C'!E83*D$45+'C'!F83*E$45+'C'!G83*F$45)/SUM(B$45:F$45),"NA") -> 150.9558277 | I83: 0.596528998 | J83: =IF(M$53,IF(AND(I83<A!B$29,I82>+A!B$29),((I82-A!B$29)/('C'!I82-'C'!I83))*4+'C'!B82,"NO"),"NA") -> NO
A84: 72 | B84: 72 | C84: =IF(M$53,A!G$2+A!G$3*B84+A!G$4*B84^2,"NA") -> 150.6799033 | D84: =IF(M$53,IF(B84<(A!H$3/(-2*A!H$4)),A!H$2+A!H$3*B84+A!H$4*B84^2,A!H$2+A!H$3*(A!H$3/(-2*A!H$4))+A!H$3*A!H$3/(4*A!H$4)),"NA") -> 152.1303692 | E84: =IF(M$53,A!I$2+A!I$3*EXP(A!I$4*B84),"NA") -> 153.1587189 | F84: =IF(M$53,IF((A!J$2+A!J$3*B84)<A!J$4,A!J$2+A!J$3*B84,A!J$4),"NA") -> 148.1666573 | G84: =IF(M$53,IF(B84<A!K$4,A!K$2+A!K$3*(3*B84/(2*A!K$4)-0.5*(B84/A!K$4)^3),A!K$3+A!K$2),"NA") -> 152.2565561 | H84: =IF(M$53,(C84*B$45+'C'!D84*C$45+'C'!E84*D$45+'C'!F84*E$45+'C'!G84*F$45)/SUM(B$45:F$45),"NA") -> 152.1488857 | I84: 0.5834462966 | J84: =IF(M$53,IF(AND(I84<A!B$29,I83>+A!B$29),((I83-A!B$29)/('C'!I83-'C'!I84))*4+'C'!B83,"NO"),"NA") -> NO
A85: 74 | B85: 74 | C85: =IF(M$53,A!G$2+A!G$3*B85+A!G$4*B85^2,"NA") -> 151.8835915 | D85: =IF(M$53,IF(B85<(A!H$3/(-2*A!H$4)),A!H$2+A!H$3*B85+A!H$4*B85^2,A!H$2+A!H$3*(A!H$3/(-2*A!H$4))+A!H$3*A!H$3/(4*A!H$4)),"NA") -> 153.3377615 | E85: =IF(M$53,A!I$2+A!I$3*EXP(A!I$4*B85),"NA") -> 154.1550907 | F85: =IF(M$53,IF((A!J$2+A!J$3*B85)<A!J$4,A!J$2+A!J$3*B85,A!J$4),"NA") -> 149.6666623 | G85: =IF(M$53,IF(B85<A!K$4,A!K$2+A!K$3*(3*B85/(2*A!K$4)-0.5*(B85/A!K$4)^3),A!K$3+A!K$2),"NA") -> 153.6175003 | H85: =IF(M$53,(C85*B$45+'C'!D85*C$45+'C'!E85*D$45+'C'!F85*E$45+'C'!G85*F$45)/SUM(B$45:F$45),"NA") -> 153.3157783 | I85: 0.5704269924 | J85: =IF(M$53,IF(AND(I85<A!B$29,I84>+A!B$29),((I84-A!B$29)/('C'!I84-'C'!I85))*4+'C'!B84,"NO"),"NA") -> NO
A86: 76 | B86: 76 | C86: =IF(M$53,A!G$2+A!G$3*B86+A!G$4*B86^2,"NA") -> 153.0641924 | D86: =IF(M$53,IF(B86<(A!H$3/(-2*A!H$4)),A!H$2+A!H$3*B86+A!H$4*B86^2,A!H$2+A!H$3*(A!H$3/(-2*A!H$4))+A!H$3*A!H$3/(4*A!H$4)),"NA") -> 154.5188216 | E86: =IF(M$53,A!I$2+A!I$3*EXP(A!I$4*B86),"NA") -> 155.1236706 | F86: =IF(M$53,IF((A!J$2+A!J$3*B86)<A!J$4,A!J$2+A!J$3*B86,A!J$4),"NA") -> 151.1666672 | G86: =IF(M$53,IF(B86<A!K$4,A!K$2+A!K$3*(3*B86/(2*A!K$4)-0.5*(B86/A!K$4)^3),A!K$3+A!K$2),"NA") -> 154.9519783 | H86: =IF(M$53,(C86*B$45+'C'!D86*C$45+'C'!E86*D$45+'C'!F86*E$45+'C'!G86*F$45)/SUM(B$45:F$45),"NA") -> 154.4566322 | I86: 0.5574674592 | J86: =IF(M$53,IF(AND(I86<A!B$29,I85>+A!B$29),((I85-A!B$29)/('C'!I85-'C'!I86))*4+'C'!B85,"NO"),"NA") -> NO
A87: 78 | B87: 78 | C87: =IF(M$53,A!G$2+A!G$3*B87+A!G$4*B87^2,"NA") -> 154.2217059 | D87: =IF(M$53,IF(B87<(A!H$3/(-2*A!H$4)),A!H$2+A!H$3*B87+A!H$4*B87^2,A!H$2+A!H$3*(A!H$3/(-2*A!H$4))+A!H$3*A!H$3/(4*A!H$4)),"NA") -> 155.6735496 | E87: =IF(M$53,A!I$2+A!I$3*EXP(A!I$4*B87),"NA") -> 156.0652337 | F87: =IF(M$53,IF((A!J$2+A!J$3*B87)<A!J$4,A!J$2+A!J$3*B87,A!J$4),"NA") -> 152.6666722 | G87: =IF(M$53,IF(B87<A!K$4,A!K$2+A!K$3*(3*B87/(2*A!K$4)-0.5*(B87/A!K$4)^3),A!K$3+A!K$2),"NA") -> 156.2592747 | H87: =IF(M$53,(C87*B$45+'C'!D87*C$45+'C'!E87*D$45+'C'!F87*E$45+'C'!G87*F$45)/SUM(B$45:F$45),"NA") -> 155.5715672 | I87: 0.5445641717 | J87: =IF(M$53,IF(AND(I87<A!B$29,I86>+A!B$29),((I86-A!B$29)/('C'!I86-'C'!I87))*4+'C'!B86,"NO"),"NA") -> NO
A88: 80 | B88: 80 | C88: =IF(M$53,A!G$2+A!G$3*B88+A!G$4*B88^2,"NA") -> 155.356132 | D88: =IF(M$53,IF(B88<(A!H$3/(-2*A!H$4)),A!H$2+A!H$3*B88+A!H$4*B88^2,A!H$2+A!H$3*(A!H$3/(-2*A!H$4))+A!H$3*A!H$3/(4*A!H$4)),"NA") -> 156.8019455 | E88: =IF(M$53,A!I$2+A!I$3*EXP(A!I$4*B88),"NA") -> 156.9805336 | F88: =IF(M$53,IF((A!J$2+A!J$3*B88)<A!J$4,A!J$2+A!J$3*B88,A!J$4),"NA") -> 154.1666771 | G88: =IF(M$53,IF(B88<A!K$4,A!K$2+A!K$3*(3*B88/(2*A!K$4)-0.5*(B88/A!K$4)^3),A!K$3+A!K$2),"NA") -> 157.5386742 | H88: =IF(M$53,(C88*B$45+'C'!D88*C$45+'C'!E88*D$45+'C'!F88*E$45+'C'!G88*F$45)/SUM(B$45:F$45),"NA") -> 156.6606955 | I88: 0.5317137032 | J88: =IF(M$53,IF(AND(I88<A!B$29,I87>+A!B$29),((I87-A!B$29)/('C'!I87-'C'!I88))*4+'C'!B87,"NO"),"NA") -> NO
A89: 82 | B89: 82 | C89: =IF(M$53,A!G$2+A!G$3*B89+A!G$4*B89^2,"NA") -> 156.4674708 | D89: =IF(M$53,IF(B89<(A!H$3/(-2*A!H$4)),A!H$2+A!H$3*B89+A!H$4*B89^2,A!H$2+A!H$3*(A!H$3/(-2*A!H$4))+A!H$3*A!H$3/(4*A!H$4)),"NA") -> 157.9040092 | E89: =IF(M$53,A!I$2+A!I$3*EXP(A!I$4*B89),"NA") -> 157.870303 | F89: =IF(M$53,IF((A!J$2+A!J$3*B89)<A!J$4,A!J$2+A!J$3*B89,A!J$4),"NA") -> 155.6666821 | G89: =IF(M$53,IF(B89<A!K$4,A!K$2+A!K$3*(3*B89/(2*A!K$4)-0.5*(B89/A!K$4)^3),A!K$3+A!K$2),"NA") -> 158.7894615 | H89: =IF(M$53,(C89*B$45+'C'!D89*C$45+'C'!E89*D$45+'C'!F89*E$45+'C'!G89*F$45)/SUM(B$45:F$45),"NA") -> 157.7241229 | I89: 0.5189127224 | J89: =IF(M$53,IF(AND(I89<A!B$29,I88>+A!B$29),((I88-A!B$29)/('C'!I88-'C'!I89))*4+'C'!B88,"NO"),"NA") -> NO
A90: 84 | B90: 84 | C90: =IF(M$53,A!G$2+A!G$3*B90+A!G$4*B90^2,"NA") -> 157.5557223 | D90: =IF(M$53,IF(B90<(A!H$3/(-2*A!H$4)),A!H$2+A!H$3*B90+A!H$4*B90^2,A!H$2+A!H$3*(A!H$3/(-2*A!H$4))+A!H$3*A!H$3/(4*A!H$4)),"NA") -> 158.9797408 | E90: =IF(M$53,A!I$2+A!I$3*EXP(A!I$4*B90),"NA") -> 158.7352539 | F90: =IF(M$53,IF((A!J$2+A!J$3*B90)<A!J$4,A!J$2+A!J$3*B90,A!J$4),"NA") -> 157.166687 | G90: =IF(M$53,IF(B90<A!K$4,A!K$2+A!K$3*(3*B90/(2*A!K$4)-0.5*(B90/A!K$4)^3),A!K$3+A!K$2),"NA") -> 160.0109214 | H90: =IF(M$53,(C90*B$45+'C'!D90*C$45+'C'!E90*D$45+'C'!F90*E$45+'C'!G90*F$45)/SUM(B$45:F$45),"NA") -> 158.7619484 | I90: 0.506157991 | J90: =IF(M$53,IF(AND(I90<A!B$29,I89>+A!B$29),((I89-A!B$29)/('C'!I89-'C'!I90))*4+'C'!B89,"NO"),"NA") -> NO
A91: 86 | B91: 86 | C91: =IF(M$53,A!G$2+A!G$3*B91+A!G$4*B91^2,"NA") -> 158.6208864 | D91: =IF(M$53,IF(B91<(A!H$3/(-2*A!H$4)),A!H$2+A!H$3*B91+A!H$4*B91^2,A!H$2+A!H$3*(A!H$3/(-2*A!H$4))+A!H$3*A!H$3/(4*A!H$4)),"NA") -> 160.0291403 | E91: =IF(M$53,A!I$2+A!I$3*EXP(A!I$4*B91),"NA") -> 159.5760785 | F91: =IF(M$53,IF((A!J$2+A!J$3*B91)<A!J$4,A!J$2+A!J$3*B91,A!J$4),"NA") -> 158.666692 | G91: =IF(M$53,IF(B91<A!K$4,A!K$2+A!K$3*(3*B91/(2*A!K$4)-0.5*(B91/A!K$4)^3),A!K$3+A!K$2),"NA") -> 161.2023384 | H91: =IF(M$53,(C91*B$45+'C'!D91*C$45+'C'!E91*D$45+'C'!F91*E$45+'C'!G91*F$45)/SUM(B$45:F$45),"NA") -> 159.7742643 | I91: 0.4934463609 | J91: =IF(M$53,IF(AND(I91<A!B$29,I90>+A!B$29),((I90-A!B$29)/('C'!I90-'C'!I91))*4+'C'!B90,"NO"),"NA") -> NO
A92: 88 | B92: 88 | C92: =IF(M$53,A!G$2+A!G$3*B92+A!G$4*B92^2,"NA") -> 159.6629631 | D92: =IF(M$53,IF(B92<(A!H$3/(-2*A!H$4)),A!H$2+A!H$3*B92+A!H$4*B92^2,A!H$2+A!H$3*(A!H$3/(-2*A!H$4))+A!H$3*A!H$3/(4*A!H$4)),"NA") -> 161.0522076 | E92: =IF(M$53,A!I$2+A!I$3*EXP(A!I$4*B92),"NA") -> 160.3934499 | F92: =IF(M$53,IF((A!J$2+A!J$3*B92)<A!J$4,A!J$2+A!J$3*B92,A!J$4),"NA") -> 160.1666969 | G92: =IF(M$53,IF(B92<A!K$4,A!K$2+A!K$3*(3*B92/(2*A!K$4)-0.5*(B92/A!K$4)^3),A!K$3+A!K$2),"NA") -> 162.3629974 | H92: =IF(M$53,(C92*B$45+'C'!D92*C$45+'C'!E92*D$45+'C'!F92*E$45+'C'!G92*F$45)/SUM(B$45:F$45),"NA") -> 160.7611571 | I92: 0.480774772 | J92: =IF(M$53,IF(AND(I92<A!B$29,I91>+A!B$29),((I91-A!B$29)/('C'!I91-'C'!I92))*4+'C'!B91,"NO"),"NA") -> NO
A93: 90 | B93: 90 | C93: =IF(M$53,A!G$2+A!G$3*B93+A!G$4*B93^2,"NA") -> 160.6819525 | D93: =IF(M$53,IF(B93<(A!H$3/(-2*A!H$4)),A!H$2+A!H$3*B93+A!H$4*B93^2,A!H$2+A!H$3*(A!H$3/(-2*A!H$4))+A!H$3*A!H$3/(4*A!H$4)),"NA") -> 162.0489428 | E93: =IF(M$53,A!I$2+A!I$3*EXP(A!I$4*B93),"NA") -> 161.1880223 | F93: =IF(M$53,IF((A!J$2+A!J$3*B93)<A!J$4,A!J$2+A!J$3*B93,A!J$4),"NA") -> 161.6667019 | G93: =IF(M$53,IF(B93<A!K$4,A!K$2+A!K$3*(3*B93/(2*A!K$4)-0.5*(B93/A!K$4)^3),A!K$3+A!K$2),"NA") -> 163.492183 | H93: =IF(M$53,(C93*B$45+'C'!D93*C$45+'C'!E93*D$45+'C'!F93*E$45+'C'!G93*F$45)/SUM(B$45:F$45),"NA") -> 161.7227066 | I93: 0.4681402495 | J93: =IF(M$53,IF(AND(I93<A!B$29,I92>+A!B$29),((I92-A!B$29)/('C'!I92-'C'!I93))*4+'C'!B92,"NO"),"NA") -> NO
A94: 92 | B94: 92 | C94: =IF(M$53,A!G$2+A!G$3*B94+A!G$4*B94^2,"NA") -> 161.6778546 | D94: =IF(M$53,IF(B94<(A!H$3/(-2*A!H$4)),A!H$2+A!H$3*B94+A!H$4*B94^2,A!H$2+A!H$3*(A!H$3/(-2*A!H$4))+A!H$3*A!H$3/(4*A!H$4)),"NA") -> 163.0193459 | E94: =IF(M$53,A!I$2+A!I$3*EXP(A!I$4*B94),"NA") -> 161.9604315 | F94: =IF(M$53,IF((A!J$2+A!J$3*B94)<A!J$4,A!J$2+A!J$3*B94,A!J$4),"NA") -> 163.1667069 | G94: =IF(M$53,IF(B94<A!K$4,A!K$2+A!K$3*(3*B94/(2*A!K$4)-0.5*(B94/A!K$4)^3),A!K$3+A!K$2),"NA") -> 164.5891799 | H94: =IF(M$53,(C94*B$45+'C'!D94*C$45+'C'!E94*D$45+'C'!F94*E$45+'C'!G94*F$45)/SUM(B$45:F$45),"NA") -> 162.6589871 | I94: 0.4555399014 | J94: =IF(M$53,IF(AND(I94<A!B$29,I93>+A!B$29),((I93-A!B$29)/('C'!I93-'C'!I94))*4+'C'!B93,"NO"),"NA") -> NO
A95: 94 | B95: 94 | C95: =IF(M$53,A!G$2+A!G$3*B95+A!G$4*B95^2,"NA") -> 162.6506693 | D95: =IF(M$53,IF(B95<(A!H$3/(-2*A!H$4)),A!H$2+A!H$3*B95+A!H$4*B95^2,A!H$2+A!H$3*(A!H$3/(-2*A!H$4))+A!H$3*A!H$3/(4*A!H$4)),"NA") -> 163.9634168 | E95: =IF(M$53,A!I$2+A!I$3*EXP(A!I$4*B95),"NA") -> 162.7112958 | F95: =IF(M$53,IF((A!J$2+A!J$3*B95)<A!J$4,A!J$2+A!J$3*B95,A!J$4),"NA") -> 164.6667118 | G95: =IF(M$53,IF(B95<A!K$4,A!K$2+A!K$3*(3*B95/(2*A!K$4)-0.5*(B95/A!K$4)^3),A!K$3+A!K$2),"NA") -> 165.6532727 | H95: =IF(M$53,(C95*B$45+'C'!D95*C$45+'C'!E95*D$45+'C'!F95*E$45+'C'!G95*F$45)/SUM(B$45:F$45),"NA") -> 163.5700669 | I95: 0.4429709166 | J95: =IF(M$53,IF(AND(I95<A!B$29,I94>+A!B$29),((I94-A!B$29)/('C'!I94-'C'!I95))*4+'C'!B94,"NO"),"NA") -> NO
A96: 96 | B96: 96 | C96: =IF(M$53,A!G$2+A!G$3*B96+A!G$4*B96^2,"NA") -> 163.6003967 | D96: =IF(M$53,IF(B96<(A!H$3/(-2*A!H$4)),A!H$2+A!H$3*B96+A!H$4*B96^2,A!H$2+A!H$3*(A!H$3/(-2*A!H$4))+A!H$3*A!H$3/(4*A!H$4)),"NA") -> 164.8811556 | E96: =IF(M$53,A!I$2+A!I$3*EXP(A!I$4*B96),"NA") -> 163.4412161 | F96: =IF(M$53,IF((A!J$2+A!J$3*B96)<A!J$4,A!J$2+A!J$3*B96,A!J$4),"NA") -> 166.1667168 | G96: =IF(M$53,IF(B96<A!K$4,A!K$2+A!K$3*(3*B96/(2*A!K$4)-0.5*(B96/A!K$4)^3),A!K$3+A!K$2),"NA") -> 166.6837463 | H96: =IF(M$53,(C96*B$45+'C'!D96*C$45+'C'!E96*D$45+'C'!F96*E$45+'C'!G96*F$45)/SUM(B$45:F$45),"NA") -> 164.4560087 | I96: 0.4304305623 | J96: =IF(M$53,IF(AND(I96<A!B$29,I95>+A!B$29),((I95-A!B$29)/('C'!I95-'C'!I96))*4+'C'!B95,"NO"),"NA") -> NO
A97: 98 | B97: 98 | C97: =IF(M$53,A!G$2+A!G$3*B97+A!G$4*B97^2,"NA") -> 164.5270367 | D97: =IF(M$53,IF(B97<(A!H$3/(-2*A!H$4)),A!H$2+A!H$3*B97+A!H$4*B97^2,A!H$2+A!H$3*(A!H$3/(-2*A!H$4))+A!H$3*A!H$3/(4*A!H$4)),"NA") -> 165.7725622 | E97: =IF(M$53,A!I$2+A!I$3*EXP(A!I$4*B97),"NA") -> 164.1507767 | F97: =IF(M$53,IF((A!J$2+A!J$3*B97)<A!J$4,A!J$2+A!J$3*B97,A!J$4),"NA") -> 167.6667217 | G97: =IF(M$53,IF(B97<A!K$4,A!K$2+A!K$3*(3*B97/(2*A!K$4)-0.5*(B97/A!K$4)^3),A!K$3+A!K$2),"NA") -> 167.6798852 | H97: =IF(M$53,(C97*B$45+'C'!D97*C$45+'C'!E97*D$45+'C'!F97*E$45+'C'!G97*F$45)/SUM(B$45:F$45),"NA") -> 165.3168699 | I97: 0.4179161819 | J97: =IF(M$53,IF(AND(I97<A!B$29,I96>+A!B$29),((I96-A!B$29)/('C'!I96-'C'!I97))*4+'C'!B96,"NO"),"NA") -> NO
A98: 100 | B98: 100 | C98: =IF(M$53,A!G$2+A!G$3*B98+A!G$4*B98^2,"NA") -> 165.4305894 | D98: =IF(M$53,IF(B98<(A!H$3/(-2*A!H$4)),A!H$2+A!H$3*B98+A!H$4*B98^2,A!H$2+A!H$3*(A!H$3/(-2*A!H$4))+A!H$3*A!H$3/(4*A!H$4)),"NA") -> 166.6376367 | E98: =IF(M$53,A!I$2+A!I$3*EXP(A!I$4*B98),"NA") -> 164.8405453 | F98: =IF(M$53,IF((A!J$2+A!J$3*B98)<A!J$4,A!J$2+A!J$3*B98,A!J$4),"NA") -> 169.1667267 | G98: =IF(M$53,IF(B98<A!K$4,A!K$2+A!K$3*(3*B98/(2*A!K$4)-0.5*(B98/A!K$4)^3),A!K$3+A!K$2),"NA") -> 168.6409743 | H98: =IF(M$53,(C98*B$45+'C'!D98*C$45+'C'!E98*D$45+'C'!F98*E$45+'C'!G98*F$45)/SUM(B$45:F$45),"NA") -> 166.1527022 | I98: 0.405425193 | J98: =IF(M$53,IF(AND(I98<A!B$29,I97>+A!B$29),((I97-A!B$29)/('C'!I97-'C'!I98))*4+'C'!B97,"NO"),"NA") -> NO
A99: 102 | B99: 102 | C99: =IF(M$53,A!G$2+A!G$3*B99+A!G$4*B99^2,"NA") -> 166.3110547 | D99: =IF(M$53,IF(B99<(A!H$3/(-2*A!H$4)),A!H$2+A!H$3*B99+A!H$4*B99^2,A!H$2+A!H$3*(A!H$3/(-2*A!H$4))+A!H$3*A!H$3/(4*A!H$4)),"NA") -> 167.4763791 | E99: =IF(M$53,A!I$2+A!I$3*EXP(A!I$4*B99),"NA") -> 165.5110742 | F99: =IF(M$53,IF((A!J$2+A!J$3*B99)<A!J$4,A!J$2+A!J$3*B99,A!J$4),"NA") -> 170.6667316 | G99: =IF(M$53,IF(B99<A!K$4,A!K$2+A!K$3*(3*B99/(2*A!K$4)-0.5*(B99/A!K$4)^3),A!K$3+A!K$2),"NA") -> 169.5662981 | H99: =IF(M$53,(C99*B$45+'C'!D99*C$45+'C'!E99*D$45+'C'!F99*E$45+'C'!G99*F$45)/SUM(B$45:F$45),"NA") -> 166.9635526 | I99: 0.3929550852 | J99: =IF(M$53,IF(AND(I99<A!B$29,I98>+A!B$29),((I98-A!B$29)/('C'!I98-'C'!I99))*4+'C'!B98,"NO"),"NA") -> NO
A100: 104 | B100: 104 | C100: =IF(M$53,A!G$2+A!G$3*B100+A!G$4*B100^2,"NA") -> 167.1684326 | D100: =IF(M$53,IF(B100<(A!H$3/(-2*A!H$4)),A!H$2+A!H$3*B100+A!H$4*B100^2,A!H$2+A!H$3*(A!H$3/(-2*A!H$4))+A!H$3*A!H$3/(4*A!H$4)),"NA") -> 168.2887893 | E100: =IF(M$53,A!I$2+A!I$3*EXP(A!I$4*B100),"NA") -> 166.1628998 | F100: =IF(M$53,IF((A!J$2+A!J$3*B100)<A!J$4,A!J$2+A!J$3*B100,A!J$4),"NA") -> 172.1667366 | G100: =IF(M$53,IF(B100<A!K$4,A!K$2+A!K$3*(3*B100/(2*A!K$4)-0.5*(B100/A!K$4)^3),A!K$3+A!K$2),"NA") -> 170.4551414 | H100: =IF(M$53,(C100*B$45+'C'!D100*C$45+'C'!E100*D$45+'C'!F100*E$45+'C'!G100*F$45)/SUM(B$45:F$45),"NA") -> 167.7494628 | I100: 0.380503418 | J100: =IF(M$53,IF(AND(I100<A!B$29,I99>+A!B$29),((I99-A!B$29)/('C'!I99-'C'!I100))*4+'C'!B99,"NO"),"NA") -> NO
A101: 106 | B101: 106 | C101: =IF(M$53,A!G$2+A!G$3*B101+A!G$4*B101^2,"NA") -> 168.0027233 | D101: =IF(M$53,IF(B101<(A!H$3/(-2*A!H$4)),A!H$2+A!H$3*B101+A!H$4*B101^2,A!H$2+A!H$3*(A!H$3/(-2*A!H$4))+A!H$3*A!H$3/(4*A!H$4)),"NA") -> 169.0748674 | E101: =IF(M$53,A!I$2+A!I$3*EXP(A!I$4*B101),"NA") -> 166.796544 | F101: =IF(M$53,IF((A!J$2+A!J$3*B101)<A!J$4,A!J$2+A!J$3*B101,A!J$4),"NA") -> 173.6667416 | G101: =IF(M$53,IF(B101<A!K$4,A!K$2+A!K$3*(3*B101/(2*A!K$4)-0.5*(B101/A!K$4)^3),A!K$3+A!K$2),"NA") -> 171.3067888 | H101: =IF(M$53,(C101*B$45+'C'!D101*C$45+'C'!E101*D$45+'C'!F101*E$45+'C'!G101*F$45)/SUM(B$45:F$45),"NA") -> 168.5104696 | I101: 0.3680678191 | J101: =IF(M$53,IF(AND(I101<A!B$29,I100>+A!B$29),((I100-A!B$29)/('C'!I100-'C'!I101))*4+'C'!B100,"NO"),"NA") -> NO
A102: 108 | B102: 108 | C102: =IF(M$53,A!G$2+A!G$3*B102+A!G$4*B102^2,"NA") -> 168.8139265 | D102: =IF(M$53,IF(B102<(A!H$3/(-2*A!H$4)),A!H$2+A!H$3*B102+A!H$4*B102^2,A!H$2+A!H$3*(A!H$3/(-2*A!H$4))+A!H$3*A!H$3/(4*A!H$4)),"NA") -> 169.8346134 | E102: =IF(M$53,A!I$2+A!I$3*EXP(A!I$4*B102),"NA") -> 167.4125139 | F102: =IF(M$53,IF((A!J$2+A!J$3*B102)<A!J$4,A!J$2+A!J$3*B102,A!J$4),"NA") -> 175.1667465 | G102: =IF(M$53,IF(B102<A!K$4,A!K$2+A!K$3*(3*B102/(2*A!K$4)-0.5*(B102/A!K$4)^3),A!K$3+A!K$2),"NA") -> 172.1205251 | H102: =IF(M$53,(C102*B$45+'C'!D102*C$45+'C'!E102*D$45+'C'!F102*E$45+'C'!G102*F$45)/SUM(B$45:F$45),"NA") -> 169.2466053 | I102: 0.3556459824 | J102: =IF(M$53,IF(AND(I102<A!B$29,I101>+A!B$29),((I101-A!B$29)/('C'!I101-'C'!I102))*4+'C'!B101,"NO"),"NA") -> NO
A103: 110 | B103: 110 | C103: =IF(M$53,A!G$2+A!G$3*B103+A!G$4*B103^2,"NA") -> 169.6020425 | D103: =IF(M$53,IF(B103<(A!H$3/(-2*A!H$4)),A!H$2+A!H$3*B103+A!H$4*B103^2,A!H$2+A!H$3*(A!H$3/(-2*A!H$4))+A!H$3*A!H$3/(4*A!H$4)),"NA") -> 170.5680272 | E103: =IF(M$53,A!I$2+A!I$3*EXP(A!I$4*B103),"NA") -> 168.0113024 | F103: =IF(M$53,IF((A!J$2+A!J$3*B103)<A!J$4,A!J$2+A!J$3*B103,A!J$4),"NA") -> 176.6667515 | G103: =IF(M$53,IF(B103<A!K$4,A!K$2+A!K$3*(3*B103/(2*A!K$4)-0.5*(B103/A!K$4)^3),A!K$3+A!K$2),"NA") -> 172.895635 | H103: =IF(M$53,(C103*B$45+'C'!D103*C$45+'C'!E103*D$45+'C'!F103*E$45+'C'!G103*F$45)/SUM(B$45:F$45),"NA") -> 169.9578972 | I103: 0.3432356661 | J103: =IF(M$53,IF(AND(I103<A!B$29,I102>+A!B$29),((I102-A!B$29)/('C'!I102-'C'!I103))*4+'C'!B102,"NO"),"NA") -> NO
A104: 112 | B104: 112 | C104: =IF(M$53,A!G$2+A!G$3*B104+A!G$4*B104^2,"NA") -> 170.367071 | D104: =IF(M$53,IF(B104<(A!H$3/(-2*A!H$4)),A!H$2+A!H$3*B104+A!H$4*B104^2,A!H$2+A!H$3*(A!H$3/(-2*A!H$4))+A!H$3*A!H$3/(4*A!H$4)),"NA") -> 171.2751089 | E104: =IF(M$53,A!I$2+A!I$3*EXP(A!I$4*B104),"NA") -> 168.5933888 | F104: =IF(M$53,IF((A!J$2+A!J$3*B104)<A!J$4,A!J$2+A!J$3*B104,A!J$4),"NA") -> 178.1667564 | G104: =IF(M$53,IF(B104<A!K$4,A!K$2+A!K$3*(3*B104/(2*A!K$4)-0.5*(B104/A!K$4)^3),A!K$3+A!K$2),"NA") -> 173.6314031 | H104: =IF(M$53,(C104*B$45+'C'!D104*C$45+'C'!E104*D$45+'C'!F104*E$45+'C'!G104*F$45)/SUM(B$45:F$45),"NA") -> 170.6443686 | I104: 0.3308346908 | J104: =IF(M$53,IF(AND(I104<A!B$29,I103>+A!B$29),((I103-A!B$29)/('C'!I103-'C'!I104))*4+'C'!B103,"NO"),"NA") -> NO
A105: 114 | B105: 114 | C105: =IF(M$53,A!G$2+A!G$3*B105+A!G$4*B105^2,"NA") -> 171.1090123 | D105: =IF(M$53,IF(B105<(A!H$3/(-2*A!H$4)),A!H$2+A!H$3*B105+A!H$4*B105^2,A!H$2+A!H$3*(A!H$3/(-2*A!H$4))+A!H$3*A!H$3/(4*A!H$4)),"NA") -> 171.9558584 | E105: =IF(M$53,A!I$2+A!I$3*EXP(A!I$4*B105),"NA") -> 169.159239 | F105: =IF(M$53,IF((A!J$2+A!J$3*B105)<A!J$4,A!J$2+A!J$3*B105,A!J$4),"NA") -> 179.6667614 | G105: =IF(M$53,IF(B105<A!K$4,A!K$2+A!K$3*(3*B105/(2*A!K$4)-0.5*(B105/A!K$4)^3),A!K$3+A!K$2),"NA") -> 174.3271142 | H105: =IF(M$53,(C105*B$45+'C'!D105*C$45+'C'!E105*D$45+'C'!F105*E$45+'C'!G105*F$45)/SUM(B$45:F$45),"NA") -> 171.3060379 | I105: 0.3173302475 | J105: =IF(M$53,IF(AND(I105<A!B$29,I104>+A!B$29),((I104-A!B$29)/('C'!I104-'C'!I105))*4+'C'!B104,"NO"),"NA") -> NO
A106: 116 | B106: 116 | C106: =IF(M$53,A!G$2+A!G$3*B106+A!G$4*B106^2,"NA") -> 171.8278661 | D106: =IF(M$53,IF(B106<(A!H$3/(-2*A!H$4)),A!H$2+A!H$3*B106+A!H$4*B106^2,A!H$2+A!H$3*(A!H$3/(-2*A!H$4))+A!H$3*A!H$3/(4*A!H$4)),"NA") -> 172.6102758 | E106: =IF(M$53,A!I$2+A!I$3*EXP(A!I$4*B106),"NA") -> 169.7093059 | F106: =IF(M$53,IF((A!J$2+A!J$3*B106)<A!J$4,A!J$2+A!J$3*B106,A!J$4),"NA") -> 179.9999493 | G106: =IF(M$53,IF(B106<A!K$4,A!K$2+A!K$3*(3*B106/(2*A!K$4)-0.5*(B106/A!K$4)^3),A!K$3+A!K$2),"NA") -> 174.982053 | H106: =IF(M$53,(C106*B$45+'C'!D106*C$45+'C'!E106*D$45+'C'!F106*E$45+'C'!G106*F$45)/SUM(B$45:F$45),"NA") -> 171.9406984 | I106: 0.304624497 | J106: =IF(M$53,IF(AND(I106<A!B$29,I105>+A!B$29),((I105-A!B$29)/('C'!I105-'C'!I106))*4+'C'!B105,"NO"),"NA") -> NO
A107: 118 | B107: 118 | C107: =IF(M$53,A!G$2+A!G$3*B107+A!G$4*B107^2,"NA") -> 172.5236327 | D107: =IF(M$53,IF(B107<(A!H$3/(-2*A!H$4)),A!H$2+A!H$3*B107+A!H$4*B107^2,A!H$2+A!H$3*(A!H$3/(-2*A!H$4))+A!H$3*A!H$3/(4*A!H$4)),"NA") -> 173.2383611 | E107: =IF(M$53,A!I$2+A!I$3*EXP(A!I$4*B107),"NA") -> 170.2440296 | F107: =IF(M$53,IF((A!J$2+A!J$3*B107)<A!J$4,A!J$2+A!J$3*B107,A!J$4),"NA") -> 179.9999493 | G107: =IF(M$53,IF(B107<A!K$4,A!K$2+A!K$3*(3*B107/(2*A!K$4)-0.5*(B107/A!K$4)^3),A!K$3+A!K$2),"NA") -> 175.595504 | H107: =IF(M$53,(C107*B$45+'C'!D107*C$45+'C'!E107*D$45+'C'!F107*E$45+'C'!G107*F$45)/SUM(B$45:F$45),"NA") -> 172.5499474 | I107: 0.2922390685 | J107: =IF(M$53,IF(AND(I107<A!B$29,I106>+A!B$29),((I106-A!B$29)/('C'!I106-'C'!I107))*4+'C'!B106,"NO"),"NA") -> NO
A108: 120 | B108: 120 | C108: =IF(M$53,A!G$2+A!G$3*B108+A!G$4*B108^2,"NA") -> 173.1963118 | D108: =IF(M$53,IF(B108<(A!H$3/(-2*A!H$4)),A!H$2+A!H$3*B108+A!H$4*B108^2,A!H$2+A!H$3*(A!H$3/(-2*A!H$4))+A!H$3*A!H$3/(4*A!H$4)),"NA") -> 173.8401142 | E108: =IF(M$53,A!I$2+A!I$3*EXP(A!I$4*B108),"NA") -> 170.7638383 | F108: =IF(M$53,IF((A!J$2+A!J$3*B108)<A!J$4,A!J$2+A!J$3*B108,A!J$4),"NA") -> 179.9999493 | G108: =IF(M$53,IF(B108<A!K$4,A!K$2+A!K$3*(3*B108/(2*A!K$4)-0.5*(B108/A!K$4)^3),A!K$3+A!K$2),"NA") -> 176.1667521 | H108: =IF(M$53,(C108*B$45+'C'!D108*C$45+'C'!E108*D$45+'C'!F108*E$45+'C'!G108*F$45)/SUM(B$45:F$45),"NA") -> 173.1344256 | I108: 0.2798548549 | J108: =IF(M$53,IF(AND(I108<A!B$29,I107>+A!B$29),((I107-A!B$29)/('C'!I107-'C'!I108))*4+'C'!B107,"NO"),"NA") -> NO
A109: 122 | B109: 122 | C109: =IF(M$53,A!G$2+A!G$3*B109+A!G$4*B109^2,"NA") -> 173.8459037 | D109: =IF(M$53,IF(B109<(A!H$3/(-2*A!H$4)),A!H$2+A!H$3*B109+A!H$4*B109^2,A!H$2+A!H$3*(A!H$3/(-2*A!H$4))+A!H$3*A!H$3/(4*A!H$4)),"NA") -> 174.4155352 | E109: =IF(M$53,A!I$2+A!I$3*EXP(A!I$4*B109),"NA") -> 171.2691478 | F109: =IF(M$53,IF((A!J$2+A!J$3*B109)<A!J$4,A!J$2+A!J$3*B109,A!J$4),"NA") -> 179.9999493 | G109: =IF(M$53,IF(B109<A!K$4,A!K$2+A!K$3*(3*B109/(2*A!K$4)-0.5*(B109/A!K$4)^3),A!K$3+A!K$2),"NA") -> 176.695082 | H109: =IF(M$53,(C109*B$45+'C'!D109*C$45+'C'!E109*D$45+'C'!F109*E$45+'C'!G109*F$45)/SUM(B$45:F$45),"NA") -> 173.6941353 | I109: 0.2674699644 | J109: =IF(M$53,IF(AND(I109<A!B$29,I108>+A!B$29),((I108-A!B$29)/('C'!I108-'C'!I109))*4+'C'!B108,"NO"),"NA") -> NO
A110: 124 | B110: 124 | C110: =IF(M$53,A!G$2+A!G$3*B110+A!G$4*B110^2,"NA") -> 174.4724081 | D110: =IF(M$53,IF(B110<(A!H$3/(-2*A!H$4)),A!H$2+A!H$3*B110+A!H$4*B110^2,A!H$2+A!H$3*(A!H$3/(-2*A!H$4))+A!H$3*A!H$3/(4*A!H$4)),"NA") -> 174.9646241 | E110: =IF(M$53,A!I$2+A!I$3*EXP(A!I$4*B110),"NA") -> 171.7603626 | F110: =IF(M$53,IF((A!J$2+A!J$3*B110)<A!J$4,A!J$2+A!J$3*B110,A!J$4),"NA") -> 179.9999493 | G110: =IF(M$53,IF(B110<A!K$4,A!K$2+A!K$3*(3*B110/(2*A!K$4)-0.5*(B110/A!K$4)^3),A!K$3+A!K$2),"NA") -> 177.1797782 | H110: =IF(M$53,(C110*B$45+'C'!D110*C$45+'C'!E110*D$45+'C'!F110*E$45+'C'!G110*F$45)/SUM(B$45:F$45),"NA") -> 174.2290752 | I110: 0.255082558 | J110: =IF(M$53,IF(AND(I110<A!B$29,I109>+A!B$29),((I109-A!B$29)/('C'!I109-'C'!I110))*4+'C'!B109,"NO"),"NA") -> NO
A111: 126 | B111: 126 | C111: =IF(M$53,A!G$2+A!G$3*B111+A!G$4*B111^2,"NA") -> 175.0758253 | D111: =IF(M$53,IF(B111<(A!H$3/(-2*A!H$4)),A!H$2+A!H$3*B111+A!H$4*B111^2,A!H$2+A!H$3*(A!H$3/(-2*A!H$4))+A!H$3*A!H$3/(4*A!H$4)),"NA") -> 175.4873808 | E111: =IF(M$53,A!I$2+A!I$3*EXP(A!I$4*B111),"NA") -> 172.2378759 | F111: =IF(M$53,IF((A!J$2+A!J$3*B111)<A!J$4,A!J$2+A!J$3*B111,A!J$4),"NA") -> 179.9999493 | G111: =IF(M$53,IF(B111<A!K$4,A!K$2+A!K$3*(3*B111/(2*A!K$4)-0.5*(B111/A!K$4)^3),A!K$3+A!K$2),"NA") -> 177.6201256 | H111: =IF(M$53,(C111*B$45+'C'!D111*C$45+'C'!E111*D$45+'C'!F111*E$45+'C'!G111*F$45)/SUM(B$45:F$45),"NA") -> 174.7392403 | I111: 0.2426908479 | J111: =IF(M$53,IF(AND(I111<A!B$29,I110>+A!B$29),((I110-A!B$29)/('C'!I110-'C'!I111))*4+'C'!B110,"NO"),"NA") -> NO
A112: 128 | B112: 128 | C112: =IF(M$53,A!G$2+A!G$3*B112+A!G$4*B112^2,"NA") -> 175.6561551 | D112: =IF(M$53,IF(B112<(A!H$3/(-2*A!H$4)),A!H$2+A!H$3*B112+A!H$4*B112^2,A!H$2+A!H$3*(A!H$3/(-2*A!H$4))+A!H$3*A!H$3/(4*A!H$4)),"NA") -> 175.9838054 | E112: =IF(M$53,A!I$2+A!I$3*EXP(A!I$4*B112),"NA") -> 172.7020699 | F112: =IF(M$53,IF((A!J$2+A!J$3*B112)<A!J$4,A!J$2+A!J$3*B112,A!J$4),"NA") -> 179.9999493 | G112: =IF(M$53,IF(B112<A!K$4,A!K$2+A!K$3*(3*B112/(2*A!K$4)-0.5*(B112/A!K$4)^3),A!K$3+A!K$2),"NA") -> 178.0154088 | H112: =IF(M$53,(C112*B$45+'C'!D112*C$45+'C'!E112*D$45+'C'!F112*E$45+'C'!G112*F$45)/SUM(B$45:F$45),"NA") -> 175.224622 | I112: 0.2302930962 | J112: =IF(M$53,IF(AND(I112<A!B$29,I111>+A!B$29),((I111-A!B$29)/('C'!I111-'C'!I112))*4+'C'!B111,"NO"),"NA") -> NO
A113: 130 | B113: =IF(A113<$M$48,A113,$M$48) -> 130 | C113: =IF(M$53,A!G$2+A!G$3*B113+A!G$4*B113^2,"NA") -> 176.2133975 | D113: =IF(M$53,IF(B113<(A!H$3/(-2*A!H$4)),A!H$2+A!H$3*B113+A!H$4*B113^2,A!H$2+A!H$3*(A!H$3/(-2*A!H$4))+A!H$3*A!H$3/(4*A!H$4)),"NA") -> 176.4538979 | E113: =IF(M$53,A!I$2+A!I$3*EXP(A!I$4*B113),"NA") -> 173.153316 | F113: =IF(M$53,IF((A!J$2+A!J$3*B113)<A!J$4,A!J$2+A!J$3*B113,A!J$4),"NA") -> 179.9999493 | G113: =IF(M$53,IF(B113<A!K$4,A!K$2+A!K$3*(3*B113/(2*A!K$4)-0.5*(B113/A!K$4)^3),A!K$3+A!K$2),"NA") -> 178.3649125 | H113: =IF(M$53,(C113*B$45+'C'!D113*C$45+'C'!E113*D$45+'C'!F113*E$45+'C'!G113*F$45)/SUM(B$45:F$45),"NA") -> 175.6852082 | I113: =IF(M$53,(H114-H113)/2,"NA") -> 0.2178876133 | J113: =IF(M$53,IF(AND(I113<A!B$29,I112>+A!B$29),((I112-A!B$29)/('C'!I112-'C'!I113))*4+'C'!B112,"NO"),"NA") -> NO
A114: 132 | B114: 132 | C114: =IF(M$53,A!G$2+A!G$3*B114+A!G$4*B114^2,"NA") -> 176.7475526 | D114: =IF(M$53,IF(B114<(A!H$3/(-2*A!H$4)),A!H$2+A!H$3*B114+A!H$4*B114^2,A!H$2+A!H$3*(A!H$3/(-2*A!H$4))+A!H$3*A!H$3/(4*A!H$4)),"NA") -> 176.8976582 | E114: =IF(M$53,A!I$2+A!I$3*EXP(A!I$4*B114),"NA") -> 173.5919754 | F114: =IF(M$53,IF((A!J$2+A!J$3*B114)<A!J$4,A!J$2+A!J$3*B114,A!J$4),"NA") -> 179.9999493 | G114: =IF(M$53,IF(B114<A!K$4,A!K$2+A!K$3*(3*B114/(2*A!K$4)-0.5*(B114/A!K$4)^3),A!K$3+A!K$2),"NA") -> 178.6679215 | H114: =IF(M$53,(C114*B$45+'C'!D114*C$45+'C'!E114*D$45+'C'!F114*E$45+'C'!G114*F$45)/SUM(B$45:F$45),"NA") -> 176.1209834 | I114: 0.205472757 | J114: =IF(M$53,IF(AND(I114<A!B$29,I113>+A!B$29),((I113-A!B$29)/('C'!I113-'C'!I114))*4+'C'!B113,"NO"),"NA") -> NO
A115: 134 | B115: 134 | C115: =IF(M$53,A!G$2+A!G$3*B115+A!G$4*B115^2,"NA") -> 177.2586203 | D115: =IF(M$53,IF(B115<(A!H$3/(-2*A!H$4)),A!H$2+A!H$3*B115+A!H$4*B115^2,A!H$2+A!H$3*(A!H$3/(-2*A!H$4))+A!H$3*A!H$3/(4*A!H$4)),"NA") -> 177.3150864 | E115: =IF(M$53,A!I$2+A!I$3*EXP(A!I$4*B115),"NA") -> 174.0183993 | F115: =IF(M$53,IF((A!J$2+A!J$3*B115)<A!J$4,A!J$2+A!J$3*B115,A!J$4),"NA") -> 179.9999493 | G115: =IF(M$53,IF(B115<A!K$4,A!K$2+A!K$3*(3*B115/(2*A!K$4)-0.5*(B115/A!K$4)^3),A!K$3+A!K$2),"NA") -> 178.9237203 | H115: =IF(M$53,(C115*B$45+'C'!D115*C$45+'C'!E115*D$45+'C'!F115*E$45+'C'!G115*F$45)/SUM(B$45:F$45),"NA") -> 176.5319289 | I115: 0.1930469309 | J115: =IF(M$53,IF(AND(I115<A!B$29,I114>+A!B$29),((I114-A!B$29)/('C'!I114-'C'!I115))*4+'C'!B114,"NO"),"NA") -> NO
A116: 136 | B116: 136 | C116: =IF(M$53,A!G$2+A!G$3*B116+A!G$4*B116^2,"NA") -> 177.7466007 | D116: =IF(M$53,IF(B116<(A!H$3/(-2*A!H$4)),A!H$2+A!H$3*B116+A!H$4*B116^2,A!H$2+A!H$3*(A!H$3/(-2*A!H$4))+A!H$3*A!H$3/(4*A!H$4)),"NA") -> 177.7061824 | E116: =IF(M$53,A!I$2+A!I$3*EXP(A!I$4*B116),"NA") -> 174.4329288 | F116: =IF(M$53,IF((A!J$2+A!J$3*B116)<A!J$4,A!J$2+A!J$3*B116,A!J$4),"NA") -> 179.9999493 | G116: =IF(M$53,IF(B116<A!K$4,A!K$2+A!K$3*(3*B116/(2*A!K$4)-0.5*(B116/A!K$4)^3),A!K$3+A!K$2),"NA") -> 179.1315938 | H116: =IF(M$53,(C116*B$45+'C'!D116*C$45+'C'!E116*D$45+'C'!F116*E$45+'C'!G116*F$45)/SUM(B$45:F$45),"NA") -> 176.9180228 | I116: 0.1806085828 | J116: =IF(M$53,IF(AND(I116<A!B$29,I115>+A!B$29),((I115-A!B$29)/('C'!I115-'C'!I116))*4+'C'!B115,"NO"),"NA") -> NO
A117: 138 | B117: 138 | C117: =IF(M$53,A!G$2+A!G$3*B117+A!G$4*B117^2,"NA") -> 178.2114937 | D117: =IF(M$53,IF(B117<(A!H$3/(-2*A!H$4)),A!H$2+A!H$3*B117+A!H$4*B117^2,A!H$2+A!H$3*(A!H$3/(-2*A!H$4))+A!H$3*A!H$3/(4*A!H$4)),"NA") -> 178.0709463 | E117: =IF(M$53,A!I$2+A!I$3*EXP(A!I$4*B117),"NA") -> 174.8358959 | F117: =IF(M$53,IF((A!J$2+A!J$3*B117)<A!J$4,A!J$2+A!J$3*B117,A!J$4),"NA") -> 179.9999493 | G117: =IF(M$53,IF(B117<A!K$4,A!K$2+A!K$3*(3*B117/(2*A!K$4)-0.5*(B117/A!K$4)^3),A!K$3+A!K$2),"NA") -> 179.2908265 | H117: =IF(M$53,(C117*B$45+'C'!D117*C$45+'C'!E117*D$45+'C'!F117*E$45+'C'!G117*F$45)/SUM(B$45:F$45),"NA") -> 177.27924 | I117: 0.1681562041 | J117: =IF(M$53,IF(AND(I117<A!B$29,I116>+A!B$29),((I116-A!B$29)/('C'!I116-'C'!I117))*4+'C'!B116,"NO"),"NA") -> NO
A118: 140 | B118: 140 | C118: =IF(M$53,A!G$2+A!G$3*B118+A!G$4*B118^2,"NA") -> 178.6532994 | D118: =IF(M$53,IF(B118<(A!H$3/(-2*A!H$4)),A!H$2+A!H$3*B118+A!H$4*B118^2,A!H$2+A!H$3*(A!H$3/(-2*A!H$4))+A!H$3*A!H$3/(4*A!H$4)),"NA") -> 178.4093781 | E118: =IF(M$53,A!I$2+A!I$3*EXP(A!I$4*B118),"NA") -> 175.2276228 | F118: =IF(M$53,IF((A!J$2+A!J$3*B118)<A!J$4,A!J$2+A!J$3*B118,A!J$4),"NA") -> 179.9999493 | G118: =IF(M$53,IF(B118<A!K$4,A!K$2+A!K$3*(3*B118/(2*A!K$4)-0.5*(B118/A!K$4)^3),A!K$3+A!K$2),"NA") -> 179.4007032 | H118: =IF(M$53,(C118*B$45+'C'!D118*C$45+'C'!E118*D$45+'C'!F118*E$45+'C'!G118*F$45)/SUM(B$45:F$45),"NA") -> 177.6155524 | I118: 0.1556883283 | J118: =IF(M$53,IF(AND(I118<A!B$29,I117>+A!B$29),((I117-A!B$29)/('C'!I117-'C'!I118))*4+'C'!B117,"NO"),"NA") -> NO
A119: 142 | B119: 142 | C119: =IF(M$53,A!G$2+A!G$3*B119+A!G$4*B119^2,"NA") -> 179.0720178 | D119: =IF(M$53,IF(B119<(A!H$3/(-2*A!H$4)),A!H$2+A!H$3*B119+A!H$4*B119^2,A!H$2+A!H$3*(A!H$3/(-2*A!H$4))+A!H$3*A!H$3/(4*A!H$4)),"NA") -> 178.7214777 | E119: =IF(M$53,A!I$2+A!I$3*EXP(A!I$4*B119),"NA") -> 175.6084233 | F119: =IF(M$53,IF((A!J$2+A!J$3*B119)<A!J$4,A!J$2+A!J$3*B119,A!J$4),"NA") -> 179.9999493 | G119: =IF(M$53,IF(B119<A!K$4,A!K$2+A!K$3*(3*B119/(2*A!K$4)-0.5*(B119/A!K$4)^3),A!K$3+A!K$2),"NA") -> 179.4605087 | H119: =IF(M$53,(C119*B$45+'C'!D119*C$45+'C'!E119*D$45+'C'!F119*E$45+'C'!G119*F$45)/SUM(B$45:F$45),"NA") -> 177.926929 | I119: 0.1434534134 | J119: =IF(M$53,IF(AND(I119<A!B$29,I118>+A!B$29),((I118-A!B$29)/('C'!I118-'C'!I119))*4+'C'!B118,"NO"),"NA") -> NO
A120: 144 | B120: 144 | C120: =IF(M$53,A!G$2+A!G$3*B120+A!G$4*B120^2,"NA") -> 179.4676488 | D120: =IF(M$53,IF(B120<(A!H$3/(-2*A!H$4)),A!H$2+A!H$3*B120+A!H$4*B120^2,A!H$2+A!H$3*(A!H$3/(-2*A!H$4))+A!H$3*A!H$3/(4*A!H$4)),"NA") -> 179.0072452 | E120: =IF(M$53,A!I$2+A!I$3*EXP(A!I$4*B120),"NA") -> 175.9786021 | F120: =IF(M$53,IF((A!J$2+A!J$3*B120)<A!J$4,A!J$2+A!J$3*B120,A!J$4),"NA") -> 179.9999493 | G120: =IF(M$53,IF(B120<A!K$4,A!K$2+A!K$3*(3*B120/(2*A!K$4)-0.5*(B120/A!K$4)^3),A!K$3+A!K$2),"NA") -> 179.4722109 | H120: =IF(M$53,(C120*B$45+'C'!D120*C$45+'C'!E120*D$45+'C'!F120*E$45+'C'!G120*F$45)/SUM(B$45:F$45),"NA") -> 178.2138359 | I120: 0.1346564986 | J120: =IF(M$53,IF(AND(I120<A!B$29,I119>+A!B$29),((I119-A!B$29)/('C'!I119-'C'!I120))*4+'C'!B119,"NO"),"NA") -> NO
A121: 146 | B121: 146 | C121: =IF(M$53,A!G$2+A!G$3*B121+A!G$4*B121^2,"NA") -> 179.8401924 | D121: =IF(M$53,IF(B121<(A!H$3/(-2*A!H$4)),A!H$2+A!H$3*B121+A!H$4*B121^2,A!H$2+A!H$3*(A!H$3/(-2*A!H$4))+A!H$3*A!H$3/(4*A!H$4)),"NA") -> 179.2666806 | E121: =IF(M$53,A!I$2+A!I$3*EXP(A!I$4*B121),"NA") -> 176.3384554 | F121: =IF(M$53,IF((A!J$2+A!J$3*B121)<A!J$4,A!J$2+A!J$3*B121,A!J$4),"NA") -> 179.9999493 | G121: =IF(M$53,IF(B121<A!K$4,A!K$2+A!K$3*(3*B121/(2*A!K$4)-0.5*(B121/A!K$4)^3),A!K$3+A!K$2),"NA") -> 179.4722109 | H121: =IF(M$53,(C121*B$45+'C'!D121*C$45+'C'!E121*D$45+'C'!F121*E$45+'C'!G121*F$45)/SUM(B$45:F$45),"NA") -> 178.4831489 | I121: 0.1269962627 | J121: =IF(M$53,IF(AND(I121<A!B$29,I120>+A!B$29),((I120-A!B$29)/('C'!I120-'C'!I121))*4+'C'!B120,"NO"),"NA") -> NO
A122: 148 | B122: 148 | C122: =IF(M$53,A!G$2+A!G$3*B122+A!G$4*B122^2,"NA") -> 180.1896487 | D122: =IF(M$53,IF(B122<(A!H$3/(-2*A!H$4)),A!H$2+A!H$3*B122+A!H$4*B122^2,A!H$2+A!H$3*(A!H$3/(-2*A!H$4))+A!H$3*A!H$3/(4*A!H$4)),"NA") -> 179.4997838 | E122: =IF(M$53,A!I$2+A!I$3*EXP(A!I$4*B122),"NA") -> 176.6882713 | F122: =IF(M$53,IF((A!J$2+A!J$3*B122)<A!J$4,A!J$2+A!J$3*B122,A!J$4),"NA") -> 179.9999493 | G122: =IF(M$53,IF(B122<A!K$4,A!K$2+A!K$3*(3*B122/(2*A!K$4)-0.5*(B122/A!K$4)^3),A!K$3+A!K$2),"NA") -> 179.4722109 | H122: =IF(M$53,(C122*B$45+'C'!D122*C$45+'C'!E122*D$45+'C'!F122*E$45+'C'!G122*F$45)/SUM(B$45:F$45),"NA") -> 178.7371414 | I122: 0.119381671 | J122: =IF(M$53,IF(AND(I122<A!B$29,I121>+A!B$29),((I121-A!B$29)/('C'!I121-'C'!I122))*4+'C'!B121,"NO"),"NA") -> 146.7911477
A123: 150 | B123: 150 | C123: =IF(M$53,A!G$2+A!G$3*B123+A!G$4*B123^2,"NA") -> 180.5160176 | D123: =IF(M$53,IF(B123<(A!H$3/(-2*A!H$4)),A!H$2+A!H$3*B123+A!H$4*B123^2,A!H$2+A!H$3*(A!H$3/(-2*A!H$4))+A!H$3*A!H$3/(4*A!H$4)),"NA") -> 179.7065549 | E123: =IF(M$53,A!I$2+A!I$3*EXP(A!I$4*B123),"NA") -> 177.0283297 | F123: =IF(M$53,IF((A!J$2+A!J$3*B123)<A!J$4,A!J$2+A!J$3*B123,A!J$4),"NA") -> 179.9999493 | G123: =IF(M$53,IF(B123<A!K$4,A!K$2+A!K$3*(3*B123/(2*A!K$4)-0.5*(B123/A!K$4)^3),A!K$3+A!K$2),"NA") -> 179.4722109 | H123: =IF(M$53,(C123*B$45+'C'!D123*C$45+'C'!E123*D$45+'C'!F123*E$45+'C'!G123*F$45)/SUM(B$45:F$45),"NA") -> 178.9759047 | I123: 0.1118114504 | J123: =IF(M$53,IF(AND(I123<A!B$29,I122>+A!B$29),((I122-A!B$29)/('C'!I122-'C'!I123))*4+'C'!B122,"NO"),"NA") -> NO
A124: 152 | B124: 152 | C124: =IF(M$53,A!G$2+A!G$3*B124+A!G$4*B124^2,"NA") -> 180.8192992 | D124: =IF(M$53,IF(B124<(A!H$3/(-2*A!H$4)),A!H$2+A!H$3*B124+A!H$4*B124^2,A!H$2+A!H$3*(A!H$3/(-2*A!H$4))+A!H$3*A!H$3/(4*A!H$4)),"NA") -> 179.8869938 | E124: =IF(M$53,A!I$2+A!I$3*EXP(A!I$4*B124),"NA") -> 177.3589027 | F124: =IF(M$53,IF((A!J$2+A!J$3*B124)<A!J$4,A!J$2+A!J$3*B124,A!J$4),"NA") -> 179.9999493 | G124: =IF(M$53,IF(B124<A!K$4,A!K$2+A!K$3*(3*B124/(2*A!K$4)-0.5*(B124/A!K$4)^3),A!K$3+A!K$2),"NA") -> 179.4722109 | H124: =IF(M$53,(C124*B$45+'C'!D124*C$45+'C'!E124*D$45+'C'!F124*E$45+'C'!G124*F$45)/SUM(B$45:F$45),"NA") -> 179.1995276 | I124: 0.1042843631 | J124: =IF(M$53,IF(AND(I124<A!B$29,I123>+A!B$29),((I123-A!B$29)/('C'!I123-'C'!I124))*4+'C'!B123,"NO"),"NA") -> NO
A125: 154 | B125: 154 | C125: =IF(M$53,A!G$2+A!G$3*B125+A!G$4*B125^2,"NA") -> 181.0994935 | D125: =IF(M$53,IF(B125<(A!H$3/(-2*A!H$4)),A!H$2+A!H$3*B125+A!H$4*B125^2,A!H$2+A!H$3*(A!H$3/(-2*A!H$4))+A!H$3*A!H$3/(4*A!H$4)),"NA") -> 180.0411006 | E125: =IF(M$53,A!I$2+A!I$3*EXP(A!I$4*B125),"NA") -> 177.6802551 | F125: =IF(M$53,IF((A!J$2+A!J$3*B125)<A!J$4,A!J$2+A!J$3*B125,A!J$4),"NA") -> 179.9999493 | G125: =IF(M$53,IF(B125<A!K$4,A!K$2+A!K$3*(3*B125/(2*A!K$4)-0.5*(B125/A!K$4)^3),A!K$3+A!K$2),"NA") -> 179.4722109 | H125: =IF(M$53,(C125*B$45+'C'!D125*C$45+'C'!E125*D$45+'C'!F125*E$45+'C'!G125*F$45)/SUM(B$45:F$45),"NA") -> 179.4080964 | I125: 0.09679920615 | J125: =IF(M$53,IF(AND(I125<A!B$29,I124>+A!B$29),((I124-A!B$29)/('C'!I124-'C'!I125))*4+'C'!B124,"NO"),"NA") -> NO
A126: 156 | B126: 156 | C126: =IF(M$53,A!G$2+A!G$3*B126+A!G$4*B126^2,"NA") -> 181.3566004 | D126: =IF(M$53,IF(B126<(A!H$3/(-2*A!H$4)),A!H$2+A!H$3*B126+A!H$4*B126^2,A!H$2+A!H$3*(A!H$3/(-2*A!H$4))+A!H$3*A!H$3/(4*A!H$4)),"NA") -> 180.1688753 | E126: =IF(M$53,A!I$2+A!I$3*EXP(A!I$4*B126),"NA") -> 177.992644 | F126: =IF(M$53,IF((A!J$2+A!J$3*B126)<A!J$4,A!J$2+A!J$3*B126,A!J$4),"NA") -> 179.9999493 | G126: =IF(M$53,IF(B126<A!K$4,A!K$2+A!K$3*(3*B126/(2*A!K$4)-0.5*(B126/A!K$4)^3),A!K$3+A!K$2),"NA") -> 179.4722109 | H126: =IF(M$53,(C126*B$45+'C'!D126*C$45+'C'!E126*D$45+'C'!F126*E$45+'C'!G126*F$45)/SUM(B$45:F$45),"NA") -> 179.6016948 | I126: 0.08935480985 | J126: =IF(M$53,IF(AND(I126<A!B$29,I125>+A!B$29),((I125-A!B$29)/('C'!I125-'C'!I126))*4+'C'!B125,"NO"),"NA") -> NO
A127: 158 | B127: 158 | C127: =IF(M$53,A!G$2+A!G$3*B127+A!G$4*B127^2,"NA") -> 181.5906199 | D127: =IF(M$53,IF(B127<(A!H$3/(-2*A!H$4)),A!H$2+A!H$3*B127+A!H$4*B127^2,A!H$2+A!H$3*(A!H$3/(-2*A!H$4))+A!H$3*A!H$3/(4*A!H$4)),"NA") -> 180.2703179 | E127: =IF(M$53,A!I$2+A!I$3*EXP(A!I$4*B127),"NA") -> 178.2963193 | F127: =IF(M$53,IF((A!J$2+A!J$3*B127)<A!J$4,A!J$2+A!J$3*B127,A!J$4),"NA") -> 179.9999493 | G127: =IF(M$53,IF(B127<A!K$4,A!K$2+A!K$3*(3*B127/(2*A!K$4)-0.5*(B127/A!K$4)^3),A!K$3+A!K$2),"NA") -> 179.4722109 | H127: =IF(M$53,(C127*B$45+'C'!D127*C$45+'C'!E127*D$45+'C'!F127*E$45+'C'!G127*F$45)/SUM(B$45:F$45),"NA") -> 179.7804044 | I127: 0.0819500373 | J127: =IF(M$53,IF(AND(I127<A!B$29,I126>+A!B$29),((I126-A!B$29)/('C'!I126-'C'!I127))*4+'C'!B126,"NO"),"NA") -> NO
A128: 160 | B128: 160 | C128: =IF(M$53,A!G$2+A!G$3*B128+A!G$4*B128^2,"NA") -> 181.8015521 | D128: =IF(M$53,IF(B128<(A!H$3/(-2*A!H$4)),A!H$2+A!H$3*B128+A!H$4*B128^2,A!H$2+A!H$3*(A!H$3/(-2*A!H$4))+A!H$3*A!H$3/(4*A!H$4)),"NA") -> 180.3454283 | E128: =IF(M$53,A!I$2+A!I$3*EXP(A!I$4*B128),"NA") -> 178.5915241 | F128: =IF(M$53,IF((A!J$2+A!J$3*B128)<A!J$4,A!J$2+A!J$3*B128,A!J$4),"NA") -> 179.9999493 | G128: =IF(M$53,IF(B128<A!K$4,A!K$2+A!K$3*(3*B128/(2*A!K$4)-0.5*(B128/A!K$4)^3),A!K$3+A!K$2),"NA") -> 179.4722109 | H128: =IF(M$53,(C128*B$45+'C'!D128*C$45+'C'!E128*D$45+'C'!F128*E$45+'C'!G128*F$45)/SUM(B$45:F$45),"NA") -> 179.9443045 | I128: 0.07458378327 | J128: =IF(M$53,IF(AND(I128<A!B$29,I127>+A!B$29),((I127-A!B$29)/('C'!I127-'C'!I128))*4+'C'!B127,"NO"),"NA") -> NO
A129: 162 | B129: 162 | C129: =IF(M$53,A!G$2+A!G$3*B129+A!G$4*B129^2,"NA") -> 181.989397 | D129: =IF(M$53,IF(B129<(A!H$3/(-2*A!H$4)),A!H$2+A!H$3*B129+A!H$4*B129^2,A!H$2+A!H$3*(A!H$3/(-2*A!H$4))+A!H$3*A!H$3/(4*A!H$4)),"NA") -> 180.3942065 | E129: =IF(M$53,A!I$2+A!I$3*EXP(A!I$4*B129),"NA") -> 178.8784948 | F129: =IF(M$53,IF((A!J$2+A!J$3*B129)<A!J$4,A!J$2+A!J$3*B129,A!J$4),"NA") -> 179.9999493 | G129: =IF(M$53,IF(B129<A!K$4,A!K$2+A!K$3*(3*B129/(2*A!K$4)-0.5*(B129/A!K$4)^3),A!K$3+A!K$2),"NA") -> 179.4722109 | H129: =IF(M$53,(C129*B$45+'C'!D129*C$45+'C'!E129*D$45+'C'!F129*E$45+'C'!G129*F$45)/SUM(B$45:F$45),"NA") -> 180.093472 | I129: 0.06725497335 | J129: =IF(M$53,IF(AND(I129<A!B$29,I128>+A!B$29),((I128-A!B$29)/('C'!I128-'C'!I129))*4+'C'!B128,"NO"),"NA") -> NO
A130: 164 | B130: 164 | C130: =IF(M$53,A!G$2+A!G$3*B130+A!G$4*B130^2,"NA") -> 182.1541545 | D130: =IF(M$53,IF(B130<(A!H$3/(-2*A!H$4)),A!H$2+A!H$3*B130+A!H$4*B130^2,A!H$2+A!H$3*(A!H$3/(-2*A!H$4))+A!H$3*A!H$3/(4*A!H$4)),"NA") -> 180.4166527 | E130: =IF(M$53,A!I$2+A!I$3*EXP(A!I$4*B130),"NA") -> 179.157461 | F130: =IF(M$53,IF((A!J$2+A!J$3*B130)<A!J$4,A!J$2+A!J$3*B130,A!J$4),"NA") -> 179.9999493 | G130: =IF(M$53,IF(B130<A!K$4,A!K$2+A!K$3*(3*B130/(2*A!K$4)-0.5*(B130/A!K$4)^3),A!K$3+A!K$2),"NA") -> 179.4722109 | H130: =IF(M$53,(C130*B$45+'C'!D130*C$45+'C'!E130*D$45+'C'!F130*E$45+'C'!G130*F$45)/SUM(B$45:F$45),"NA") -> 180.227982 | I130: 0.0606703711 | J130: =IF(M$53,IF(AND(I130<A!B$29,I129>+A!B$29),((I129-A!B$29)/('C'!I129-'C'!I130))*4+'C'!B129,"NO"),"NA") -> NO
A131: 166 | B131: 166 | C131: =IF(M$53,A!G$2+A!G$3*B131+A!G$4*B131^2,"NA") -> 182.2958247 | D131: =IF(M$53,IF(B131<(A!H$3/(-2*A!H$4)),A!H$2+A!H$3*B131+A!H$4*B131^2,A!H$2+A!H$3*(A!H$3/(-2*A!H$4))+A!H$3*A!H$3/(4*A!H$4)),"NA") -> 180.4182879 | E131: =IF(M$53,A!I$2+A!I$3*EXP(A!I$4*B131),"NA") -> 179.4286459 | F131: =IF(M$53,IF((A!J$2+A!J$3*B131)<A!J$4,A!J$2+A!J$3*B131,A!J$4),"NA") -> 179.9999493 | G131: =IF(M$53,IF(B131<A!K$4,A!K$2+A!K$3*(3*B131/(2*A!K$4)-0.5*(B131/A!K$4)^3),A!K$3+A!K$2),"NA") -> 179.4722109 | H131: =IF(M$53,(C131*B$45+'C'!D131*C$45+'C'!E131*D$45+'C'!F131*E$45+'C'!G131*F$45)/SUM(B$45:F$45),"NA") -> 180.3493227 | I131: 0.05657940571 | J131: =IF(M$53,IF(AND(I131<A!B$29,I130>+A!B$29),((I130-A!B$29)/('C'!I130-'C'!I131))*4+'C'!B130,"NO"),"NA") -> NO
A132: 168 | B132: 168 | C132: =IF(M$53,A!G$2+A!G$3*B132+A!G$4*B132^2,"NA") -> 182.4144075 | D132: =IF(M$53,IF(B132<(A!H$3/(-2*A!H$4)),A!H$2+A!H$3*B132+A!H$4*B132^2,A!H$2+A!H$3*(A!H$3/(-2*A!H$4))+A!H$3*A!H$3/(4*A!H$4)),"NA") -> 180.4182879 | E132: =IF(M$53,A!I$2+A!I$3*EXP(A!I$4*B132),"NA") -> 179.6922666 | F132: =IF(M$53,IF((A!J$2+A!J$3*B132)<A!J$4,A!J$2+A!J$3*B132,A!J$4),"NA") -> 179.9999493 | G132: =IF(M$53,IF(B132<A!K$4,A!K$2+A!K$3*(3*B132/(2*A!K$4)-0.5*(B132/A!K$4)^3),A!K$3+A!K$2),"NA") -> 179.4722109 | H132: =IF(M$53,(C132*B$45+'C'!D132*C$45+'C'!E132*D$45+'C'!F132*E$45+'C'!G132*F$45)/SUM(B$45:F$45),"NA") -> 180.4624815 | I132: 0.0527324722 | J132: =IF(M$53,IF(AND(I132<A!B$29,I131>+A!B$29),((I131-A!B$29)/('C'!I131-'C'!I132))*4+'C'!B131,"NO"),"NA") -> NO
A133: 170 | B133: 170 | C133: =IF(M$53,A!G$2+A!G$3*B133+A!G$4*B133^2,"NA") -> 182.5099029 | D133: =IF(M$53,IF(B133<(A!H$3/(-2*A!H$4)),A!H$2+A!H$3*B133+A!H$4*B133^2,A!H$2+A!H$3*(A!H$3/(-2*A!H$4))+A!H$3*A!H$3/(4*A!H$4)),"NA") -> 180.4182879 | E133: =IF(M$53,A!I$2+A!I$3*EXP(A!I$4*B133),"NA") -> 179.9485341 | F133: =IF(M$53,IF((A!J$2+A!J$3*B133)<A!J$4,A!J$2+A!J$3*B133,A!J$4),"NA") -> 179.9999493 | G133: =IF(M$53,IF(B133<A!K$4,A!K$2+A!K$3*(3*B133/(2*A!K$4)-0.5*(B133/A!K$4)^3),A!K$3+A!K$2),"NA") -> 179.4722109 | H133: =IF(M$53,(C133*B$45+'C'!D133*C$45+'C'!E133*D$45+'C'!F133*E$45+'C'!G133*F$45)/SUM(B$45:F$45),"NA") -> 180.5679465 | I133: 0.04891897663 | J133: =IF(M$53,IF(AND(I133<A!B$29,I132>+A!B$29),((I132-A!B$29)/('C'!I132-'C'!I133))*4+'C'!B132,"NO"),"NA") -> NO
A134: 172 | B134: 172 | C134: =IF(M$53,A!G$2+A!G$3*B134+A!G$4*B134^2,"NA") -> 182.582311 | D134: =IF(M$53,IF(B134<(A!H$3/(-2*A!H$4)),A!H$2+A!H$3*B134+A!H$4*B134^2,A!H$2+A!H$3*(A!H$3/(-2*A!H$4))+A!H$3*A!H$3/(4*A!H$4)),"NA") -> 180.4182879 | E134: =IF(M$53,A!I$2+A!I$3*EXP(A!I$4*B134),"NA") -> 180.1976535 | F134: =IF(M$53,IF((A!J$2+A!J$3*B134)<A!J$4,A!J$2+A!J$3*B134,A!J$4),"NA") -> 179.9999493 | G134: =IF(M$53,IF(B134<A!K$4,A!K$2+A!K$3*(3*B134/(2*A!K$4)-0.5*(B134/A!K$4)^3),A!K$3+A!K$2),"NA") -> 179.4722109 | H134: =IF(M$53,(C134*B$45+'C'!D134*C$45+'C'!E134*D$45+'C'!F134*E$45+'C'!G134*F$45)/SUM(B$45:F$45),"NA") -> 180.6657844 | I134: 0.04513798632 | J134: =IF(M$53,IF(AND(I134<A!B$29,I133>+A!B$29),((I133-A!B$29)/('C'!I133-'C'!I134))*4+'C'!B133,"NO"),"NA") -> NO
A135: 174 | B135: 174 | C135: =IF(M$53,A!G$2+A!G$3*B135+A!G$4*B135^2,"NA") -> 182.6316318 | D135: =IF(M$53,IF(B135<(A!H$3/(-2*A!H$4)),A!H$2+A!H$3*B135+A!H$4*B135^2,A!H$2+A!H$3*(A!H$3/(-2*A!H$4))+A!H$3*A!H$3/(4*A!H$4)),"NA") -> 180.4182879 | E135: =IF(M$53,A!I$2+A!I$3*EXP(A!I$4*B135),"NA") -> 180.4398241 | F135: =IF(M$53,IF((A!J$2+A!J$3*B135)<A!J$4,A!J$2+A!J$3*B135,A!J$4),"NA") -> 179.9999493 | G135: =IF(M$53,IF(B135<A!K$4,A!K$2+A!K$3*(3*B135/(2*A!K$4)-0.5*(B135/A!K$4)^3),A!K$3+A!K$2),"NA") -> 179.4722109 | H135: =IF(M$53,(C135*B$45+'C'!D135*C$45+'C'!E135*D$45+'C'!F135*E$45+'C'!G135*F$45)/SUM(B$45:F$45),"NA") -> 180.7560604 | I135: 0.04138859459 | J135: =IF(M$53,IF(AND(I135<A!B$29,I134>+A!B$29),((I134-A!B$29)/('C'!I134-'C'!I135))*4+'C'!B134,"NO"),"NA") -> NO
A136: 176 | B136: 176 | C136: =IF(M$53,A!G$2+A!G$3*B136+A!G$4*B136^2,"NA") -> 182.6578652 | D136: =IF(M$53,IF(B136<(A!H$3/(-2*A!H$4)),A!H$2+A!H$3*B136+A!H$4*B136^2,A!H$2+A!H$3*(A!H$3/(-2*A!H$4))+A!H$3*A!H$3/(4*A!H$4)),"NA") -> 180.4182879 | E136: =IF(M$53,A!I$2+A!I$3*EXP(A!I$4*B136),"NA") -> 180.6752399 | F136: =IF(M$53,IF((A!J$2+A!J$3*B136)<A!J$4,A!J$2+A!J$3*B136,A!J$4),"NA") -> 179.9999493 | G136: =IF(M$53,IF(B136<A!K$4,A!K$2+A!K$3*(3*B136/(2*A!K$4)-0.5*(B136/A!K$4)^3),A!K$3+A!K$2),"NA") -> 179.4722109 | H136: =IF(M$53,(C136*B$45+'C'!D136*C$45+'C'!E136*D$45+'C'!F136*E$45+'C'!G136*F$45)/SUM(B$45:F$45),"NA") -> 180.8388376 | I136: 0.03766992006 | J136: =IF(M$53,IF(AND(I136<A!B$29,I135>+A!B$29),((I135-A!B$29)/('C'!I135-'C'!I136))*4+'C'!B135,"NO"),"NA") -> NO
A137: 178 | B137: 178 | C137: =IF(M$53,A!G$2+A!G$3*B137+A!G$4*B137^2,"NA") -> 182.6610113 | D137: =IF(M$53,IF(B137<(A!H$3/(-2*A!H$4)),A!H$2+A!H$3*B137+A!H$4*B137^2,A!H$2+A!H$3*(A!H$3/(-2*A!H$4))+A!H$3*A!H$3/(4*A!H$4)),"NA") -> 180.4182879 | E137: =IF(M$53,A!I$2+A!I$3*EXP(A!I$4*B137),"NA") -> 180.9040891 | F137: =IF(M$53,IF((A!J$2+A!J$3*B137)<A!J$4,A!J$2+A!J$3*B137,A!J$4),"NA") -> 179.9999493 | G137: =IF(M$53,IF(B137<A!K$4,A!K$2+A!K$3*(3*B137/(2*A!K$4)-0.5*(B137/A!K$4)^3),A!K$3+A!K$2),"NA") -> 179.4722109 | H137: =IF(M$53,(C137*B$45+'C'!D137*C$45+'C'!E137*D$45+'C'!F137*E$45+'C'!G137*F$45)/SUM(B$45:F$45),"NA") -> 180.9141774 | I137: 0.03398110592 | J137: =IF(M$53,IF(AND(I137<A!B$29,I136>+A!B$29),((I136-A!B$29)/('C'!I136-'C'!I137))*4+'C'!B136,"NO"),"NA") -> NO
A138: 180 | B138: 180 | C138: =IF(M$53,A!G$2+A!G$3*B138+A!G$4*B138^2,"NA") -> 182.64107 | D138: =IF(M$53,IF(B138<(A!H$3/(-2*A!H$4)),A!H$2+A!H$3*B138+A!H$4*B138^2,A!H$2+A!H$3*(A!H$3/(-2*A!H$4))+A!H$3*A!H$3/(4*A!H$4)),"NA") -> 180.4182879 | E138: =IF(M$53,A!I$2+A!I$3*EXP(A!I$4*B138),"NA") -> 181.1265551 | F138: =IF(M$53,IF((A!J$2+A!J$3*B138)<A!J$4,A!J$2+A!J$3*B138,A!J$4),"NA") -> 179.9999493 | G138: =IF(M$53,IF(B138<A!K$4,A!K$2+A!K$3*(3*B138/(2*A!K$4)-0.5*(B138/A!K$4)^3),A!K$3+A!K$2),"NA") -> 179.4722109 | H138: =IF(M$53,(C138*B$45+'C'!D138*C$45+'C'!E138*D$45+'C'!F138*E$45+'C'!G138*F$45)/SUM(B$45:F$45),"NA") -> 180.9821396 | I138: 0.03032131928 | J138: =IF(M$53,IF(AND(I138<A!B$29,I137>+A!B$29),((I137-A!B$29)/('C'!I137-'C'!I138))*4+'C'!B137,"NO"),"NA") -> NO
A139: 182 | B139: 182 | C139: =IF(M$53,A!G$2+A!G$3*B139+A!G$4*B139^2,"NA") -> 182.5980414 | D139: =IF(M$53,IF(B139<(A!H$3/(-2*A!H$4)),A!H$2+A!H$3*B139+A!H$4*B139^2,A!H$2+A!H$3*(A!H$3/(-2*A!H$4))+A!H$3*A!H$3/(4*A!H$4)),"NA") -> 180.4182879 | E139: =IF(M$53,A!I$2+A!I$3*EXP(A!I$4*B139),"NA") -> 181.3428157 | F139: =IF(M$53,IF((A!J$2+A!J$3*B139)<A!J$4,A!J$2+A!J$3*B139,A!J$4),"NA") -> 179.9999493 | G139: =IF(M$53,IF(B139<A!K$4,A!K$2+A!K$3*(3*B139/(2*A!K$4)-0.5*(B139/A!K$4)^3),A!K$3+A!K$2),"NA") -> 179.4722109 | H139: =IF(M$53,(C139*B$45+'C'!D139*C$45+'C'!E139*D$45+'C'!F139*E$45+'C'!G139*F$45)/SUM(B$45:F$45),"NA") -> 181.0427823 | I139: 0.02668975047 | J139: =IF(M$53,IF(AND(I139<A!B$29,I138>+A!B$29),((I138-A!B$29)/('C'!I138-'C'!I139))*4+'C'!B138,"NO"),"NA") -> NO
A140: 184 | B140: 184 | C140: =IF(M$53,A!G$2+A!G$3*B140+A!G$4*B140^2,"NA") -> 182.5319254 | D140: =IF(M$53,IF(B140<(A!H$3/(-2*A!H$4)),A!H$2+A!H$3*B140+A!H$4*B140^2,A!H$2+A!H$3*(A!H$3/(-2*A!H$4))+A!H$3*A!H$3/(4*A!H$4)),"NA") -> 180.4182879 | E140: =IF(M$53,A!I$2+A!I$3*EXP(A!I$4*B140),"NA") -> 181.5530442 | F140: =IF(M$53,IF((A!J$2+A!J$3*B140)<A!J$4,A!J$2+A!J$3*B140,A!J$4),"NA") -> 179.9999493 | G140: =IF(M$53,IF(B140<A!K$4,A!K$2+A!K$3*(3*B140/(2*A!K$4)-0.5*(B140/A!K$4)^3),A!K$3+A!K$2),"NA") -> 179.4722109 | H140: =IF(M$53,(C140*B$45+'C'!D140*C$45+'C'!E140*D$45+'C'!F140*E$45+'C'!G140*F$45)/SUM(B$45:F$45),"NA") -> 181.0961618 | I140: 0.0230856124 | J140: =IF(M$53,IF(AND(I140<A!B$29,I139>+A!B$29),((I139-A!B$29)/('C'!I139-'C'!I140))*4+'C'!B139,"NO"),"NA") -> NO
A141: 186 | B141: 186 | C141: =IF(M$53,A!G$2+A!G$3*B141+A!G$4*B141^2,"NA") -> 182.442722 | D141: =IF(M$53,IF(B141<(A!H$3/(-2*A!H$4)),A!H$2+A!H$3*B141+A!H$4*B141^2,A!H$2+A!H$3*(A!H$3/(-2*A!H$4))+A!H$3*A!H$3/(4*A!H$4)),"NA") -> 180.4182879 | E141: =IF(M$53,A!I$2+A!I$3*EXP(A!I$4*B141),"NA") -> 181.7574087 | F141: =IF(M$53,IF((A!J$2+A!J$3*B141)<A!J$4,A!J$2+A!J$3*B141,A!J$4),"NA") -> 179.9999493 | G141: =IF(M$53,IF(B141<A!K$4,A!K$2+A!K$3*(3*B141/(2*A!K$4)-0.5*(B141/A!K$4)^3),A!K$3+A!K$2),"NA") -> 179.4722109 | H141: =IF(M$53,(C141*B$45+'C'!D141*C$45+'C'!E141*D$45+'C'!F141*E$45+'C'!G141*F$45)/SUM(B$45:F$45),"NA") -> 181.142333 | I141: 0.01950813994 | J141: =IF(M$53,IF(AND(I141<A!B$29,I140>+A!B$29),((I140-A!B$29)/('C'!I140-'C'!I141))*4+'C'!B140,"NO"),"NA") -> NO
A142: 188 | B142: 188 | C142: =IF(M$53,A!G$2+A!G$3*B142+A!G$4*B142^2,"NA") -> 182.3304314 | D142: =IF(M$53,IF(B142<(A!H$3/(-2*A!H$4)),A!H$2+A!H$3*B142+A!H$4*B142^2,A!H$2+A!H$3*(A!H$3/(-2*A!H$4))+A!H$3*A!H$3/(4*A!H$4)),"NA") -> 180.4182879 | E142: =IF(M$53,A!I$2+A!I$3*EXP(A!I$4*B142),"NA") -> 181.9560729 | F142: =IF(M$53,IF((A!J$2+A!J$3*B142)<A!J$4,A!J$2+A!J$3*B142,A!J$4),"NA") -> 179.9999493 | G142: =IF(M$53,IF(B142<A!K$4,A!K$2+A!K$3*(3*B142/(2*A!K$4)-0.5*(B142/A!K$4)^3),A!K$3+A!K$2),"NA") -> 179.4722109 | H142: =IF(M$53,(C142*B$45+'C'!D142*C$45+'C'!E142*D$45+'C'!F142*E$45+'C'!G142*F$45)/SUM(B$45:F$45),"NA") -> 181.1813493 | I142: 0.01595658931 | J142: =IF(M$53,IF(AND(I142<A!B$29,I141>+A!B$29),((I141-A!B$29)/('C'!I141-'C'!I142))*4+'C'!B141,"NO"),"NA") -> NO
A143: 190 | B143: 190 | C143: =IF(M$53,A!G$2+A!G$3*B143+A!G$4*B143^2,"NA") -> 182.1950533 | D143: =IF(M$53,IF(B143<(A!H$3/(-2*A!H$4)),A!H$2+A!H$3*B143+A!H$4*B143^2,A!H$2+A!H$3*(A!H$3/(-2*A!H$4))+A!H$3*A!H$3/(4*A!H$4)),"NA") -> 180.4182879 | E143: =IF(M$53,A!I$2+A!I$3*EXP(A!I$4*B143),"NA") -> 182.1491957 | F143: =IF(M$53,IF((A!J$2+A!J$3*B143)<A!J$4,A!J$2+A!J$3*B143,A!J$4),"NA") -> 179.9999493 | G143: =IF(M$53,IF(B143<A!K$4,A!K$2+A!K$3*(3*B143/(2*A!K$4)-0.5*(B143/A!K$4)^3),A!K$3+A!K$2),"NA") -> 179.4722109 | H143: =IF(M$53,(C143*B$45+'C'!D143*C$45+'C'!E143*D$45+'C'!F143*E$45+'C'!G143*F$45)/SUM(B$45:F$45),"NA") -> 181.2132625 | I143: 0.01243023747 | J143: =IF(M$53,IF(AND(I143<A!B$29,I142>+A!B$29),((I142-A!B$29)/('C'!I142-'C'!I143))*4+'C'!B142,"NO"),"NA") -> NO
A144: 192 | B144: 192 | C144: =IF(M$53,A!G$2+A!G$3*B144+A!G$4*B144^2,"NA") -> 182.036588 | D144: =IF(M$53,IF(B144<(A!H$3/(-2*A!H$4)),A!H$2+A!H$3*B144+A!H$4*B144^2,A!H$2+A!H$3*(A!H$3/(-2*A!H$4))+A!H$3*A!H$3/(4*A!H$4)),"NA") -> 180.4182879 | E144: =IF(M$53,A!I$2+A!I$3*EXP(A!I$4*B144),"NA") -> 182.3369317 | F144: =IF(M$53,IF((A!J$2+A!J$3*B144)<A!J$4,A!J$2+A!J$3*B144,A!J$4),"NA") -> 179.9999493 | G144: =IF(M$53,IF(B144<A!K$4,A!K$2+A!K$3*(3*B144/(2*A!K$4)-0.5*(B144/A!K$4)^3),A!K$3+A!K$2),"NA") -> 179.4722109 | H144: =IF(M$53,(C144*B$45+'C'!D144*C$45+'C'!E144*D$45+'C'!F144*E$45+'C'!G144*F$45)/SUM(B$45:F$45),"NA") -> 181.2381229 | I144: 0.008928381534 | J144: =IF(M$53,IF(AND(I144<A!B$29,I143>+A!B$29),((I143-A!B$29)/('C'!I143-'C'!I144))*4+'C'!B143,"NO"),"NA") -> NO
A145: 194 | B145: 194 | C145: =IF(M$53,A!G$2+A!G$3*B145+A!G$4*B145^2,"NA") -> 181.8550352 | D145: =IF(M$53,IF(B145<(A!H$3/(-2*A!H$4)),A!H$2+A!H$3*B145+A!H$4*B145^2,A!H$2+A!H$3*(A!H$3/(-2*A!H$4))+A!H$3*A!H$3/(4*A!H$4)),"NA") -> 180.4182879 | E145: =IF(M$53,A!I$2+A!I$3*EXP(A!I$4*B145),"NA") -> 182.5194311 | F145: =IF(M$53,IF((A!J$2+A!J$3*B145)<A!J$4,A!J$2+A!J$3*B145,A!J$4),"NA") -> 179.9999493 | G145: =IF(M$53,IF(B145<A!K$4,A!K$2+A!K$3*(3*B145/(2*A!K$4)-0.5*(B145/A!K$4)^3),A!K$3+A!K$2),"NA") -> 179.4722109 | H145: =IF(M$53,(C145*B$45+'C'!D145*C$45+'C'!E145*D$45+'C'!F145*E$45+'C'!G145*F$45)/SUM(B$45:F$45),"NA") -> 181.2559797 | I145: 0.005450338242 | J145: =IF(M$53,IF(AND(I145<A!B$29,I144>+A!B$29),((I144-A!B$29)/('C'!I144-'C'!I145))*4+'C'!B144,"NO"),"NA") -> NO
A146: 196 | B146: 196 | C146: =IF(M$53,A!G$2+A!G$3*B146+A!G$4*B146^2,"NA") -> 181.6503952 | D146: =IF(M$53,IF(B146<(A!H$3/(-2*A!H$4)),A!H$2+A!H$3*B146+A!H$4*B146^2,A!H$2+A!H$3*(A!H$3/(-2*A!H$4))+A!H$3*A!H$3/(4*A!H$4)),"NA") -> 180.4182879 | E146: =IF(M$53,A!I$2+A!I$3*EXP(A!I$4*B146),"NA") -> 182.6968401 | F146: =IF(M$53,IF((A!J$2+A!J$3*B146)<A!J$4,A!J$2+A!J$3*B146,A!J$4),"NA") -> 179.9999493 | G146: =IF(M$53,IF(B146<A!K$4,A!K$2+A!K$3*(3*B146/(2*A!K$4)-0.5*(B146/A!K$4)^3),A!K$3+A!K$2),"NA") -> 179.4722109 | H146: =IF(M$53,(C146*B$45+'C'!D146*C$45+'C'!E146*D$45+'C'!F146*E$45+'C'!G146*F$45)/SUM(B$45:F$45),"NA") -> 181.2668804 | I146: 0.001995443383 | J146: =IF(M$53,IF(AND(I146<A!B$29,I145>+A!B$29),((I145-A!B$29)/('C'!I145-'C'!I146))*4+'C'!B145,"NO"),"NA") -> NO
A147: 198 | B147: 198 | C147: =IF(M$53,A!G$2+A!G$3*B147+A!G$4*B147^2,"NA") -> 181.4226677 | D147: =IF(M$53,IF(B147<(A!H$3/(-2*A!H$4)),A!H$2+A!H$3*B147+A!H$4*B147^2,A!H$2+A!H$3*(A!H$3/(-2*A!H$4))+A!H$3*A!H$3/(4*A!H$4)),"NA") -> 180.4182879 | E147: =IF(M$53,A!I$2+A!I$3*EXP(A!I$4*B147),"NA") -> 182.8693006 | F147: =IF(M$53,IF((A!J$2+A!J$3*B147)<A!J$4,A!J$2+A!J$3*B147,A!J$4),"NA") -> 179.9999493 | G147: =IF(M$53,IF(B147<A!K$4,A!K$2+A!K$3*(3*B147/(2*A!K$4)-0.5*(B147/A!K$4)^3),A!K$3+A!K$2),"NA") -> 179.4722109 | H147: =IF(M$53,(C147*B$45+'C'!D147*C$45+'C'!E147*D$45+'C'!F147*E$45+'C'!G147*F$45)/SUM(B$45:F$45),"NA") -> 181.2708713 | I147: -0.001436948726 | J147: =IF(M$53,IF(AND(I147<A!B$29,I146>+A!B$29),((I146-A!B$29)/('C'!I146-'C'!I147))*4+'C'!B146,"NO"),"NA") -> NO
A148: 200 | B148: 200 | C148: =IF(M$53,A!G$2+A!G$3*B148+A!G$4*B148^2,"NA") -> 181.171853 | D148: =IF(M$53,IF(B148<(A!H$3/(-2*A!H$4)),A!H$2+A!H$3*B148+A!H$4*B148^2,A!H$2+A!H$3*(A!H$3/(-2*A!H$4))+A!H$3*A!H$3/(4*A!H$4)),"NA") -> 180.4182879 | E148: =IF(M$53,A!I$2+A!I$3*EXP(A!I$4*B148),"NA") -> 183.0369505 | F148: =IF(M$53,IF((A!J$2+A!J$3*B148)<A!J$4,A!J$2+A!J$3*B148,A!J$4),"NA") -> 179.9999493 | G148: =IF(M$53,IF(B148<A!K$4,A!K$2+A!K$3*(3*B148/(2*A!K$4)-0.5*(B148/A!K$4)^3),A!K$3+A!K$2),"NA") -> 179.4722109 | H148: =IF(M$53,(C148*B$45+'C'!D148*C$45+'C'!E148*D$45+'C'!F148*E$45+'C'!G148*F$45)/SUM(B$45:F$45),"NA") -> 181.2679974 | I148: 0 | J148: =IF(M$53,IF(AND(I148<A!B$29,I147>+A!B$29),((I147-A!B$29)/('C'!I147-'C'!I148))*4+'C'!B147,"NO"),"NA") -> NO
A149: 202 | B149: 200 | C149: =IF(M$53,A!G$2+A!G$3*B149+A!G$4*B149^2,"NA") -> 181.171853 | D149: =IF(M$53,IF(B149<(A!H$3/(-2*A!H$4)),A!H$2+A!H$3*B149+A!H$4*B149^2,A!H$2+A!H$3*(A!H$3/(-2*A!H$4))+A!H$3*A!H$3/(4*A!H$4)),"NA") -> 180.4182879 | E149: =IF(M$53,A!I$2+A!I$3*EXP(A!I$4*B149),"NA") -> 183.0369505 | F149: =IF(M$53,IF((A!J$2+A!J$3*B149)<A!J$4,A!J$2+A!J$3*B149,A!J$4),"NA") -> 179.9999493 | G149: =IF(M$53,IF(B149<A!K$4,A!K$2+A!K$3*(3*B149/(2*A!K$4)-0.5*(B149/A!K$4)^3),A!K$3+A!K$2),"NA") -> 179.4722109 | H149: =IF(M$53,(C149*B$45+'C'!D149*C$45+'C'!E149*D$45+'C'!F149*E$45+'C'!G149*F$45)/SUM(B$45:F$45),"NA") -> 181.2679974 | I149: 0 | J149: =IF(M$53,IF(AND(I149<A!B$29,I148>+A!B$29),((I148-A!B$29)/('C'!I148-'C'!I149))*4+'C'!B148,"NO"),"NA") -> NO
A150: 204 | B150: 200 | C150: =IF(M$53,A!G$2+A!G$3*B150+A!G$4*B150^2,"NA") -> 181.171853 | D150: =IF(M$53,IF(B150<(A!H$3/(-2*A!H$4)),A!H$2+A!H$3*B150+A!H$4*B150^2,A!H$2+A!H$3*(A!H$3/(-2*A!H$4))+A!H$3*A!H$3/(4*A!H$4)),"NA") -> 180.4182879 | E150: =IF(M$53,A!I$2+A!I$3*EXP(A!I$4*B150),"NA") -> 183.0369505 | F150: =IF(M$53,IF((A!J$2+A!J$3*B150)<A!J$4,A!J$2+A!J$3*B150,A!J$4),"NA") -> 179.9999493 | G150: =IF(M$53,IF(B150<A!K$4,A!K$2+A!K$3*(3*B150/(2*A!K$4)-0.5*(B150/A!K$4)^3),A!K$3+A!K$2),"NA") -> 179.4722109 | H150: =IF(M$53,(C150*B$45+'C'!D150*C$45+'C'!E150*D$45+'C'!F150*E$45+'C'!G150*F$45)/SUM(B$45:F$45),"NA") -> 181.2679974 | I150: 0 | J150: =IF(M$53,IF(AND(I150<A!B$29,I149>+A!B$29),((I149-A!B$29)/('C'!I149-'C'!I150))*4+'C'!B149,"NO"),"NA") -> NO
A151: 206 | B151: 200 | C151: =IF(M$53,A!G$2+A!G$3*B151+A!G$4*B151^2,"NA") -> 181.171853 | D151: =IF(M$53,IF(B151<(A!H$3/(-2*A!H$4)),A!H$2+A!H$3*B151+A!H$4*B151^2,A!H$2+A!H$3*(A!H$3/(-2*A!H$4))+A!H$3*A!H$3/(4*A!H$4)),"NA") -> 180.4182879 | E151: =IF(M$53,A!I$2+A!I$3*EXP(A!I$4*B151),"NA") -> 183.0369505 | F151: =IF(M$53,IF((A!J$2+A!J$3*B151)<A!J$4,A!J$2+A!J$3*B151,A!J$4),"NA") -> 179.9999493 | G151: =IF(M$53,IF(B151<A!K$4,A!K$2+A!K$3*(3*B151/(2*A!K$4)-0.5*(B151/A!K$4)^3),A!K$3+A!K$2),"NA") -> 179.4722109 | H151: =IF(M$53,(C151*B$45+'C'!D151*C$45+'C'!E151*D$45+'C'!F151*E$45+'C'!G151*F$45)/SUM(B$45:F$45),"NA") -> 181.2679974 | I151: 0 | J151: =IF(M$53,IF(AND(I151<A!B$29,I150>+A!B$29),((I150-A!B$29)/('C'!I150-'C'!I151))*4+'C'!B150,"NO"),"NA") -> NO
A152: 208 | B152: 200 | C152: =IF(M$53,A!G$2+A!G$3*B152+A!G$4*B152^2,"NA") -> 181.171853 | D152: =IF(M$53,IF(B152<(A!H$3/(-2*A!H$4)),A!H$2+A!H$3*B152+A!H$4*B152^2,A!H$2+A!H$3*(A!H$3/(-2*A!H$4))+A!H$3*A!H$3/(4*A!H$4)),"NA") -> 180.4182879 | E152: =IF(M$53,A!I$2+A!I$3*EXP(A!I$4*B152),"NA") -> 183.0369505 | F152: =IF(M$53,IF((A!J$2+A!J$3*B152)<A!J$4,A!J$2+A!J$3*B152,A!J$4),"NA") -> 179.9999493 | G152: =IF(M$53,IF(B152<A!K$4,A!K$2+A!K$3*(3*B152/(2*A!K$4)-0.5*(B152/A!K$4)^3),A!K$3+A!K$2),"NA") -> 179.4722109 | H152: =IF(M$53,(C152*B$45+'C'!D152*C$45+'C'!E152*D$45+'C'!F152*E$45+'C'!G152*F$45)/SUM(B$45:F$45),"NA") -> 181.2679974 | I152: 0 | J152: =IF(M$53,IF(AND(I152<A!B$29,I151>+A!B$29),((I151-A!B$29)/('C'!I151-'C'!I152))*4+'C'!B151,"NO"),"NA") -> NO
A153: 210 | B153: 200 | C153: =IF(M$53,A!G$2+A!G$3*B153+A!G$4*B153^2,"NA") -> 181.171853 | D153: =IF(M$53,IF(B153<(A!H$3/(-2*A!H$4)),A!H$2+A!H$3*B153+A!H$4*B153^2,A!H$2+A!H$3*(A!H$3/(-2*A!H$4))+A!H$3*A!H$3/(4*A!H$4)),"NA") -> 180.4182879 | E153: =IF(M$53,A!I$2+A!I$3*EXP(A!I$4*B153),"NA") -> 183.0369505 | F153: =IF(M$53,IF((A!J$2+A!J$3*B153)<A!J$4,A!J$2+A!J$3*B153,A!J$4),"NA") -> 179.9999493 | G153: =IF(M$53,IF(B153<A!K$4,A!K$2+A!K$3*(3*B153/(2*A!K$4)-0.5*(B153/A!K$4)^3),A!K$3+A!K$2),"NA") -> 179.4722109 | H153: =IF(M$53,(C153*B$45+'C'!D153*C$45+'C'!E153*D$45+'C'!F153*E$45+'C'!G153*F$45)/SUM(B$45:F$45),"NA") -> 181.2679974 | I153: 0 | J153: =IF(M$53,IF(AND(I153<A!B$29,I152>+A!B$29),((I152-A!B$29)/('C'!I152-'C'!I153))*4+'C'!B152,"NO"),"NA") -> NO
A154: 212 | B154: 200 | C154: =IF(M$53,A!G$2+A!G$3*B154+A!G$4*B154^2,"NA") -> 181.171853 | D154: =IF(M$53,IF(B154<(A!H$3/(-2*A!H$4)),A!H$2+A!H$3*B154+A!H$4*B154^2,A!H$2+A!H$3*(A!H$3/(-2*A!H$4))+A!H$3*A!H$3/(4*A!H$4)),"NA") -> 180.4182879 | E154: =IF(M$53,A!I$2+A!I$3*EXP(A!I$4*B154),"NA") -> 183.0369505 | F154: =IF(M$53,IF((A!J$2+A!J$3*B154)<A!J$4,A!J$2+A!J$3*B154,A!J$4),"NA") -> 179.9999493 | G154: =IF(M$53,IF(B154<A!K$4,A!K$2+A!K$3*(3*B154/(2*A!K$4)-0.5*(B154/A!K$4)^3),A!K$3+A!K$2),"NA") -> 179.4722109 | H154: =IF(M$53,(C154*B$45+'C'!D154*C$45+'C'!E154*D$45+'C'!F154*E$45+'C'!G154*F$45)/SUM(B$45:F$45),"NA") -> 181.2679974 | I154: 0 | J154: =IF(M$53,IF(AND(I154<A!B$29,I153>+A!B$29),((I153-A!B$29)/('C'!I153-'C'!I154))*4+'C'!B153,"NO"),"NA") -> NO
A155: 214 | B155: 200 | C155: =IF(M$53,A!G$2+A!G$3*B155+A!G$4*B155^2,"NA") -> 181.171853 | D155: =IF(M$53,IF(B155<(A!H$3/(-2*A!H$4)),A!H$2+A!H$3*B155+A!H$4*B155^2,A!H$2+A!H$3*(A!H$3/(-2*A!H$4))+A!H$3*A!H$3/(4*A!H$4)),"NA") -> 180.4182879 | E155: =IF(M$53,A!I$2+A!I$3*EXP(A!I$4*B155),"NA") -> 183.0369505 | F155: =IF(M$53,IF((A!J$2+A!J$3*B155)<A!J$4,A!J$2+A!J$3*B155,A!J$4),"NA") -> 179.9999493 | G155: =IF(M$53,IF(B155<A!K$4,A!K$2+A!K$3*(3*B155/(2*A!K$4)-0.5*(B155/A!K$4)^3),A!K$3+A!K$2),"NA") -> 179.4722109 | H155: =IF(M$53,(C155*B$45+'C'!D155*C$45+'C'!E155*D$45+'C'!F155*E$45+'C'!G155*F$45)/SUM(B$45:F$45),"NA") -> 181.2679974 | I155: 0 | J155: =IF(M$53,IF(AND(I155<A!B$29,I154>+A!B$29),((I154-A!B$29)/('C'!I154-'C'!I155))*4+'C'!B154,"NO"),"NA") -> NO
A156: 216 | B156: 200 | C156: =IF(M$53,A!G$2+A!G$3*B156+A!G$4*B156^2,"NA") -> 181.171853 | D156: =IF(M$53,IF(B156<(A!H$3/(-2*A!H$4)),A!H$2+A!H$3*B156+A!H$4*B156^2,A!H$2+A!H$3*(A!H$3/(-2*A!H$4))+A!H$3*A!H$3/(4*A!H$4)),"NA") -> 180.4182879 | E156: =IF(M$53,A!I$2+A!I$3*EXP(A!I$4*B156),"NA") -> 183.0369505 | F156: =IF(M$53,IF((A!J$2+A!J$3*B156)<A!J$4,A!J$2+A!J$3*B156,A!J$4),"NA") -> 179.9999493 | G156: =IF(M$53,IF(B156<A!K$4,A!K$2+A!K$3*(3*B156/(2*A!K$4)-0.5*(B156/A!K$4)^3),A!K$3+A!K$2),"NA") -> 179.4722109 | H156: =IF(M$53,(C156*B$45+'C'!D156*C$45+'C'!E156*D$45+'C'!F156*E$45+'C'!G156*F$45)/SUM(B$45:F$45),"NA") -> 181.2679974 | I156: 0 | J156: =IF(M$53,IF(AND(I156<A!B$29,I155>+A!B$29),((I155-A!B$29)/('C'!I155-'C'!I156))*4+'C'!B155,"NO"),"NA") -> NO
A157: 218 | B157: 200 | C157: =IF(M$53,A!G$2+A!G$3*B157+A!G$4*B157^2,"NA") -> 181.171853 | D157: =IF(M$53,IF(B157<(A!H$3/(-2*A!H$4)),A!H$2+A!H$3*B157+A!H$4*B157^2,A!H$2+A!H$3*(A!H$3/(-2*A!H$4))+A!H$3*A!H$3/(4*A!H$4)),"NA") -> 180.4182879 | E157: =IF(M$53,A!I$2+A!I$3*EXP(A!I$4*B157),"NA") -> 183.0369505 | F157: =IF(M$53,IF((A!J$2+A!J$3*B157)<A!J$4,A!J$2+A!J$3*B157,A!J$4),"NA") -> 179.9999493 | G157: =IF(M$53,IF(B157<A!K$4,A!K$2+A!K$3*(3*B157/(2*A!K$4)-0.5*(B157/A!K$4)^3),A!K$3+A!K$2),"NA") -> 179.4722109 | H157: =IF(M$53,(C157*B$45+'C'!D157*C$45+'C'!E157*D$45+'C'!F157*E$45+'C'!G157*F$45)/SUM(B$45:F$45),"NA") -> 181.2679974 | I157: 0 | J157: =IF(M$53,IF(AND(I157<A!B$29,I156>+A!B$29),((I156-A!B$29)/('C'!I156-'C'!I157))*4+'C'!B156,"NO"),"NA") -> NO
A158: 220 | B158: 200 | C158: =IF(M$53,A!G$2+A!G$3*B158+A!G$4*B158^2,"NA") -> 181.171853 | D158: =IF(M$53,IF(B158<(A!H$3/(-2*A!H$4)),A!H$2+A!H$3*B158+A!H$4*B158^2,A!H$2+A!H$3*(A!H$3/(-2*A!H$4))+A!H$3*A!H$3/(4*A!H$4)),"NA") -> 180.4182879 | E158: =IF(M$53,A!I$2+A!I$3*EXP(A!I$4*B158),"NA") -> 183.0369505 | F158: =IF(M$53,IF((A!J$2+A!J$3*B158)<A!J$4,A!J$2+A!J$3*B158,A!J$4),"NA") -> 179.9999493 | G158: =IF(M$53,IF(B158<A!K$4,A!K$2+A!K$3*(3*B158/(2*A!K$4)-0.5*(B158/A!K$4)^3),A!K$3+A!K$2),"NA") -> 179.4722109 | H158: =IF(M$53,(C158*B$45+'C'!D158*C$45+'C'!E158*D$45+'C'!F158*E$45+'C'!G158*F$45)/SUM(B$45:F$45),"NA") -> 181.2679974 | I158: 0 | J158: =IF(M$53,IF(AND(I158<A!B$29,I157>+A!B$29),((I157-A!B$29)/('C'!I157-'C'!I158))*4+'C'!B157,"NO"),"NA") -> NO
A159: 222 | B159: 200 | C159: =IF(M$53,A!G$2+A!G$3*B159+A!G$4*B159^2,"NA") -> 181.171853 | D159: =IF(M$53,IF(B159<(A!H$3/(-2*A!H$4)),A!H$2+A!H$3*B159+A!H$4*B159^2,A!H$2+A!H$3*(A!H$3/(-2*A!H$4))+A!H$3*A!H$3/(4*A!H$4)),"NA") -> 180.4182879 | E159: =IF(M$53,A!I$2+A!I$3*EXP(A!I$4*B159),"NA") -> 183.0369505 | F159: =IF(M$53,IF((A!J$2+A!J$3*B159)<A!J$4,A!J$2+A!J$3*B159,A!J$4),"NA") -> 179.9999493 | G159: =IF(M$53,IF(B159<A!K$4,A!K$2+A!K$3*(3*B159/(2*A!K$4)-0.5*(B159/A!K$4)^3),A!K$3+A!K$2),"NA") -> 179.4722109 | H159: =IF(M$53,(C159*B$45+'C'!D159*C$45+'C'!E159*D$45+'C'!F159*E$45+'C'!G159*F$45)/SUM(B$45:F$45),"NA") -> 181.2679974 | I159: 0 | J159: =IF(M$53,IF(AND(I159<A!B$29,I158>+A!B$29),((I158-A!B$29)/('C'!I158-'C'!I159))*4+'C'!B158,"NO"),"NA") -> NO
A160: 224 | B160: 200 | C160: =IF(M$53,A!G$2+A!G$3*B160+A!G$4*B160^2,"NA") -> 181.171853 | D160: =IF(M$53,IF(B160<(A!H$3/(-2*A!H$4)),A!H$2+A!H$3*B160+A!H$4*B160^2,A!H$2+A!H$3*(A!H$3/(-2*A!H$4))+A!H$3*A!H$3/(4*A!H$4)),"NA") -> 180.4182879 | E160: =IF(M$53,A!I$2+A!I$3*EXP(A!I$4*B160),"NA") -> 183.0369505 | F160: =IF(M$53,IF((A!J$2+A!J$3*B160)<A!J$4,A!J$2+A!J$3*B160,A!J$4),"NA") -> 179.9999493 | G160: =IF(M$53,IF(B160<A!K$4,A!K$2+A!K$3*(3*B160/(2*A!K$4)-0.5*(B160/A!K$4)^3),A!K$3+A!K$2),"NA") -> 179.4722109 | H160: =IF(M$53,(C160*B$45+'C'!D160*C$45+'C'!E160*D$45+'C'!F160*E$45+'C'!G160*F$45)/SUM(B$45:F$45),"NA") -> 181.2679974 | I160: 0 | J160: =IF(M$53,IF(AND(I160<A!B$29,I159>+A!B$29),((I159-A!B$29)/('C'!I159-'C'!I160))*4+'C'!B159,"NO"),"NA") -> NO
A161: 226 | B161: 200 | C161: =IF(M$53,A!G$2+A!G$3*B161+A!G$4*B161^2,"NA") -> 181.171853 | D161: =IF(M$53,IF(B161<(A!H$3/(-2*A!H$4)),A!H$2+A!H$3*B161+A!H$4*B161^2,A!H$2+A!H$3*(A!H$3/(-2*A!H$4))+A!H$3*A!H$3/(4*A!H$4)),"NA") -> 180.4182879 | E161: =IF(M$53,A!I$2+A!I$3*EXP(A!I$4*B161),"NA") -> 183.0369505 | F161: =IF(M$53,IF((A!J$2+A!J$3*B161)<A!J$4,A!J$2+A!J$3*B161,A!J$4),"NA") -> 179.9999493 | G161: =IF(M$53,IF(B161<A!K$4,A!K$2+A!K$3*(3*B161/(2*A!K$4)-0.5*(B161/A!K$4)^3),A!K$3+A!K$2),"NA") -> 179.4722109 | H161: =IF(M$53,(C161*B$45+'C'!D161*C$45+'C'!E161*D$45+'C'!F161*E$45+'C'!G161*F$45)/SUM(B$45:F$45),"NA") -> 181.2679974 | I161: 0 | J161: =IF(M$53,IF(AND(I161<A!B$29,I160>+A!B$29),((I160-A!B$29)/('C'!I160-'C'!I161))*4+'C'!B160,"NO"),"NA") -> NO
A162: 228 | B162: 200 | C162: =IF(M$53,A!G$2+A!G$3*B162+A!G$4*B162^2,"NA") -> 181.171853 | D162: =IF(M$53,IF(B162<(A!H$3/(-2*A!H$4)),A!H$2+A!H$3*B162+A!H$4*B162^2,A!H$2+A!H$3*(A!H$3/(-2*A!H$4))+A!H$3*A!H$3/(4*A!H$4)),"NA") -> 180.4182879 | E162: =IF(M$53,A!I$2+A!I$3*EXP(A!I$4*B162),"NA") -> 183.0369505 | F162: =IF(M$53,IF((A!J$2+A!J$3*B162)<A!J$4,A!J$2+A!J$3*B162,A!J$4),"NA") -> 179.9999493 | G162: =IF(M$53,IF(B162<A!K$4,A!K$2+A!K$3*(3*B162/(2*A!K$4)-0.5*(B162/A!K$4)^3),A!K$3+A!K$2),"NA") -> 179.4722109 | H162: =IF(M$53,(C162*B$45+'C'!D162*C$45+'C'!E162*D$45+'C'!F162*E$45+'C'!G162*F$45)/SUM(B$45:F$45),"NA") -> 181.2679974 | I162: 0 | J162: =IF(M$53,IF(AND(I162<A!B$29,I161>+A!B$29),((I161-A!B$29)/('C'!I161-'C'!I162))*4+'C'!B161,"NO"),"NA") -> NO
A163: 230 | B163: 200 | C163: =IF(M$53,A!G$2+A!G$3*B163+A!G$4*B163^2,"NA") -> 181.171853 | D163: =IF(M$53,IF(B163<(A!H$3/(-2*A!H$4)),A!H$2+A!H$3*B163+A!H$4*B163^2,A!H$2+A!H$3*(A!H$3/(-2*A!H$4))+A!H$3*A!H$3/(4*A!H$4)),"NA") -> 180.4182879 | E163: =IF(M$53,A!I$2+A!I$3*EXP(A!I$4*B163),"NA") -> 183.0369505 | F163: =IF(M$53,IF((A!J$2+A!J$3*B163)<A!J$4,A!J$2+A!J$3*B163,A!J$4),"NA") -> 179.9999493 | G163: =IF(M$53,IF(B163<A!K$4,A!K$2+A!K$3*(3*B163/(2*A!K$4)-0.5*(B163/A!K$4)^3),A!K$3+A!K$2),"NA") -> 179.4722109 | H163: =IF(M$53,(C163*B$45+'C'!D163*C$45+'C'!E163*D$45+'C'!F163*E$45+'C'!G163*F$45)/SUM(B$45:F$45),"NA") -> 181.2679974 | I163: 0 | J163: =IF(M$53,IF(AND(I163<A!B$29,I162>+A!B$29),((I162-A!B$29)/('C'!I162-'C'!I163))*4+'C'!B162,"NO"),"NA") -> NO
A164: 232 | B164: 200 | C164: =IF(M$53,A!G$2+A!G$3*B164+A!G$4*B164^2,"NA") -> 181.171853 | D164: =IF(M$53,IF(B164<(A!H$3/(-2*A!H$4)),A!H$2+A!H$3*B164+A!H$4*B164^2,A!H$2+A!H$3*(A!H$3/(-2*A!H$4))+A!H$3*A!H$3/(4*A!H$4)),"NA") -> 180.4182879 | E164: =IF(M$53,A!I$2+A!I$3*EXP(A!I$4*B164),"NA") -> 183.0369505 | F164: =IF(M$53,IF((A!J$2+A!J$3*B164)<A!J$4,A!J$2+A!J$3*B164,A!J$4),"NA") -> 179.9999493 | G164: =IF(M$53,IF(B164<A!K$4,A!K$2+A!K$3*(3*B164/(2*A!K$4)-0.5*(B164/A!K$4)^3),A!K$3+A!K$2),"NA") -> 179.4722109 | H164: =IF(M$53,(C164*B$45+'C'!D164*C$45+'C'!E164*D$45+'C'!F164*E$45+'C'!G164*F$45)/SUM(B$45:F$45),"NA") -> 181.2679974 | I164: 0 | J164: =IF(M$53,IF(AND(I164<A!B$29,I163>+A!B$29),((I163-A!B$29)/('C'!I163-'C'!I164))*4+'C'!B163,"NO"),"NA") -> NO
A165: 234 | B165: 200 | C165: =IF(M$53,A!G$2+A!G$3*B165+A!G$4*B165^2,"NA") -> 181.171853 | D165: =IF(M$53,IF(B165<(A!H$3/(-2*A!H$4)),A!H$2+A!H$3*B165+A!H$4*B165^2,A!H$2+A!H$3*(A!H$3/(-2*A!H$4))+A!H$3*A!H$3/(4*A!H$4)),"NA") -> 180.4182879 | E165: =IF(M$53,A!I$2+A!I$3*EXP(A!I$4*B165),"NA") -> 183.0369505 | F165: =IF(M$53,IF((A!J$2+A!J$3*B165)<A!J$4,A!J$2+A!J$3*B165,A!J$4),"NA") -> 179.9999493 | G165: =IF(M$53,IF(B165<A!K$4,A!K$2+A!K$3*(3*B165/(2*A!K$4)-0.5*(B165/A!K$4)^3),A!K$3+A!K$2),"NA") -> 179.4722109 | H165: =IF(M$53,(C165*B$45+'C'!D165*C$45+'C'!E165*D$45+'C'!F165*E$45+'C'!G165*F$45)/SUM(B$45:F$45),"NA") -> 181.2679974 | I165: 0 | J165: =IF(M$53,IF(AND(I165<A!B$29,I164>+A!B$29),((I164-A!B$29)/('C'!I164-'C'!I165))*4+'C'!B164,"NO"),"NA") -> NO
A166: 236 | B166: 200 | C166: =IF(M$53,A!G$2+A!G$3*B166+A!G$4*B166^2,"NA") -> 181.171853 | D166: =IF(M$53,IF(B166<(A!H$3/(-2*A!H$4)),A!H$2+A!H$3*B166+A!H$4*B166^2,A!H$2+A!H$3*(A!H$3/(-2*A!H$4))+A!H$3*A!H$3/(4*A!H$4)),"NA") -> 180.4182879 | E166: =IF(M$53,A!I$2+A!I$3*EXP(A!I$4*B166),"NA") -> 183.0369505 | F166: =IF(M$53,IF((A!J$2+A!J$3*B166)<A!J$4,A!J$2+A!J$3*B166,A!J$4),"NA") -> 179.9999493 | G166: =IF(M$53,IF(B166<A!K$4,A!K$2+A!K$3*(3*B166/(2*A!K$4)-0.5*(B166/A!K$4)^3),A!K$3+A!K$2),"NA") -> 179.4722109 | H166: =IF(M$53,(C166*B$45+'C'!D166*C$45+'C'!E166*D$45+'C'!F166*E$45+'C'!G166*F$45)/SUM(B$45:F$45),"NA") -> 181.2679974 | I166: 0 | J166: =IF(M$53,IF(AND(I166<A!B$29,I165>+A!B$29),((I165-A!B$29)/('C'!I165-'C'!I166))*4+'C'!B165,"NO"),"NA") -> NO
A167: 238 | B167: 200 | C167: =IF(M$53,A!G$2+A!G$3*B167+A!G$4*B167^2,"NA") -> 181.171853 | D167: =IF(M$53,IF(B167<(A!H$3/(-2*A!H$4)),A!H$2+A!H$3*B167+A!H$4*B167^2,A!H$2+A!H$3*(A!H$3/(-2*A!H$4))+A!H$3*A!H$3/(4*A!H$4)),"NA") -> 180.4182879 | E167: =IF(M$53,A!I$2+A!I$3*EXP(A!I$4*B167),"NA") -> 183.0369505 | F167: =IF(M$53,IF((A!J$2+A!J$3*B167)<A!J$4,A!J$2+A!J$3*B167,A!J$4),"NA") -> 179.9999493 | G167: =IF(M$53,IF(B167<A!K$4,A!K$2+A!K$3*(3*B167/(2*A!K$4)-0.5*(B167/A!K$4)^3),A!K$3+A!K$2),"NA") -> 179.4722109 | H167: =IF(M$53,(C167*B$45+'C'!D167*C$45+'C'!E167*D$45+'C'!F167*E$45+'C'!G167*F$45)/SUM(B$45:F$45),"NA") -> 181.2679974 | I167: 0 | J167: =IF(M$53,IF(AND(I167<A!B$29,I166>+A!B$29),((I166-A!B$29)/('C'!I166-'C'!I167))*4+'C'!B166,"NO"),"NA") -> NO
A168: 240 | B168: 200 | C168: =IF(M$53,A!G$2+A!G$3*B168+A!G$4*B168^2,"NA") -> 181.171853 | D168: =IF(M$53,IF(B168<(A!H$3/(-2*A!H$4)),A!H$2+A!H$3*B168+A!H$4*B168^2,A!H$2+A!H$3*(A!H$3/(-2*A!H$4))+A!H$3*A!H$3/(4*A!H$4)),"NA") -> 180.4182879 | E168: =IF(M$53,A!I$2+A!I$3*EXP(A!I$4*B168),"NA") -> 183.0369505 | F168: =IF(M$53,IF((A!J$2+A!J$3*B168)<A!J$4,A!J$2+A!J$3*B168,A!J$4),"NA") -> 179.9999493 | G168: =IF(M$53,IF(B168<A!K$4,A!K$2+A!K$3*(3*B168/(2*A!K$4)-0.5*(B168/A!K$4)^3),A!K$3+A!K$2),"NA") -> 179.4722109 | H168: =IF(M$53,(C168*B$45+'C'!D168*C$45+'C'!E168*D$45+'C'!F168*E$45+'C'!G168*F$45)/SUM(B$45:F$45),"NA") -> 181.2679974 | I168: 0 | J168: =IF(M$53,IF(AND(I168<A!B$29,I167>+A!B$29),((I167-A!B$29)/('C'!I167-'C'!I168))*4+'C'!B167,"NO"),"NA") -> NO
A169: 242 | B169: 200 | C169: =IF(M$53,A!G$2+A!G$3*B169+A!G$4*B169^2,"NA") -> 181.171853 | D169: =IF(M$53,IF(B169<(A!H$3/(-2*A!H$4)),A!H$2+A!H$3*B169+A!H$4*B169^2,A!H$2+A!H$3*(A!H$3/(-2*A!H$4))+A!H$3*A!H$3/(4*A!H$4)),"NA") -> 180.4182879 | E169: =IF(M$53,A!I$2+A!I$3*EXP(A!I$4*B169),"NA") -> 183.0369505 | F169: =IF(M$53,IF((A!J$2+A!J$3*B169)<A!J$4,A!J$2+A!J$3*B169,A!J$4),"NA") -> 179.9999493 | G169: =IF(M$53,IF(B169<A!K$4,A!K$2+A!K$3*(3*B169/(2*A!K$4)-0.5*(B169/A!K$4)^3),A!K$3+A!K$2),"NA") -> 179.4722109 | H169: =IF(M$53,(C169*B$45+'C'!D169*C$45+'C'!E169*D$45+'C'!F169*E$45+'C'!G169*F$45)/SUM(B$45:F$45),"NA") -> 181.2679974 | I169: 0 | J169: =IF(M$53,IF(AND(I169<A!B$29,I168>+A!B$29),((I168-A!B$29)/('C'!I168-'C'!I169))*4+'C'!B168,"NO"),"NA") -> NO
A170: 244 | B170: 200 | C170: =IF(M$53,A!G$2+A!G$3*B170+A!G$4*B170^2,"NA") -> 181.171853 | D170: =IF(M$53,IF(B170<(A!H$3/(-2*A!H$4)),A!H$2+A!H$3*B170+A!H$4*B170^2,A!H$2+A!H$3*(A!H$3/(-2*A!H$4))+A!H$3*A!H$3/(4*A!H$4)),"NA") -> 180.4182879 | E170: =IF(M$53,A!I$2+A!I$3*EXP(A!I$4*B170),"NA") -> 183.0369505 | F170: =IF(M$53,IF((A!J$2+A!J$3*B170)<A!J$4,A!J$2+A!J$3*B170,A!J$4),"NA") -> 179.9999493 | G170: =IF(M$53,IF(B170<A!K$4,A!K$2+A!K$3*(3*B170/(2*A!K$4)-0.5*(B170/A!K$4)^3),A!K$3+A!K$2),"NA") -> 179.4722109 | H170: =IF(M$53,(C170*B$45+'C'!D170*C$45+'C'!E170*D$45+'C'!F170*E$45+'C'!G170*F$45)/SUM(B$45:F$45),"NA") -> 181.2679974 | I170: 0 | J170: =IF(M$53,IF(AND(I170<A!B$29,I169>+A!B$29),((I169-A!B$29)/('C'!I169-'C'!I170))*4+'C'!B169,"NO"),"NA") -> NO
A171: 246 | B171: 200 | C171: =IF(M$53,A!G$2+A!G$3*B171+A!G$4*B171^2,"NA") -> 181.171853 | D171: =IF(M$53,IF(B171<(A!H$3/(-2*A!H$4)),A!H$2+A!H$3*B171+A!H$4*B171^2,A!H$2+A!H$3*(A!H$3/(-2*A!H$4))+A!H$3*A!H$3/(4*A!H$4)),"NA") -> 180.4182879 | E171: =IF(M$53,A!I$2+A!I$3*EXP(A!I$4*B171),"NA") -> 183.0369505 | F171: =IF(M$53,IF((A!J$2+A!J$3*B171)<A!J$4,A!J$2+A!J$3*B171,A!J$4),"NA") -> 179.9999493 | G171: =IF(M$53,IF(B171<A!K$4,A!K$2+A!K$3*(3*B171/(2*A!K$4)-0.5*(B171/A!K$4)^3),A!K$3+A!K$2),"NA") -> 179.4722109 | H171: =IF(M$53,(C171*B$45+'C'!D171*C$45+'C'!E171*D$45+'C'!F171*E$45+'C'!G171*F$45)/SUM(B$45:F$45),"NA") -> 181.2679974 | I171: 0 | J171: =IF(M$53,IF(AND(I171<A!B$29,I170>+A!B$29),((I170-A!B$29)/('C'!I170-'C'!I171))*4+'C'!B170,"NO"),"NA") -> NO
A172: 248 | B172: 200 | C172: =IF(M$53,A!G$2+A!G$3*B172+A!G$4*B172^2,"NA") -> 181.171853 | D172: =IF(M$53,IF(B172<(A!H$3/(-2*A!H$4)),A!H$2+A!H$3*B172+A!H$4*B172^2,A!H$2+A!H$3*(A!H$3/(-2*A!H$4))+A!H$3*A!H$3/(4*A!H$4)),"NA") -> 180.4182879 | E172: =IF(M$53,A!I$2+A!I$3*EXP(A!I$4*B172),"NA") -> 183.0369505 | F172: =IF(M$53,IF((A!J$2+A!J$3*B172)<A!J$4,A!J$2+A!J$3*B172,A!J$4),"NA") -> 179.9999493 | G172: =IF(M$53,IF(B172<A!K$4,A!K$2+A!K$3*(3*B172/(2*A!K$4)-0.5*(B172/A!K$4)^3),A!K$3+A!K$2),"NA") -> 179.4722109 | H172: =IF(M$53,(C172*B$45+'C'!D172*C$45+'C'!E172*D$45+'C'!F172*E$45+'C'!G172*F$45)/SUM(B$45:F$45),"NA") -> 181.2679974 | I172: 0 | J172: =IF(M$53,IF(AND(I172<A!B$29,I171>+A!B$29),((I171-A!B$29)/('C'!I171-'C'!I172))*4+'C'!B171,"NO"),"NA") -> NO
A173: 250 | B173: 200 | C173: =IF(M$53,A!G$2+A!G$3*B173+A!G$4*B173^2,"NA") -> 181.171853 | D173: =IF(M$53,IF(B173<(A!H$3/(-2*A!H$4)),A!H$2+A!H$3*B173+A!H$4*B173^2,A!H$2+A!H$3*(A!H$3/(-2*A!H$4))+A!H$3*A!H$3/(4*A!H$4)),"NA") -> 180.4182879 | E173: =IF(M$53,A!I$2+A!I$3*EXP(A!I$4*B173),"NA") -> 183.0369505 | F173: =IF(M$53,IF((A!J$2+A!J$3*B173)<A!J$4,A!J$2+A!J$3*B173,A!J$4),"NA") -> 179.9999493 | G173: =IF(M$53,IF(B173<A!K$4,A!K$2+A!K$3*(3*B173/(2*A!K$4)-0.5*(B173/A!K$4)^3),A!K$3+A!K$2),"NA") -> 179.4722109 | H173: =IF(M$53,(C173*B$45+'C'!D173*C$45+'C'!E173*D$45+'C'!F173*E$45+'C'!G173*F$45)/SUM(B$45:F$45),"NA") -> 181.2679974 | I173: 0 | J173: =IF(M$53,IF(AND(I173<A!B$29,I172>+A!B$29),((I172-A!B$29)/('C'!I172-'C'!I173))*4+'C'!B172,"NO"),"NA") -> NO
A174: 252 | B174: 200 | C174: =IF(M$53,A!G$2+A!G$3*B174+A!G$4*B174^2,"NA") -> 181.171853 | D174: =IF(M$53,IF(B174<(A!H$3/(-2*A!H$4)),A!H$2+A!H$3*B174+A!H$4*B174^2,A!H$2+A!H$3*(A!H$3/(-2*A!H$4))+A!H$3*A!H$3/(4*A!H$4)),"NA") -> 180.4182879 | E174: =IF(M$53,A!I$2+A!I$3*EXP(A!I$4*B174),"NA") -> 183.0369505 | F174: =IF(M$53,IF((A!J$2+A!J$3*B174)<A!J$4,A!J$2+A!J$3*B174,A!J$4),"NA") -> 179.9999493 | G174: =IF(M$53,IF(B174<A!K$4,A!K$2+A!K$3*(3*B174/(2*A!K$4)-0.5*(B174/A!K$4)^3),A!K$3+A!K$2),"NA") -> 179.4722109 | H174: =IF(M$53,(C174*B$45+'C'!D174*C$45+'C'!E174*D$45+'C'!F174*E$45+'C'!G174*F$45)/SUM(B$45:F$45),"NA") -> 181.2679974 | I174: 0 | J174: =IF(M$53,IF(AND(I174<A!B$29,I173>+A!B$29),((I173-A!B$29)/('C'!I173-'C'!I174))*4+'C'!B173,"NO"),"NA") -> NO
A175: 254 | B175: 200 | C175: =IF(M$53,A!G$2+A!G$3*B175+A!G$4*B175^2,"NA") -> 181.171853 | D175: =IF(M$53,IF(B175<(A!H$3/(-2*A!H$4)),A!H$2+A!H$3*B175+A!H$4*B175^2,A!H$2+A!H$3*(A!H$3/(-2*A!H$4))+A!H$3*A!H$3/(4*A!H$4)),"NA") -> 180.4182879 | E175: =IF(M$53,A!I$2+A!I$3*EXP(A!I$4*B175),"NA") -> 183.0369505 | F175: =IF(M$53,IF((A!J$2+A!J$3*B175)<A!J$4,A!J$2+A!J$3*B175,A!J$4),"NA") -> 179.9999493 | G175: =IF(M$53,IF(B175<A!K$4,A!K$2+A!K$3*(3*B175/(2*A!K$4)-0.5*(B175/A!K$4)^3),A!K$3+A!K$2),"NA") -> 179.4722109 | H175: =IF(M$53,(C175*B$45+'C'!D175*C$45+'C'!E175*D$45+'C'!F175*E$45+'C'!G175*F$45)/SUM(B$45:F$45),"NA") -> 181.2679974 | I175: 0 | J175: =IF(M$53,IF(AND(I175<A!B$29,I174>+A!B$29),((I174-A!B$29)/('C'!I174-'C'!I175))*4+'C'!B174,"NO"),"NA") -> NO
A176: 256 | B176: 200 | C176: =IF(M$53,A!G$2+A!G$3*B176+A!G$4*B176^2,"NA") -> 181.171853 | D176: =IF(M$53,IF(B176<(A!H$3/(-2*A!H$4)),A!H$2+A!H$3*B176+A!H$4*B176^2,A!H$2+A!H$3*(A!H$3/(-2*A!H$4))+A!H$3*A!H$3/(4*A!H$4)),"NA") -> 180.4182879 | E176: =IF(M$53,A!I$2+A!I$3*EXP(A!I$4*B176),"NA") -> 183.0369505 | F176: =IF(M$53,IF((A!J$2+A!J$3*B176)<A!J$4,A!J$2+A!J$3*B176,A!J$4),"NA") -> 179.9999493 | G176: =IF(M$53,IF(B176<A!K$4,A!K$2+A!K$3*(3*B176/(2*A!K$4)-0.5*(B176/A!K$4)^3),A!K$3+A!K$2),"NA") -> 179.4722109 | H176: =IF(M$53,(C176*B$45+'C'!D176*C$45+'C'!E176*D$45+'C'!F176*E$45+'C'!G176*F$45)/SUM(B$45:F$45),"NA") -> 181.2679974 | I176: 0 | J176: =IF(M$53,IF(AND(I176<A!B$29,I175>+A!B$29),((I175-A!B$29)/('C'!I175-'C'!I176))*4+'C'!B175,"NO"),"NA") -> NO
A177: 258 | B177: =IF(A177<$M$48,A177,$M$48) -> 200 | C177: =IF(M$53,A!G$2+A!G$3*B177+A!G$4*B177^2,"NA") -> 181.171853 | D177: =IF(M$53,IF(B177<(A!H$3/(-2*A!H$4)),A!H$2+A!H$3*B177+A!H$4*B177^2,A!H$2+A!H$3*(A!H$3/(-2*A!H$4))+A!H$3*A!H$3/(4*A!H$4)),"NA") -> 180.4182879 | E177: =IF(M$53,A!I$2+A!I$3*EXP(A!I$4*B177),"NA") -> 183.0369505 | F177: =IF(M$53,IF((A!J$2+A!J$3*B177)<A!J$4,A!J$2+A!J$3*B177,A!J$4),"NA") -> 179.9999493 | G177: =IF(M$53,IF(B177<A!K$4,A!K$2+A!K$3*(3*B177/(2*A!K$4)-0.5*(B177/A!K$4)^3),A!K$3+A!K$2),"NA") -> 179.4722109 | H177: =IF(M$53,(C177*B$45+'C'!D177*C$45+'C'!E177*D$45+'C'!F177*E$45+'C'!G177*F$45)/SUM(B$45:F$45),"NA") -> 181.2679974 | I177: =IF(M$53,(H178-H177)/2,"NA") -> 0 | J177: =IF(M$53,IF(AND(I177<A!B$29,I176>+A!B$29),((I176-A!B$29)/('C'!I176-'C'!I177))*4+'C'!B176,"NO"),"NA") -> NO
A178: 260 | B178: 200 | C178: =IF(M$53,A!G$2+A!G$3*B178+A!G$4*B178^2,"NA") -> 181.171853 | D178: =IF(M$53,IF(B178<(A!H$3/(-2*A!H$4)),A!H$2+A!H$3*B178+A!H$4*B178^2,A!H$2+A!H$3*(A!H$3/(-2*A!H$4))+A!H$3*A!H$3/(4*A!H$4)),"NA") -> 180.4182879 | E178: =IF(M$53,A!I$2+A!I$3*EXP(A!I$4*B178),"NA") -> 183.0369505 | F178: =IF(M$53,IF((A!J$2+A!J$3*B178)<A!J$4,A!J$2+A!J$3*B178,A!J$4),"NA") -> 179.9999493 | G178: =IF(M$53,IF(B178<A!K$4,A!K$2+A!K$3*(3*B178/(2*A!K$4)-0.5*(B178/A!K$4)^3),A!K$3+A!K$2),"NA") -> 179.4722109 | H178: =IF(M$53,(C178*B$45+'C'!D178*C$45+'C'!E178*D$45+'C'!F178*E$45+'C'!G178*F$45)/SUM(B$45:F$45),"NA") -> 181.2679974 | I178: 0 | J178: =IF(M$53,IF(AND(I178<A!B$29,I177>+A!B$29),((I177-A!B$29)/('C'!I177-'C'!I178))*4+'C'!B177,"NO"),"NA") -> NO
A179: 262 | B179: 200 | C179: =IF(M$53,A!G$2+A!G$3*B179+A!G$4*B179^2,"NA") -> 181.171853 | D179: =IF(M$53,IF(B179<(A!H$3/(-2*A!H$4)),A!H$2+A!H$3*B179+A!H$4*B179^2,A!H$2+A!H$3*(A!H$3/(-2*A!H$4))+A!H$3*A!H$3/(4*A!H$4)),"NA") -> 180.4182879 | E179: =IF(M$53,A!I$2+A!I$3*EXP(A!I$4*B179),"NA") -> 183.0369505 | F179: =IF(M$53,IF((A!J$2+A!J$3*B179)<A!J$4,A!J$2+A!J$3*B179,A!J$4),"NA") -> 179.9999493 | G179: =IF(M$53,IF(B179<A!K$4,A!K$2+A!K$3*(3*B179/(2*A!K$4)-0.5*(B179/A!K$4)^3),A!K$3+A!K$2),"NA") -> 179.4722109 | H179: =IF(M$53,(C179*B$45+'C'!D179*C$45+'C'!E179*D$45+'C'!F179*E$45+'C'!G179*F$45)/SUM(B$45:F$45),"NA") -> 181.2679974 | I179: 0 | J179: =IF(M$53,IF(AND(I179<A!B$29,I178>+A!B$29),((I178-A!B$29)/('C'!I178-'C'!I179))*4+'C'!B178,"NO"),"NA") -> NO
A180: 264 | B180: 200 | C180: =IF(M$53,A!G$2+A!G$3*B180+A!G$4*B180^2,"NA") -> 181.171853 | D180: =IF(M$53,IF(B180<(A!H$3/(-2*A!H$4)),A!H$2+A!H$3*B180+A!H$4*B180^2,A!H$2+A!H$3*(A!H$3/(-2*A!H$4))+A!H$3*A!H$3/(4*A!H$4)),"NA") -> 180.4182879 | E180: =IF(M$53,A!I$2+A!I$3*EXP(A!I$4*B180),"NA") -> 183.0369505 | F180: =IF(M$53,IF((A!J$2+A!J$3*B180)<A!J$4,A!J$2+A!J$3*B180,A!J$4),"NA") -> 179.9999493 | G180: =IF(M$53,IF(B180<A!K$4,A!K$2+A!K$3*(3*B180/(2*A!K$4)-0.5*(B180/A!K$4)^3),A!K$3+A!K$2),"NA") -> 179.4722109 | H180: =IF(M$53,(C180*B$45+'C'!D180*C$45+'C'!E180*D$45+'C'!F180*E$45+'C'!G180*F$45)/SUM(B$45:F$45),"NA") -> 181.2679974 | I180: 0 | J180: =IF(M$53,IF(AND(I180<A!B$29,I179>+A!B$29),((I179-A!B$29)/('C'!I179-'C'!I180))*4+'C'!B179,"NO"),"NA") -> NO
A181: 266 | B181: 200 | C181: =IF(M$53,A!G$2+A!G$3*B181+A!G$4*B181^2,"NA") -> 181.171853 | D181: =IF(M$53,IF(B181<(A!H$3/(-2*A!H$4)),A!H$2+A!H$3*B181+A!H$4*B181^2,A!H$2+A!H$3*(A!H$3/(-2*A!H$4))+A!H$3*A!H$3/(4*A!H$4)),"NA") -> 180.4182879 | E181: =IF(M$53,A!I$2+A!I$3*EXP(A!I$4*B181),"NA") -> 183.0369505 | F181: =IF(M$53,IF((A!J$2+A!J$3*B181)<A!J$4,A!J$2+A!J$3*B181,A!J$4),"NA") -> 179.9999493 | G181: =IF(M$53,IF(B181<A!K$4,A!K$2+A!K$3*(3*B181/(2*A!K$4)-0.5*(B181/A!K$4)^3),A!K$3+A!K$2),"NA") -> 179.4722109 | H181: =IF(M$53,(C181*B$45+'C'!D181*C$45+'C'!E181*D$45+'C'!F181*E$45+'C'!G181*F$45)/SUM(B$45:F$45),"NA") -> 181.2679974 | I181: 0 | J181: =IF(M$53,IF(AND(I181<A!B$29,I180>+A!B$29),((I180-A!B$29)/('C'!I180-'C'!I181))*4+'C'!B180,"NO"),"NA") -> NO
A182: 268 | B182: 200 | C182: =IF(M$53,A!G$2+A!G$3*B182+A!G$4*B182^2,"NA") -> 181.171853 | D182: =IF(M$53,IF(B182<(A!H$3/(-2*A!H$4)),A!H$2+A!H$3*B182+A!H$4*B182^2,A!H$2+A!H$3*(A!H$3/(-2*A!H$4))+A!H$3*A!H$3/(4*A!H$4)),"NA") -> 180.4182879 | E182: =IF(M$53,A!I$2+A!I$3*EXP(A!I$4*B182),"NA") -> 183.0369505 | F182: =IF(M$53,IF((A!J$2+A!J$3*B182)<A!J$4,A!J$2+A!J$3*B182,A!J$4),"NA") -> 179.9999493 | G182: =IF(M$53,IF(B182<A!K$4,A!K$2+A!K$3*(3*B182/(2*A!K$4)-0.5*(B182/A!K$4)^3),A!K$3+A!K$2),"NA") -> 179.4722109 | H182: =IF(M$53,(C182*B$45+'C'!D182*C$45+'C'!E182*D$45+'C'!F182*E$45+'C'!G182*F$45)/SUM(B$45:F$45),"NA") -> 181.2679974 | I182: 0 | J182: =IF(M$53,IF(AND(I182<A!B$29,I181>+A!B$29),((I181-A!B$29)/('C'!I181-'C'!I182))*4+'C'!B181,"NO"),"NA") -> NO
A183: 270 | B183: 200 | C183: =IF(M$53,A!G$2+A!G$3*B183+A!G$4*B183^2,"NA") -> 181.171853 | D183: =IF(M$53,IF(B183<(A!H$3/(-2*A!H$4)),A!H$2+A!H$3*B183+A!H$4*B183^2,A!H$2+A!H$3*(A!H$3/(-2*A!H$4))+A!H$3*A!H$3/(4*A!H$4)),"NA") -> 180.4182879 | E183: =IF(M$53,A!I$2+A!I$3*EXP(A!I$4*B183),"NA") -> 183.0369505 | F183: =IF(M$53,IF((A!J$2+A!J$3*B183)<A!J$4,A!J$2+A!J$3*B183,A!J$4),"NA") -> 179.9999493 | G183: =IF(M$53,IF(B183<A!K$4,A!K$2+A!K$3*(3*B183/(2*A!K$4)-0.5*(B183/A!K$4)^3),A!K$3+A!K$2),"NA") -> 179.4722109 | H183: =IF(M$53,(C183*B$45+'C'!D183*C$45+'C'!E183*D$45+'C'!F183*E$45+'C'!G183*F$45)/SUM(B$45:F$45),"NA") -> 181.2679974 | I183: 0 | J183: =IF(M$53,IF(AND(I183<A!B$29,I182>+A!B$29),((I182-A!B$29)/('C'!I182-'C'!I183))*4+'C'!B182,"NO"),"NA") -> NO
A184: 272 | B184: 200 | C184: =IF(M$53,A!G$2+A!G$3*B184+A!G$4*B184^2,"NA") -> 181.171853 | D184: =IF(M$53,IF(B184<(A!H$3/(-2*A!H$4)),A!H$2+A!H$3*B184+A!H$4*B184^2,A!H$2+A!H$3*(A!H$3/(-2*A!H$4))+A!H$3*A!H$3/(4*A!H$4)),"NA") -> 180.4182879 | E184: =IF(M$53,A!I$2+A!I$3*EXP(A!I$4*B184),"NA") -> 183.0369505 | F184: =IF(M$53,IF((A!J$2+A!J$3*B184)<A!J$4,A!J$2+A!J$3*B184,A!J$4),"NA") -> 179.9999493 | G184: =IF(M$53,IF(B184<A!K$4,A!K$2+A!K$3*(3*B184/(2*A!K$4)-0.5*(B184/A!K$4)^3),A!K$3+A!K$2),"NA") -> 179.4722109 | H184: =IF(M$53,(C184*B$45+'C'!D184*C$45+'C'!E184*D$45+'C'!F184*E$45+'C'!G184*F$45)/SUM(B$45:F$45),"NA") -> 181.2679974 | I184: 0 | J184: =IF(M$53,IF(AND(I184<A!B$29,I183>+A!B$29),((I183-A!B$29)/('C'!I183-'C'!I184))*4+'C'!B183,"NO"),"NA") -> NO
A185: 274 | B185: 200 | C185: =IF(M$53,A!G$2+A!G$3*B185+A!G$4*B185^2,"NA") -> 181.171853 | D185: =IF(M$53,IF(B185<(A!H$3/(-2*A!H$4)),A!H$2+A!H$3*B185+A!H$4*B185^2,A!H$2+A!H$3*(A!H$3/(-2*A!H$4))+A!H$3*A!H$3/(4*A!H$4)),"NA") -> 180.4182879 | E185: =IF(M$53,A!I$2+A!I$3*EXP(A!I$4*B185),"NA") -> 183.0369505 | F185: =IF(M$53,IF((A!J$2+A!J$3*B185)<A!J$4,A!J$2+A!J$3*B185,A!J$4),"NA") -> 179.9999493 | G185: =IF(M$53,IF(B185<A!K$4,A!K$2+A!K$3*(3*B185/(2*A!K$4)-0.5*(B185/A!K$4)^3),A!K$3+A!K$2),"NA") -> 179.4722109 | H185: =IF(M$53,(C185*B$45+'C'!D185*C$45+'C'!E185*D$45+'C'!F185*E$45+'C'!G185*F$45)/SUM(B$45:F$45),"NA") -> 181.2679974 | I185: 0 | J185: =IF(M$53,IF(AND(I185<A!B$29,I184>+A!B$29),((I184-A!B$29)/('C'!I184-'C'!I185))*4+'C'!B184,"NO"),"NA") -> NO
A186: 276 | B186: 200 | C186: =IF(M$53,A!G$2+A!G$3*B186+A!G$4*B186^2,"NA") -> 181.171853 | D186: =IF(M$53,IF(B186<(A!H$3/(-2*A!H$4)),A!H$2+A!H$3*B186+A!H$4*B186^2,A!H$2+A!H$3*(A!H$3/(-2*A!H$4))+A!H$3*A!H$3/(4*A!H$4)),"NA") -> 180.4182879 | E186: =IF(M$53,A!I$2+A!I$3*EXP(A!I$4*B186),"NA") -> 183.0369505 | F186: =IF(M$53,IF((A!J$2+A!J$3*B186)<A!J$4,A!J$2+A!J$3*B186,A!J$4),"NA") -> 179.9999493 | G186: =IF(M$53,IF(B186<A!K$4,A!K$2+A!K$3*(3*B186/(2*A!K$4)-0.5*(B186/A!K$4)^3),A!K$3+A!K$2),"NA") -> 179.4722109 | H186: =IF(M$53,(C186*B$45+'C'!D186*C$45+'C'!E186*D$45+'C'!F186*E$45+'C'!G186*F$45)/SUM(B$45:F$45),"NA") -> 181.2679974 | I186: 0 | J186: =IF(M$53,IF(AND(I186<A!B$29,I185>+A!B$29),((I185-A!B$29)/('C'!I185-'C'!I186))*4+'C'!B185,"NO"),"NA") -> NO
A187: 278 | B187: 200 | C187: =IF(M$53,A!G$2+A!G$3*B187+A!G$4*B187^2,"NA") -> 181.171853 | D187: =IF(M$53,IF(B187<(A!H$3/(-2*A!H$4)),A!H$2+A!H$3*B187+A!H$4*B187^2,A!H$2+A!H$3*(A!H$3/(-2*A!H$4))+A!H$3*A!H$3/(4*A!H$4)),"NA") -> 180.4182879 | E187: =IF(M$53,A!I$2+A!I$3*EXP(A!I$4*B187),"NA") -> 183.0369505 | F187: =IF(M$53,IF((A!J$2+A!J$3*B187)<A!J$4,A!J$2+A!J$3*B187,A!J$4),"NA") -> 179.9999493 | G187: =IF(M$53,IF(B187<A!K$4,A!K$2+A!K$3*(3*B187/(2*A!K$4)-0.5*(B187/A!K$4)^3),A!K$3+A!K$2),"NA") -> 179.4722109 | H187: =IF(M$53,(C187*B$45+'C'!D187*C$45+'C'!E187*D$45+'C'!F187*E$45+'C'!G187*F$45)/SUM(B$45:F$45),"NA") -> 181.2679974 | I187: 0 | J187: =IF(M$53,IF(AND(I187<A!B$29,I186>+A!B$29),((I186-A!B$29)/('C'!I186-'C'!I187))*4+'C'!B186,"NO"),"NA") -> NO
A188: 280 | B188: 200 | C188: =IF(M$53,A!G$2+A!G$3*B188+A!G$4*B188^2,"NA") -> 181.171853 | D188: =IF(M$53,IF(B188<(A!H$3/(-2*A!H$4)),A!H$2+A!H$3*B188+A!H$4*B188^2,A!H$2+A!H$3*(A!H$3/(-2*A!H$4))+A!H$3*A!H$3/(4*A!H$4)),"NA") -> 180.4182879 | E188: =IF(M$53,A!I$2+A!I$3*EXP(A!I$4*B188),"NA") -> 183.0369505 | F188: =IF(M$53,IF((A!J$2+A!J$3*B188)<A!J$4,A!J$2+A!J$3*B188,A!J$4),"NA") -> 179.9999493 | G188: =IF(M$53,IF(B188<A!K$4,A!K$2+A!K$3*(3*B188/(2*A!K$4)-0.5*(B188/A!K$4)^3),A!K$3+A!K$2),"NA") -> 179.4722109 | H188: =IF(M$53,(C188*B$45+'C'!D188*C$45+'C'!E188*D$45+'C'!F188*E$45+'C'!G188*F$45)/SUM(B$45:F$45),"NA") -> 181.2679974 | I188: 0 | J188: =IF(M$53,IF(AND(I188<A!B$29,I187>+A!B$29),((I187-A!B$29)/('C'!I187-'C'!I188))*4+'C'!B187,"NO"),"NA") -> NO
A189: 282 | B189: 200 | C189: =IF(M$53,A!G$2+A!G$3*B189+A!G$4*B189^2,"NA") -> 181.171853 | D189: =IF(M$53,IF(B189<(A!H$3/(-2*A!H$4)),A!H$2+A!H$3*B189+A!H$4*B189^2,A!H$2+A!H$3*(A!H$3/(-2*A!H$4))+A!H$3*A!H$3/(4*A!H$4)),"NA") -> 180.4182879 | E189: =IF(M$53,A!I$2+A!I$3*EXP(A!I$4*B189),"NA") -> 183.0369505 | F189: =IF(M$53,IF((A!J$2+A!J$3*B189)<A!J$4,A!J$2+A!J$3*B189,A!J$4),"NA") -> 179.9999493 | G189: =IF(M$53,IF(B189<A!K$4,A!K$2+A!K$3*(3*B189/(2*A!K$4)-0.5*(B189/A!K$4)^3),A!K$3+A!K$2),"NA") -> 179.4722109 | H189: =IF(M$53,(C189*B$45+'C'!D189*C$45+'C'!E189*D$45+'C'!F189*E$45+'C'!G189*F$45)/SUM(B$45:F$45),"NA") -> 181.2679974 | I189: 0 | J189: =IF(M$53,IF(AND(I189<A!B$29,I188>+A!B$29),((I188-A!B$29)/('C'!I188-'C'!I189))*4+'C'!B188,"NO"),"NA") -> NO
A190: 284 | B190: 200 | C190: =IF(M$53,A!G$2+A!G$3*B190+A!G$4*B190^2,"NA") -> 181.171853 | D190: =IF(M$53,IF(B190<(A!H$3/(-2*A!H$4)),A!H$2+A!H$3*B190+A!H$4*B190^2,A!H$2+A!H$3*(A!H$3/(-2*A!H$4))+A!H$3*A!H$3/(4*A!H$4)),"NA") -> 180.4182879 | E190: =IF(M$53,A!I$2+A!I$3*EXP(A!I$4*B190),"NA") -> 183.0369505 | F190: =IF(M$53,IF((A!J$2+A!J$3*B190)<A!J$4,A!J$2+A!J$3*B190,A!J$4),"NA") -> 179.9999493 | G190: =IF(M$53,IF(B190<A!K$4,A!K$2+A!K$3*(3*B190/(2*A!K$4)-0.5*(B190/A!K$4)^3),A!K$3+A!K$2),"NA") -> 179.4722109 | H190: =IF(M$53,(C190*B$45+'C'!D190*C$45+'C'!E190*D$45+'C'!F190*E$45+'C'!G190*F$45)/SUM(B$45:F$45),"NA") -> 181.2679974 | I190: 0 | J190: =IF(M$53,IF(AND(I190<A!B$29,I189>+A!B$29),((I189-A!B$29)/('C'!I189-'C'!I190))*4+'C'!B189,"NO"),"NA") -> NO
A191: 286 | B191: 200 | C191: =IF(M$53,A!G$2+A!G$3*B191+A!G$4*B191^2,"NA") -> 181.171853 | D191: =IF(M$53,IF(B191<(A!H$3/(-2*A!H$4)),A!H$2+A!H$3*B191+A!H$4*B191^2,A!H$2+A!H$3*(A!H$3/(-2*A!H$4))+A!H$3*A!H$3/(4*A!H$4)),"NA") -> 180.4182879 | E191: =IF(M$53,A!I$2+A!I$3*EXP(A!I$4*B191),"NA") -> 183.0369505 | F191: =IF(M$53,IF((A!J$2+A!J$3*B191)<A!J$4,A!J$2+A!J$3*B191,A!J$4),"NA") -> 179.9999493 | G191: =IF(M$53,IF(B191<A!K$4,A!K$2+A!K$3*(3*B191/(2*A!K$4)-0.5*(B191/A!K$4)^3),A!K$3+A!K$2),"NA") -> 179.4722109 | H191: =IF(M$53,(C191*B$45+'C'!D191*C$45+'C'!E191*D$45+'C'!F191*E$45+'C'!G191*F$45)/SUM(B$45:F$45),"NA") -> 181.2679974 | I191: 0 | J191: =IF(M$53,IF(AND(I191<A!B$29,I190>+A!B$29),((I190-A!B$29)/('C'!I190-'C'!I191))*4+'C'!B190,"NO"),"NA") -> NO
A192: 288 | B192: 200 | C192: =IF(M$53,A!G$2+A!G$3*B192+A!G$4*B192^2,"NA") -> 181.171853 | D192: =IF(M$53,IF(B192<(A!H$3/(-2*A!H$4)),A!H$2+A!H$3*B192+A!H$4*B192^2,A!H$2+A!H$3*(A!H$3/(-2*A!H$4))+A!H$3*A!H$3/(4*A!H$4)),"NA") -> 180.4182879 | E192: =IF(M$53,A!I$2+A!I$3*EXP(A!I$4*B192),"NA") -> 183.0369505 | F192: =IF(M$53,IF((A!J$2+A!J$3*B192)<A!J$4,A!J$2+A!J$3*B192,A!J$4),"NA") -> 179.9999493 | G192: =IF(M$53,IF(B192<A!K$4,A!K$2+A!K$3*(3*B192/(2*A!K$4)-0.5*(B192/A!K$4)^3),A!K$3+A!K$2),"NA") -> 179.4722109 | H192: =IF(M$53,(C192*B$45+'C'!D192*C$45+'C'!E192*D$45+'C'!F192*E$45+'C'!G192*F$45)/SUM(B$45:F$45),"NA") -> 181.2679974 | I192: 0 | J192: =IF(M$53,IF(AND(I192<A!B$29,I191>+A!B$29),((I191-A!B$29)/('C'!I191-'C'!I192))*4+'C'!B191,"NO"),"NA") -> NO
A193: 290 | B193: 200 | C193: =IF(M$53,A!G$2+A!G$3*B193+A!G$4*B193^2,"NA") -> 181.171853 | D193: =IF(M$53,IF(B193<(A!H$3/(-2*A!H$4)),A!H$2+A!H$3*B193+A!H$4*B193^2,A!H$2+A!H$3*(A!H$3/(-2*A!H$4))+A!H$3*A!H$3/(4*A!H$4)),"NA") -> 180.4182879 | E193: =IF(M$53,A!I$2+A!I$3*EXP(A!I$4*B193),"NA") -> 183.0369505 | F193: =IF(M$53,IF((A!J$2+A!J$3*B193)<A!J$4,A!J$2+A!J$3*B193,A!J$4),"NA") -> 179.9999493 | G193: =IF(M$53,IF(B193<A!K$4,A!K$2+A!K$3*(3*B193/(2*A!K$4)-0.5*(B193/A!K$4)^3),A!K$3+A!K$2),"NA") -> 179.4722109 | H193: =IF(M$53,(C193*B$45+'C'!D193*C$45+'C'!E193*D$45+'C'!F193*E$45+'C'!G193*F$45)/SUM(B$45:F$45),"NA") -> 181.2679974 | I193: 0 | J193: =IF(M$53,IF(AND(I193<A!B$29,I192>+A!B$29),((I192-A!B$29)/('C'!I192-'C'!I193))*4+'C'!B192,"NO"),"NA") -> NO
A194: 292 | B194: 200 | C194: =IF(M$53,A!G$2+A!G$3*B194+A!G$4*B194^2,"NA") -> 181.171853 | D194: =IF(M$53,IF(B194<(A!H$3/(-2*A!H$4)),A!H$2+A!H$3*B194+A!H$4*B194^2,A!H$2+A!H$3*(A!H$3/(-2*A!H$4))+A!H$3*A!H$3/(4*A!H$4)),"NA") -> 180.4182879 | E194: =IF(M$53,A!I$2+A!I$3*EXP(A!I$4*B194),"NA") -> 183.0369505 | F194: =IF(M$53,IF((A!J$2+A!J$3*B194)<A!J$4,A!J$2+A!J$3*B194,A!J$4),"NA") -> 179.9999493 | G194: =IF(M$53,IF(B194<A!K$4,A!K$2+A!K$3*(3*B194/(2*A!K$4)-0.5*(B194/A!K$4)^3),A!K$3+A!K$2),"NA") -> 179.4722109 | H194: =IF(M$53,(C194*B$45+'C'!D194*C$45+'C'!E194*D$45+'C'!F194*E$45+'C'!G194*F$45)/SUM(B$45:F$45),"NA") -> 181.2679974 | I194: 0 | J194: =IF(M$53,IF(AND(I194<A!B$29,I193>+A!B$29),((I193-A!B$29)/('C'!I193-'C'!I194))*4+'C'!B193,"NO"),"NA") -> NO
A195: 294 | B195: 200 | C195: =IF(M$53,A!G$2+A!G$3*B195+A!G$4*B195^2,"NA") -> 181.171853 | D195: =IF(M$53,IF(B195<(A!H$3/(-2*A!H$4)),A!H$2+A!H$3*B195+A!H$4*B195^2,A!H$2+A!H$3*(A!H$3/(-2*A!H$4))+A!H$3*A!H$3/(4*A!H$4)),"NA") -> 180.4182879 | E195: =IF(M$53,A!I$2+A!I$3*EXP(A!I$4*B195),"NA") -> 183.0369505 | F195: =IF(M$53,IF((A!J$2+A!J$3*B195)<A!J$4,A!J$2+A!J$3*B195,A!J$4),"NA") -> 179.9999493 | G195: =IF(M$53,IF(B195<A!K$4,A!K$2+A!K$3*(3*B195/(2*A!K$4)-0.5*(B195/A!K$4)^3),A!K$3+A!K$2),"NA") -> 179.4722109 | H195: =IF(M$53,(C195*B$45+'C'!D195*C$45+'C'!E195*D$45+'C'!F195*E$45+'C'!G195*F$45)/SUM(B$45:F$45),"NA") -> 181.2679974 | I195: 0 | J195: =IF(M$53,IF(AND(I195<A!B$29,I194>+A!B$29),((I194-A!B$29)/('C'!I194-'C'!I195))*4+'C'!B194,"NO"),"NA") -> NO
A196: 296 | B196: 200 | C196: =IF(M$53,A!G$2+A!G$3*B196+A!G$4*B196^2,"NA") -> 181.171853 | D196: =IF(M$53,IF(B196<(A!H$3/(-2*A!H$4)),A!H$2+A!H$3*B196+A!H$4*B196^2,A!H$2+A!H$3*(A!H$3/(-2*A!H$4))+A!H$3*A!H$3/(4*A!H$4)),"NA") -> 180.4182879 | E196: =IF(M$53,A!I$2+A!I$3*EXP(A!I$4*B196),"NA") -> 183.0369505 | F196: =IF(M$53,IF((A!J$2+A!J$3*B196)<A!J$4,A!J$2+A!J$3*B196,A!J$4),"NA") -> 179.9999493 | G196: =IF(M$53,IF(B196<A!K$4,A!K$2+A!K$3*(3*B196/(2*A!K$4)-0.5*(B196/A!K$4)^3),A!K$3+A!K$2),"NA") -> 179.4722109 | H196: =IF(M$53,(C196*B$45+'C'!D196*C$45+'C'!E196*D$45+'C'!F196*E$45+'C'!G196*F$45)/SUM(B$45:F$45),"NA") -> 181.2679974 | I196: 0 | J196: =IF(M$53,IF(AND(I196<A!B$29,I195>+A!B$29),((I195-A!B$29)/('C'!I195-'C'!I196))*4+'C'!B195,"NO"),"NA") -> NO
A197: 298 | B197: 200 | C197: =IF(M$53,A!G$2+A!G$3*B197+A!G$4*B197^2,"NA") -> 181.171853 | D197: =IF(M$53,IF(B197<(A!H$3/(-2*A!H$4)),A!H$2+A!H$3*B197+A!H$4*B197^2,A!H$2+A!H$3*(A!H$3/(-2*A!H$4))+A!H$3*A!H$3/(4*A!H$4)),"NA") -> 180.4182879 | E197: =IF(M$53,A!I$2+A!I$3*EXP(A!I$4*B197),"NA") -> 183.0369505 | F197: =IF(M$53,IF((A!J$2+A!J$3*B197)<A!J$4,A!J$2+A!J$3*B197,A!J$4),"NA") -> 179.9999493 | G197: =IF(M$53,IF(B197<A!K$4,A!K$2+A!K$3*(3*B197/(2*A!K$4)-0.5*(B197/A!K$4)^3),A!K$3+A!K$2),"NA") -> 179.4722109 | H197: =IF(M$53,(C197*B$45+'C'!D197*C$45+'C'!E197*D$45+'C'!F197*E$45+'C'!G197*F$45)/SUM(B$45:F$45),"NA") -> 181.2679974 | I197: 0 | J197: =IF(M$53,IF(AND(I197<A!B$29,I196>+A!B$29),((I196-A!B$29)/('C'!I196-'C'!I197))*4+'C'!B196,"NO"),"NA") -> NO
A198: 300 | B198: 200 | C198: =IF(M$53,A!G$2+A!G$3*B198+A!G$4*B198^2,"NA") -> 181.171853 | D198: =IF(M$53,IF(B198<(A!H$3/(-2*A!H$4)),A!H$2+A!H$3*B198+A!H$4*B198^2,A!H$2+A!H$3*(A!H$3/(-2*A!H$4))+A!H$3*A!H$3/(4*A!H$4)),"NA") -> 180.4182879 | E198: =IF(M$53,A!I$2+A!I$3*EXP(A!I$4*B198),"NA") -> 183.0369505 | F198: =IF(M$53,IF((A!J$2+A!J$3*B198)<A!J$4,A!J$2+A!J$3*B198,A!J$4),"NA") -> 179.9999493 | G198: =IF(M$53,IF(B198<A!K$4,A!K$2+A!K$3*(3*B198/(2*A!K$4)-0.5*(B198/A!K$4)^3),A!K$3+A!K$2),"NA") -> 179.4722109 | H198: =IF(M$53,(C198*B$45+'C'!D198*C$45+'C'!E198*D$45+'C'!F198*E$45+'C'!G198*F$45)/SUM(B$45:F$45),"NA") -> 181.2679974 | I198: 0 | J198: =IF(M$53,IF(AND(I198<A!B$29,I197>+A!B$29),((I197-A!B$29)/('C'!I197-'C'!I198))*4+'C'!B197,"NO"),"NA") -> NO
A199: 302 | B199: 200 | C199: =IF(M$53,A!G$2+A!G$3*B199+A!G$4*B199^2,"NA") -> 181.171853 | D199: =IF(M$53,IF(B199<(A!H$3/(-2*A!H$4)),A!H$2+A!H$3*B199+A!H$4*B199^2,A!H$2+A!H$3*(A!H$3/(-2*A!H$4))+A!H$3*A!H$3/(4*A!H$4)),"NA") -> 180.4182879 | E199: =IF(M$53,A!I$2+A!I$3*EXP(A!I$4*B199),"NA") -> 183.0369505 | F199: =IF(M$53,IF((A!J$2+A!J$3*B199)<A!J$4,A!J$2+A!J$3*B199,A!J$4),"NA") -> 179.9999493 | G199: =IF(M$53,IF(B199<A!K$4,A!K$2+A!K$3*(3*B199/(2*A!K$4)-0.5*(B199/A!K$4)^3),A!K$3+A!K$2),"NA") -> 179.4722109 | H199: =IF(M$53,(C199*B$45+'C'!D199*C$45+'C'!E199*D$45+'C'!F199*E$45+'C'!G199*F$45)/SUM(B$45:F$45),"NA") -> 181.2679974 | I199: 0 | J199: =IF(M$53,IF(AND(I199<A!B$29,I198>+A!B$29),((I198-A!B$29)/('C'!I198-'C'!I199))*4+'C'!B198,"NO"),"NA") -> NO
A200: 304 | B200: 200 | C200: =IF(M$53,A!G$2+A!G$3*B200+A!G$4*B200^2,"NA") -> 181.171853 | D200: =IF(M$53,IF(B200<(A!H$3/(-2*A!H$4)),A!H$2+A!H$3*B200+A!H$4*B200^2,A!H$2+A!H$3*(A!H$3/(-2*A!H$4))+A!H$3*A!H$3/(4*A!H$4)),"NA") -> 180.4182879 | E200: =IF(M$53,A!I$2+A!I$3*EXP(A!I$4*B200),"NA") -> 183.0369505 | F200: =IF(M$53,IF((A!J$2+A!J$3*B200)<A!J$4,A!J$2+A!J$3*B200,A!J$4),"NA") -> 179.9999493 | G200: =IF(M$53,IF(B200<A!K$4,A!K$2+A!K$3*(3*B200/(2*A!K$4)-0.5*(B200/A!K$4)^3),A!K$3+A!K$2),"NA") -> 179.4722109 | H200: =IF(M$53,(C200*B$45+'C'!D200*C$45+'C'!E200*D$45+'C'!F200*E$45+'C'!G200*F$45)/SUM(B$45:F$45),"NA") -> 181.2679974 | I200: 0 | J200: =IF(M$53,IF(AND(I200<A!B$29,I199>+A!B$29),((I199-A!B$29)/('C'!I199-'C'!I200))*4+'C'!B199,"NO"),"NA") -> NO
A201: 306 | B201: 200 | C201: =IF(M$53,A!G$2+A!G$3*B201+A!G$4*B201^2,"NA") -> 181.171853 | D201: =IF(M$53,IF(B201<(A!H$3/(-2*A!H$4)),A!H$2+A!H$3*B201+A!H$4*B201^2,A!H$2+A!H$3*(A!H$3/(-2*A!H$4))+A!H$3*A!H$3/(4*A!H$4)),"NA") -> 180.4182879 | E201: =IF(M$53,A!I$2+A!I$3*EXP(A!I$4*B201),"NA") -> 183.0369505 | F201: =IF(M$53,IF((A!J$2+A!J$3*B201)<A!J$4,A!J$2+A!J$3*B201,A!J$4),"NA") -> 179.9999493 | G201: =IF(M$53,IF(B201<A!K$4,A!K$2+A!K$3*(3*B201/(2*A!K$4)-0.5*(B201/A!K$4)^3),A!K$3+A!K$2),"NA") -> 179.4722109 | H201: =IF(M$53,(C201*B$45+'C'!D201*C$45+'C'!E201*D$45+'C'!F201*E$45+'C'!G201*F$45)/SUM(B$45:F$45),"NA") -> 181.2679974 | I201: 0 | J201: =IF(M$53,IF(AND(I201<A!B$29,I200>+A!B$29),((I200-A!B$29)/('C'!I200-'C'!I201))*4+'C'!B200,"NO"),"NA") -> NO
A202: 308 | B202: 200 | C202: =IF(M$53,A!G$2+A!G$3*B202+A!G$4*B202^2,"NA") -> 181.171853 | D202: =IF(M$53,IF(B202<(A!H$3/(-2*A!H$4)),A!H$2+A!H$3*B202+A!H$4*B202^2,A!H$2+A!H$3*(A!H$3/(-2*A!H$4))+A!H$3*A!H$3/(4*A!H$4)),"NA") -> 180.4182879 | E202: =IF(M$53,A!I$2+A!I$3*EXP(A!I$4*B202),"NA") -> 183.0369505 | F202: =IF(M$53,IF((A!J$2+A!J$3*B202)<A!J$4,A!J$2+A!J$3*B202,A!J$4),"NA") -> 179.9999493 | G202: =IF(M$53,IF(B202<A!K$4,A!K$2+A!K$3*(3*B202/(2*A!K$4)-0.5*(B202/A!K$4)^3),A!K$3+A!K$2),"NA") -> 179.4722109 | H202: =IF(M$53,(C202*B$45+'C'!D202*C$45+'C'!E202*D$45+'C'!F202*E$45+'C'!G202*F$45)/SUM(B$45:F$45),"NA") -> 181.2679974 | I202: 0 | J202: =IF(M$53,IF(AND(I202<A!B$29,I201>+A!B$29),((I201-A!B$29)/('C'!I201-'C'!I202))*4+'C'!B201,"NO"),"NA") -> NO
... 96 more rows

Sheet Summary
A1: Summary - Multi-site-year Database | D1: =COUNTA(A5:A966) -> 0 | G1: Current site-year is shown on row 4 - do not delete
A3: =A!A7 -> Site | B3: =A!A8 -> Year | C3: =A!A9 -> Town | D3: =A!A10 -> County | E3: =A!A11 -> State or province | F3: =A!A12 -> Latitude | G3: =A!A13 -> Longitude | H3: =A!A14 -> Altitude | I3: =A!A15 -> Soil texture class | J3: =A!A16 -> Preceding crop | K3: =A!A17 -> Expected Yield (bu/A) | L3: =A!A18 -> Tillage | M3: =A!A19 -> Nutrient Source | N3: =A!A20 -> Nutrient Timing | O3: =A!A21 -> Nutrient Placement | P3: =A!A22 -> Planting date | Q3: =A!A23 -> PSNT (ppm) | R3: =A!A24 -> Manure N (lb/A) | S3: =A!A25 -> Harvest date | T3: =A!A26 -> ESSENTIAL INFORMATION | U3: =A!A27 -> Crop ($/bu) | V3: =A!A28 -> Fertilizer ($/lb) | W3: =A!A29 -> Price ratio (f/c) | X3: =A!A30 -> Crop nutrient content (lb/bu) | Y3: =A!A31 -> Nutrient harvest index | Z3: =A!A32 -> 0 | AA3: =A!A33 -> 0 | AB3: =A!A34 -> 0 | AC3: =A!A35 -> 0 | AD3: =A!A36 -> 0 | AE3: =A!A37 -> 0 | AF3: =A!A38 -> 0 | AG3: =A!A39 -> 0 | AH3: =A!A40 -> 0 | AI3: =A!E6 -> MERN (lb/A): | AJ3: =A!E7 -> Yield @ MERN (bu/A) | AK3: PFP | AL3: AEN | AM3: PNB | AN3: REN | AO3: =A!E12 -> Delta Yield (bu/A) | AP3: =A!E13 -> Relative Yield (%) | AQ3: QA | AR3: QB | AS3: QC | AT3: QPA | AU3: QPB | AV3: QPC | AW3: MA | AX3: MB | AY3: MC | AZ3: LPA | BA3: LPB | BB3: LPC | BC3: SA | BD3: SB | BE3: SC | BF3: QR2 | BG3: QPR2 | BH3: MR2 | BI3: LPR2 | BJ3: SR2
A4: =A!B7 -> 0 | B4: =A!B8 -> 0 | C4: =A!B9 -> 0 | D4: =A!B10 -> 0 | E4: =A!B11 -> 0 | F4: =A!B12 -> 0 | G4: =A!B13 -> 0 | H4: =A!B14 -> 0 | I4: =A!B15 -> 0 | J4: =A!B16 -> 0 | K4: =A!B17 -> 0 | L4: =A!B18 -> 0 | M4: =A!B19 -> 0 | N4: =A!B20 -> 0 | O4: =A!B21 -> 0 | P4: =A!B22 -> 0 | Q4: =A!B23 -> 0 | R4: =A!B24 -> 0 | S4: =A!B25 -> 0 | T4: =A!B26 -> 0 | U4: =A!B27 -> 5.1 | V4: =A!B28 -> 0.64 | W4: =A!B29 -> 0.1254901961 | X4: =A!B30 -> 0.65 | Y4: =A!B31 -> 0.666 | Z4: =A!B32 -> 0 | AA4: =A!B33 -> 0 | AB4: =A!B34 -> 0 | AC4: =A!B35 -> 0 | AD4: =A!B36 -> 0 | AE4: =A!B37 -> 0 | AF4: =A!B38 -> 0 | AG4: =A!B39 -> 0 | AH4: =A!B40 -> 0 | AI4: =A!F6 -> 146.7911477 | AJ4: =A!F7 -> 178.4831489 | AK4: =A!F8 -> 1.215898586 | AL4: =A!F9 -> 0.5956174542 | AM4: =A!F10 -> 0.7903340808 | AN4: =A!F11 -> 0.5813083262 | AO4: =A!F12 -> 87.43136968 | AP4: =A!F13 -> 0.5101421606 | AQ4: =A!G2 -> 91.97095387 | AR4: =A!G3 -> 1.023188214 | AS4: =A!G4 -> -0.002885918594 | AT4: =A!H2 -> 91.12704407 | AU4: =A!H3 -> 1.084257635 | AV4: =A!H4 -> -0.003291517086 | AW4: =A!I2 -> 188.8797358 | AX4: =A!I3 -> -98.90534255 | AY4: =A!I4 -> -0.01414477821 | AZ4: =A!J2 -> 94.16647887 | BA4: =A!J3 -> 0.7500024781 | BB4: =A!J4 -> 179.9999493 | BC4: =A!K2 -> 91.67034005 | BD4: =A!K3 -> 87.80187084 | BE4: =A!K4 -> 143.3534097 | BF4: =A!G5 -> 0.9949170928 | BG4: =A!H5 -> 0.9963348469 | BH4: =A!I5 -> 0.9999940854 | BI4: =A!J5 -> 0.9829673521 | BJ4: =A!K5 -> 0.9926500361
